Directorate,Department,Expenditure Type,Ref.Doc.1,Vendor Name,Expenditure Amount (exc VAT),Payment Date
Assurance,Assurance,Training,60097831,ASSOCIATION OF ELECTORAL ADMINISTRA,"1,759.53",09/02/2018
Assurance,Assurance,Postage,60099014,ROYAL MAIL GROUP LIMITED,"1,043.18",26/02/2018
Assurance,Assurance,Postage,60099046,ROYAL MAIL GROUP LIMITED,"1,041.56",26/02/2018
Assurance,Assurance,Professional Services,60099238,DEMOCRACY COUNTS LIMITED,190.00,27/02/2018
Assurance,Assurance,Rents,60098230,HENDON SCHOOL (ACADEMY),406.70,16/02/2018
Assurance,Assurance,Training,60098526,ACE EDUCATION TRAINING LLP,"2,880.00",23/02/2018
Assurance,Assurance,Training,80015501,REDACTED - PERSONAL DATA,295.00,15/02/2018
Assurance,Assurance,Training,80015515,REDACTED - PERSONAL DATA,450.00,20/02/2018
Assurance,Assurance,Other Indirect Employee Expens,80015223,REDACTED - PERSONAL DATA,112.50,16/02/2018
Assurance,Assurance,Other Indirect Employee Expens,80015657,REDACTED - PERSONAL DATA,80.00,27/02/2018
Assurance,Assurance,Other Indirect Employee Expens,80015658,REDACTED - PERSONAL DATA,130.00,27/02/2018
Assurance,Assurance,Other Indirect Employee Expens,80015734,REDACTED - PERSONAL DATA,40.00,23/02/2018
Assurance,Assurance,Other Indirect Employee Expens,80015134,REDACTED - PERSONAL DATA,180.00,09/02/2018
Assurance,Assurance,Other Indirect Employee Expens,80015137,REDACTED - PERSONAL DATA,110.00,12/02/2018
Assurance,Assurance,Rents,60098280,HENRIETTA BARNETT SCHOOL (ACADEMY),240.00,16/02/2018
Assurance,Assurance,Equipment Hire,80015396,REDACTED - PERSONAL DATA,131.75,12/02/2018
Assurance,Assurance,Professional Services,80015610,REDACTED - PERSONAL DATA,450.00,20/02/2018
Assurance,Assurance,Professional Services,80015653,REDACTED - PERSONAL DATA,200.00,28/02/2018
Assurance,Assurance,Professional Services,80015655,REDACTED - PERSONAL DATA,100.00,28/02/2018
Assurance,Assurance,Professional Services,60093210,REDACTED - PERSONAL DATA,200.00,26/02/2018
Assurance,Assurance,Professional Services,60096001,PRICEWATERHOUSE COOPERS,"30,973.44",08/02/2018
Assurance,Assurance,Equipment and Materials Purcha,60096780,PRIME PRODUCTION LTD,54.50,14/02/2018
Assurance,Assurance,Equipment and Materials Purcha,60098044,PRIME PRODUCTION LTD,39.50,16/02/2018
Assurance,Assurance,Equipment and Materials Purcha,60098063,PRIME PRODUCTION LTD,39.50,16/02/2018
Assurance,Assurance,Equipment and Materials Purcha,60098142,PRIME PRODUCTION LTD,107.00,16/02/2018
Assurance,Assurance,Subscriptions,60092745,NATIONAL CRIME AGENCY,130.00,12/02/2018
Assurance,Assurance,Training,60093786,NATIONAL CRIME AGENCY,"1,083.00",12/02/2018
Assurance,Assurance,Translation Exp / Interpret,60095732,REDACTED - PERSONAL DATA,"1,132.50",01/02/2018
Central Expenses,Central Expenses,Other Establishments - Third P,60098446,CITY OF LONDON,"94,147.00",19/02/2018
Central Expenses,Central Expenses,Joint Authorities - Third Part,60097110,LONDON BOROUGH OF HARINGEY,"71,500.99",09/02/2018
Central Expenses,Central Expenses,Bank Charges,80015221,PAYPOINT NETWORK LTD,639.86,12/02/2018
Central Expenses,Central Expenses,Bank Charges,80015419,PAYPOINT NETWORK LTD,599.84,19/02/2018
Central Expenses,Central Expenses,Bank Charges,80015548,PAYPOINT NETWORK LTD,846.40,16/02/2018
Central Expenses,Central Expenses,Bank Charges,80015718,PAYPOINT NETWORK LTD,914.71,27/02/2018
Central Expenses,Central Expenses,Audit Fee,60097040,BDO LLP,"85,013.00",06/02/2018
Central Expenses,Central Expenses,Insurance Claims,60097327,WEIGHTMANS LLP,"1,000.00",02/02/2018
Central Expenses,Central Expenses,Insurance Claims,60097952,CLYDE & CO LLP,"1,620.00",13/02/2018
Central Expenses,Central Expenses,Insurance Claims,60098286,BROWNE JACOBSON SOLS.,"3,382.00",16/02/2018
Central Expenses,Central Expenses,Insurance Claims,60098976,JOHNSON AUSTIN PARTNERSHIP LLP,375.00,27/02/2018
Central Expenses,Central Expenses,Insurance Claims,80014855,IMCS (UK) PLC,955.00,08/02/2018
Central Expenses,Central Expenses,Insurance Claims,80015210,PLEXUS LAW,"18,250.00",05/02/2018
Central Expenses,Central Expenses,Insurance Claims,80015219,WEST HAMPSTEAD MEDICAL CENTRE,50.00,05/02/2018
Central Expenses,Central Expenses,Insurance Claims,80015324,BOTT & CO SOLICITORS,"1,000.00",12/02/2018
Central Expenses,Central Expenses,Insurance Claims,80015411,PRINCIPA LAW,"10,800.00",12/02/2018
Central Expenses,Central Expenses,Insurance Claims,80015437,SIMPSON SISSONS & BROOKE,"4,892.16",12/02/2018
Central Expenses,Central Expenses,Insurance Claims,80015441,IRWIN MITCHELL,690.00,12/02/2018
Central Expenses,Central Expenses,Insurance Claims,80015447,PLEXUS LAW,"9,000.00",13/02/2018
Central Expenses,Central Expenses,Insurance Claims,80015465,BOTT & CO SOLICITORS,"1,140.00",16/02/2018
Central Expenses,Central Expenses,Insurance Claims,80015484,AGEAS INSURANCE LIMITED,"2,308.00",16/02/2018
Central Expenses,Central Expenses,Insurance Claims,80015625,TOLLERS SOLICITORS,"8,585.00",20/02/2018
Central Expenses,Central Expenses,Insurance Claims,80015626,DWP COMPENSATION RECOVERY UNIT,637.00,20/02/2018
Central Expenses,Central Expenses,Insurance Claims,80015630,BOUNDS GREEN GROUP PRACTICE,15.00,20/02/2018
Central Expenses,Central Expenses,Insurance Claims,80015688,BAKERS SOLICITORS,"17,471.00",22/02/2018
Central Expenses,Central Expenses,Insurance Claims,80015726,PROXIMO LTD,"2,206.76",23/02/2018
Central Expenses,Central Expenses,Insurance Claims,80015736,REDACTED - PERSONAL DATA,595.00,26/02/2018
Central Expenses,Central Expenses,Insurance Claims,80015752,LEVENES SOLICITORS,"17,673.00",27/02/2018
Central Expenses,Central Expenses,Insurance Claims,80015754,DWP COMPENSATION RECOVERY UNIT,817.00,27/02/2018
Central Expenses,Central Expenses,Insurance Claims,80015758,SIMPSON SISSONS & BROOKE,702.00,27/02/2018
Central Expenses,Central Expenses,Insurance Claims,80015766,DWP COMPENSATION RECOVERY UNIT,665.00,27/02/2018
Central Expenses,Central Expenses,Insurance Claims,80015768,ESURE,"1,841.68",27/02/2018
Central Expenses,Central Expenses,Insurance Claims,80015788,REDACTED - PERSONAL DATA,10.00,28/02/2018
Central Expenses,Central Expenses,Insurance Claims,80015789,REDACTED - PERSONAL DATA,500.25,28/02/2018
Central Expenses,Central Expenses,Insurance Claims,80015266,REDACTED - PERSONAL DATA,182.46,12/02/2018
Central Expenses,Central Expenses,Insurance Claims,80015405,REDACTED - PERSONAL DATA,"5,745.00",12/02/2018
Central Expenses,Central Expenses,Insurance Claims,80015430,REDACTED - PERSONAL DATA,"4,250.00",12/02/2018
Central Expenses,Central Expenses,Insurance Claims,80015431,REDACTED - PERSONAL DATA,307.20,12/02/2018
Central Expenses,Central Expenses,Insurance Claims,80015436,REDACTED - PERSONAL DATA,750.00,12/02/2018
Central Expenses,Central Expenses,Insurance Claims,80015483,REDACTED - PERSONAL DATA,135.00,16/02/2018
Central Expenses,Central Expenses,Insurance Claims,80015636,REDACTED - PERSONAL DATA,990.00,20/02/2018
Central Expenses,Central Expenses,Insurance Claims,80015750,REDACTED - PERSONAL DATA,510.62,27/02/2018
Central Expenses,Central Expenses,Insurance Claims,80015751,REDACTED - PERSONAL DATA,94.60,27/02/2018
Central Expenses,Central Expenses,Insurance Claims,80015755,REDACTED - PERSONAL DATA,40.00,27/02/2018
Central Expenses,Central Expenses,Insurance Claims,80015794,REDACTED - PERSONAL DATA,405.00,28/02/2018
Central Expenses,Central Expenses,Other Establishments - Third P,EBX0212983,LEE VALLEY REGIONAL PARK AUTH.,"30,430.52",15/02/2018
Commercial,Customer Support Group,Building Repairs & Maintenance,60087142,OAKRAY LIMITED,904.88,06/02/2018
Commercial,Customer Support Group,Building Repairs & Maintenance,60087152,OAKRAY LIMITED,"2,493.75",06/02/2018
Commercial,Customer Support Group,Building Repairs & Maintenance,60087153,OAKRAY LIMITED,114.00,07/02/2018
Commercial,Customer Support Group,Building Repairs & Maintenance,60087162,OAKRAY LIMITED,"1,297.46",06/02/2018
Commercial,Customer Support Group,Building Repairs & Maintenance,60087163,OAKRAY LIMITED,485.93,06/02/2018
Commercial,Customer Support Group,Building Repairs & Maintenance,60087178,OAKRAY LIMITED,865.69,05/02/2018
Commercial,Customer Support Group,Building Repairs & Maintenance,60087186,OAKRAY LIMITED,769.50,06/02/2018
Commercial,Customer Support Group,Building Repairs & Maintenance,60087192,OAKRAY LIMITED,488.77,06/02/2018
Commercial,Customer Support Group,Building Repairs & Maintenance,60087196,OAKRAY LIMITED,"5,173.70",06/02/2018
Commercial,Customer Support Group,Building Repairs & Maintenance,60087202,OAKRAY LIMITED,748.12,06/02/2018
Commercial,Customer Support Group,Building Repairs & Maintenance,60087204,OAKRAY LIMITED,587.10,07/02/2018
Commercial,Customer Support Group,Building Repairs & Maintenance,60087213,OAKRAY LIMITED,"1,836.82",06/02/2018
Commercial,Customer Support Group,Building Repairs & Maintenance,60087217,OAKRAY LIMITED,678.30,07/02/2018
Commercial,Customer Support Group,Building Repairs & Maintenance,60087241,OAKRAY LIMITED,"1,044.53",05/02/2018
Commercial,Customer Support Group,Building Repairs & Maintenance,60087248,OAKRAY LIMITED,889.91,06/02/2018
Commercial,Customer Support Group,Building Repairs & Maintenance,60087263,OAKRAY LIMITED,"1,147.12",05/02/2018
Commercial,Customer Support Group,Building Repairs & Maintenance,60087275,OAKRAY LIMITED,"1,521.19",07/02/2018
Commercial,Customer Support Group,Building Repairs & Maintenance,60087286,OAKRAY LIMITED,"4,225.60",06/02/2018
Commercial,Customer Support Group,Building Repairs & Maintenance,60087304,OAKRAY LIMITED,835.76,06/02/2018
Commercial,Customer Support Group,Building Repairs & Maintenance,60087307,OAKRAY LIMITED,794.44,07/02/2018
Commercial,Customer Support Group,Building Repairs & Maintenance,60087323,OAKRAY LIMITED,"2,545.05",07/02/2018
Commercial,Customer Support Group,Building Repairs & Maintenance,60087342,OAKRAY LIMITED,"1,072.31",07/02/2018
Commercial,Customer Support Group,Building Repairs & Maintenance,60087356,OAKRAY LIMITED,"5,853.90",07/02/2018
Commercial,Customer Support Group,Building Repairs & Maintenance,60087359,OAKRAY LIMITED,973.27,06/02/2018
Commercial,Customer Support Group,Building Repairs & Maintenance,60087372,OAKRAY LIMITED,"1,077.30",05/02/2018
Commercial,Customer Support Group,Building Repairs & Maintenance,60087381,OAKRAY LIMITED,366.93,06/02/2018
Commercial,Customer Support Group,Building Repairs & Maintenance,60087385,OAKRAY LIMITED,"1,310.29",06/02/2018
Commercial,Customer Support Group,Building Repairs & Maintenance,60087389,OAKRAY LIMITED,"1,034.55",05/02/2018
Commercial,Customer Support Group,Building Repairs & Maintenance,60091705,OAKRAY LIMITED,939.60,07/02/2018
Commercial,Customer Support Group,Building Repairs & Maintenance,60097078,HERTEL (UK) LTD,34.91,01/02/2018
Commercial,Customer Support Group,Building Repairs & Maintenance,60097093,HERTEL (UK) LTD,34.91,01/02/2018
Commercial,Customer Support Group,Building Repairs & Maintenance,60097096,HERTEL (UK) LTD,34.91,05/02/2018
Commercial,Customer Support Group,Building Repairs & Maintenance,60097100,HERTEL (UK) LTD,34.91,01/02/2018
Commercial,Customer Support Group,Building Repairs & Maintenance,60097108,HERTEL (UK) LTD,34.91,05/02/2018
Commercial,Customer Support Group,Building Repairs & Maintenance,60097115,HERTEL (UK) LTD,34.91,01/02/2018
Commercial,Customer Support Group,Building Repairs & Maintenance,60097122,HERTEL (UK) LTD,34.91,01/02/2018
Commercial,Customer Support Group,Building Repairs & Maintenance,60097124,HERTEL (UK) LTD,34.91,01/02/2018
Commercial,Customer Support Group,Building Repairs & Maintenance,60097130,HERTEL (UK) LTD,34.91,05/02/2018
Commercial,Customer Support Group,Building Repairs & Maintenance,60097145,HERTEL (UK) LTD,34.91,01/02/2018
Commercial,Customer Support Group,Building Repairs & Maintenance,60097149,HERTEL (UK) LTD,34.91,05/02/2018
Commercial,Customer Support Group,Building Repairs & Maintenance,60097164,HERTEL (UK) LTD,149.63,01/02/2018
Commercial,Customer Support Group,Building Repairs & Maintenance,60097175,HERTEL (UK) LTD,34.91,05/02/2018
Commercial,Customer Support Group,Building Repairs & Maintenance,60097177,HERTEL (UK) LTD,34.91,01/02/2018
Commercial,Customer Support Group,Building Repairs & Maintenance,60097182,HERTEL (UK) LTD,34.91,05/02/2018
Commercial,Customer Support Group,Building Repairs & Maintenance,60097184,HERTEL (UK) LTD,34.91,05/02/2018
Commercial,Customer Support Group,Building Repairs & Maintenance,60097185,HERTEL (UK) LTD,34.91,05/02/2018
Commercial,Customer Support Group,Building Repairs & Maintenance,60097186,HERTEL (UK) LTD,34.91,01/02/2018
Commercial,Customer Support Group,Building Repairs & Maintenance,60097205,HERTEL (UK) LTD,34.91,01/02/2018
Commercial,Customer Support Group,Building Repairs & Maintenance,60097210,HERTEL (UK) LTD,34.91,01/02/2018
Commercial,Customer Support Group,Building Repairs & Maintenance,60097235,HERTEL (UK) LTD,34.91,01/02/2018
Commercial,Customer Support Group,Building Repairs & Maintenance,60097236,HERTEL (UK) LTD,34.91,01/02/2018
Commercial,Customer Support Group,Building Repairs & Maintenance,60097246,HERTEL (UK) LTD,34.91,01/02/2018
Commercial,Customer Support Group,Building Repairs & Maintenance,60097265,HERTEL (UK) LTD,34.91,05/02/2018
Commercial,Customer Support Group,Building Repairs & Maintenance,60097273,HERTEL (UK) LTD,34.91,01/02/2018
Commercial,Customer Support Group,Building Repairs & Maintenance,60097275,HERTEL (UK) LTD,34.91,05/02/2018
Commercial,Customer Support Group,Building Repairs & Maintenance,60097289,HERTEL (UK) LTD,34.91,02/02/2018
Commercial,Customer Support Group,Building Repairs & Maintenance,60098517,HERTEL (UK) LTD,34.91,22/02/2018
Commercial,Customer Support Group,Building Repairs & Maintenance,60098527,HERTEL (UK) LTD,34.91,22/02/2018
Commercial,Customer Support Group,Building Repairs & Maintenance,60098540,HERTEL (UK) LTD,34.91,22/02/2018
Commercial,Customer Support Group,Building Repairs & Maintenance,60098542,HERTEL (UK) LTD,34.91,22/02/2018
Commercial,Customer Support Group,Building Repairs & Maintenance,60098544,HERTEL (UK) LTD,34.91,22/02/2018
Commercial,Customer Support Group,Building Repairs & Maintenance,60098632,HERTEL (UK) LTD,34.91,22/02/2018
Commercial,Customer Support Group,Building Repairs & Maintenance,60098641,HERTEL (UK) LTD,34.91,22/02/2018
Commercial,Customer Support Group,Building Repairs & Maintenance,60098643,HERTEL (UK) LTD,34.91,21/02/2018
Commercial,Customer Support Group,Building Repairs & Maintenance,60098644,HERTEL (UK) LTD,34.91,22/02/2018
Commercial,Customer Support Group,Building Repairs & Maintenance,60098660,HERTEL (UK) LTD,34.91,21/02/2018
Commercial,Customer Support Group,Building Repairs & Maintenance,60098662,HERTEL (UK) LTD,34.91,22/02/2018
Commercial,Customer Support Group,Building Repairs & Maintenance,60098665,HERTEL (UK) LTD,34.91,22/02/2018
Commercial,Customer Support Group,Building Repairs & Maintenance,60098684,HERTEL (UK) LTD,34.91,22/02/2018
Commercial,Customer Support Group,Building Repairs & Maintenance,60098700,HERTEL (UK) LTD,34.91,22/02/2018
Commercial,Customer Support Group,Building Repairs & Maintenance,60098702,HERTEL (UK) LTD,34.91,22/02/2018
Commercial,Customer Support Group,Building Repairs & Maintenance,60098708,HERTEL (UK) LTD,24.94,21/02/2018
Commercial,Customer Support Group,Building Repairs & Maintenance,60098709,HERTEL (UK) LTD,34.91,22/02/2018
Commercial,Customer Support Group,Building Repairs & Maintenance,60098710,HERTEL (UK) LTD,34.91,21/02/2018
Commercial,Customer Support Group,Building Repairs & Maintenance,60098720,HERTEL (UK) LTD,34.91,22/02/2018
Commercial,Customer Support Group,Building Repairs & Maintenance,60098724,HERTEL (UK) LTD,34.91,22/02/2018
Commercial,Customer Support Group,Building Repairs & Maintenance,60098725,HERTEL (UK) LTD,34.91,22/02/2018
Commercial,Customer Support Group,Building Repairs & Maintenance,60098729,HERTEL (UK) LTD,34.91,21/02/2018
Commercial,Customer Support Group,Building Repairs & Maintenance,60098730,HERTEL (UK) LTD,34.91,22/02/2018
Commercial,Customer Support Group,Building Repairs & Maintenance,60098736,HERTEL (UK) LTD,34.91,22/02/2018
Commercial,Customer Support Group,Building Repairs & Maintenance,60098738,HERTEL (UK) LTD,34.91,22/02/2018
Commercial,Customer Support Group,Building Repairs & Maintenance,60098742,HERTEL (UK) LTD,34.91,22/02/2018
Commercial,Customer Support Group,Building Repairs & Maintenance,60098744,HERTEL (UK) LTD,34.91,22/02/2018
Commercial,Customer Support Group,Building Repairs & Maintenance,60098754,HERTEL (UK) LTD,34.91,22/02/2018
Commercial,Customer Support Group,Building Repairs & Maintenance,60097024,RGE SERVICES,64.13,06/02/2018
Commercial,Customer Support Group,Building Repairs & Maintenance,60097068,RGE SERVICES,64.13,06/02/2018
Commercial,Customer Support Group,Building Repairs & Maintenance,60097142,RGE SERVICES,177.10,22/02/2018
Commercial,Customer Support Group,Building Repairs & Maintenance,60097961,RGE SERVICES,120.57,19/02/2018
Commercial,Customer Support Group,Building Repairs & Maintenance,60097992,RGE SERVICES,441.97,13/02/2018
Commercial,Customer Support Group,Building Repairs & Maintenance,60097099,AJS LTD,296.87,01/02/2018
Commercial,Customer Support Group,Building Repairs & Maintenance,60097120,AJS LTD,125.44,01/02/2018
Commercial,Customer Support Group,Building Repairs & Maintenance,60097868,AJS LTD,258.72,12/02/2018
Commercial,Customer Support Group,Building Repairs & Maintenance,60097900,AJS LTD,282.24,12/02/2018
Commercial,Customer Support Group,Building Repairs & Maintenance,60097905,AJS LTD,266.56,12/02/2018
Commercial,Customer Support Group,Building Repairs & Maintenance,60097917,AJS LTD,188.16,12/02/2018
Commercial,Customer Support Group,Building Repairs & Maintenance,60097923,AJS LTD,203.84,12/02/2018
Commercial,Customer Support Group,Building Repairs & Maintenance,60098497,AJS LTD,326.92,20/02/2018
Commercial,Customer Support Group,Building Repairs & Maintenance,60098509,AJS LTD,118.88,20/02/2018
Commercial,Customer Support Group,Building Repairs & Maintenance,60098529,AJS LTD,401.22,20/02/2018
Commercial,Customer Support Group,Building Repairs & Maintenance,60098531,AJS LTD,163.46,20/02/2018
Commercial,Customer Support Group,Building Repairs & Maintenance,60098553,AJS LTD,296.87,20/02/2018
Commercial,Customer Support Group,Building Repairs & Maintenance,60098563,AJS LTD,89.16,20/02/2018
Commercial,Customer Support Group,Building Repairs & Maintenance,60098591,AJS LTD,364.07,20/02/2018
Commercial,Customer Support Group,Building Repairs & Maintenance,60098651,AJS LTD,296.87,21/02/2018
Commercial,Customer Support Group,Gas,60096423,KENT COUNTY COUNCIL (KCS),"6,610.13",01/02/2018
Commercial,Customer Support Group,Electricity,60097151,KENT COUNTY COUNCIL (KCS),"5,799.40",12/02/2018
Commercial,Customer Support Group,Electricity,60097158,KENT COUNTY COUNCIL (KCS),"6,242.67",12/02/2018
Commercial,Customer Support Group,Building Repairs & Maintenance,60087246,OAKRAY LIMITED,248.28,07/02/2018
Commercial,Customer Support Group,Building Repairs & Maintenance,60087277,OAKRAY LIMITED,455.36,13/02/2018
Commercial,Customer Support Group,Building Repairs & Maintenance,60087282,OAKRAY LIMITED,151.77,07/02/2018
Commercial,Customer Support Group,Building Repairs & Maintenance,60087309,OAKRAY LIMITED,556.10,12/02/2018
Commercial,Customer Support Group,Building Repairs & Maintenance,60087380,OAKRAY LIMITED,376.00,13/02/2018
Commercial,Customer Support Group,Building Repairs & Maintenance,60098222,OAKRAY LIMITED,"11,147.95",16/02/2018
Commercial,Customer Support Group,Building Repairs & Maintenance,60099057,LEE SECURITY LONDON LIMITED,187.00,26/02/2018
Commercial,Customer Support Group,Building Repairs & Maintenance,60096655,SECOM PLC,"1,216.13",08/02/2018
Commercial,Customer Support Group,Furniture-Purchase-Repair,60096906,LYCO DIRECT LTD,51.59,22/02/2018
Commercial,Customer Support Group,Building Repairs & Maintenance,60097249,HERTEL (UK) LTD,34.91,01/02/2018
Commercial,Customer Support Group,Building Repairs & Maintenance,60098578,HERTEL (UK) LTD,120.00,22/02/2018
Commercial,Customer Support Group,Building Repairs & Maintenance,60098760,HERTEL (UK) LTD,34.91,22/02/2018
Commercial,Customer Support Group,Building Repairs & Maintenance,60098969,HERTEL (UK) LTD,264.59,26/02/2018
Commercial,Customer Support Group,Rubbish Collection,60089100,G.B.HOLDINGS LTD,781.20,12/02/2018
Commercial,Customer Support Group,Rubbish Collection,60095372,G.B.HOLDINGS LTD,789.00,12/02/2018
Commercial,Customer Support Group,Building Repairs & Maintenance,60097703,RGE SERVICES,599.00,09/02/2018
Commercial,Customer Support Group,Building Repairs & Maintenance,60097779,RGE SERVICES,248.00,09/02/2018
Commercial,Customer Support Group,Building Repairs & Maintenance,60098994,RGE SERVICES,62.00,26/02/2018
Commercial,Customer Support Group,Other Services,60097487,BLUE 9 SECURITY LIMITED,"21,521.60",08/02/2018
Commercial,Customer Support Group,Rubbish Collection,60097988,PREMIER SHREDDING,50.00,13/02/2018
Commercial,Customer Support Group,Water Services,60097433,2468 LTD,"2,058.21",06/02/2018
Commercial,Customer Support Group,Building Repairs & Maintenance,60096086,S W BRUCE & CO LTD,57.68,08/02/2018
Commercial,Customer Support Group,Building Repairs & Maintenance,60096117,S W BRUCE & CO LTD,300.88,08/02/2018
Commercial,Customer Support Group,Building Repairs & Maintenance,60096329,S W BRUCE & CO LTD,166.29,08/02/2018
Commercial,Customer Support Group,Building Repairs & Maintenance,60097344,S W BRUCE & CO LTD,75.00,08/02/2018
Commercial,Customer Support Group,Building Repairs & Maintenance,60097924,S W BRUCE & CO LTD,132.00,12/02/2018
Commercial,Customer Support Group,Building Repairs & Maintenance,60097974,S W BRUCE & CO LTD,42.00,13/02/2018
Commercial,Customer Support Group,Building Repairs & Maintenance,60097978,S W BRUCE & CO LTD,63.00,13/02/2018
Commercial,Customer Support Group,Building Repairs & Maintenance,60097984,S W BRUCE & CO LTD,209.30,13/02/2018
Commercial,Customer Support Group,Building Repairs & Maintenance,60098002,S W BRUCE & CO LTD,25.00,13/02/2018
Commercial,Customer Support Group,Building Repairs & Maintenance,60098031,S W BRUCE & CO LTD,65.00,13/02/2018
Commercial,Customer Support Group,Building Repairs & Maintenance,60098037,S W BRUCE & CO LTD,42.00,13/02/2018
Commercial,Customer Support Group,Building Repairs & Maintenance,60095360,LIFT & ENGINEERING SERVICES LTD,71.69,19/02/2018
Commercial,Customer Support Group,Building Repairs & Maintenance,60096132,LIFT & ENGINEERING SERVICES LTD,232.00,07/02/2018
Commercial,Customer Support Group,Building Repairs & Maintenance,60096160,LIFT & ENGINEERING SERVICES LTD,174.00,07/02/2018
Commercial,Customer Support Group,Ttl IT & Comms,60099278,BRITISH TELECOM PLC,107.34,27/02/2018
Commercial,Customer Support Group,Water Services,60096845,AFFINITY WATER LIMITED,476.22,06/02/2018
Commercial,Customer Support Group,Building Repairs & Maintenance,60096549,DOORWAY-MAINTENANCE CO.,"1,062.10",15/02/2018
Commercial,Customer Support Group,Cleaning and domestic material,60097536,HERTFORDSHIRE COUNTY COUNCIL,196.96,07/02/2018
Commercial,Customer Support Group,Furniture-Purchase-Repair,60098079,BARTLETT'S KEY SERVICES LTD,85.64,15/02/2018
Commercial,Customer Support Group,Building Repairs & Maintenance,60097077,HERTEL (UK) LTD,179.55,05/02/2018
Commercial,Customer Support Group,Building Repairs & Maintenance,60097121,HERTEL (UK) LTD,34.91,05/02/2018
Commercial,Customer Support Group,Building Repairs & Maintenance,60098645,HERTEL (UK) LTD,34.91,22/02/2018
Commercial,Customer Support Group,Building Repairs & Maintenance,60097829,RGE SERVICES,862.83,09/02/2018
Commercial,Customer Support Group,Other Services,60097469,BLUE 9 SECURITY LIMITED,"6,282.90",08/02/2018
Commercial,Customer Support Group,Building Repairs & Maintenance,60097306,S W BRUCE & CO LTD,118.00,08/02/2018
Commercial,Customer Support Group,Building Repairs & Maintenance,60097857,S W BRUCE & CO LTD,162.72,12/02/2018
Commercial,Customer Support Group,Building Repairs & Maintenance,60097887,S W BRUCE & CO LTD,185.00,12/02/2018
Commercial,Customer Support Group,Building Repairs & Maintenance,60097947,LIFT & ENGINEERING SERVICES LTD,"1,131.24",14/02/2018
Commercial,Customer Support Group,Building Repairs & Maintenance,60097971,LIFT & ENGINEERING SERVICES LTD,116.00,27/02/2018
Commercial,Customer Support Group,Building Repairs & Maintenance,60097084,NORTH LONDON CATERING EQUIPMENT,119.00,01/02/2018
Commercial,Customer Support Group,Electricity,60097661,KENT COUNTY COUNCIL (KCS),"1,109.93",20/02/2018
Commercial,Customer Support Group,Gas,60099365,KENT COUNTY COUNCIL (KCS),259.80,28/02/2018
Commercial,Customer Support Group,Building Repairs & Maintenance,60097092,HERTEL (UK) LTD,34.91,01/02/2018
Commercial,Customer Support Group,Building Repairs & Maintenance,60098716,HERTEL (UK) LTD,34.91,22/02/2018
Commercial,Customer Support Group,Building Repairs & Maintenance,60097629,S W BRUCE & CO LTD,92.00,08/02/2018
Commercial,Customer Support Group,Building Repairs & Maintenance,60087373,OAKRAY LIMITED,160.00,07/02/2018
Commercial,Customer Support Group,Building Repairs & Maintenance,60083186,MIDDLESEX UNIVERSITY,"95,926.20",16/02/2018
Commercial,Customer Support Group,Building Repairs & Maintenance,60083205,MIDDLESEX UNIVERSITY,"23,981.80",16/02/2018
Commercial,Customer Support Group,Cleaning and domestic material,60097520,HERTFORDSHIRE COUNTY COUNCIL,"2,271.80",07/02/2018
Commercial,Customer Support Group,Cleaning and domestic material,60097531,HERTFORDSHIRE COUNTY COUNCIL,"2,271.80",07/02/2018
Commercial,Customer Support Group,Building Repairs & Maintenance,60087154,OAKRAY LIMITED,96.00,07/02/2018
Commercial,Customer Support Group,Building Repairs & Maintenance,60087230,OAKRAY LIMITED,160.00,07/02/2018
Commercial,Customer Support Group,Building Repairs & Maintenance,60087311,OAKRAY LIMITED,81.00,05/02/2018
Commercial,Customer Support Group,Building Repairs & Maintenance,60087367,OAKRAY LIMITED,96.00,07/02/2018
Commercial,Customer Support Group,Building Repairs & Maintenance,60087383,OAKRAY LIMITED,668.63,07/02/2018
Commercial,Customer Support Group,Building Repairs & Maintenance,60096093,OAKRAY LIMITED,"1,769.58",05/02/2018
Commercial,Customer Support Group,Building Repairs & Maintenance,60096302,HSM (UK) LTD.,98.50,08/02/2018
Commercial,Customer Support Group,Building Repairs & Maintenance,60097775,RGE SERVICES,644.64,09/02/2018
Commercial,Customer Support Group,Building Repairs & Maintenance,60098985,RGE SERVICES,133.69,26/02/2018
Commercial,Customer Support Group,Building Repairs & Maintenance,60097066,BRITA WATER FILTER SYSTEMS LIMITED,188.22,22/02/2018
Commercial,Customer Support Group,Other Services,60097417,BLUE 9 SECURITY LIMITED,"11,584.08",08/02/2018
Commercial,Customer Support Group,Other Services,60098411,BLUE 9 SECURITY LIMITED,"9,030.43",20/02/2018
Commercial,Customer Support Group,Other Services,60098424,BLUE 9 SECURITY LIMITED,"4,433.63",20/02/2018
Commercial,Customer Support Group,Other Services,60098762,BLUE 9 SECURITY LIMITED,"2,100.83",22/02/2018
Commercial,Customer Support Group,Building Repairs & Maintenance,60094073,ONLITECH,"2,327.00",02/02/2018
Commercial,Customer Support Group,Water Services,60097436,2468 LTD,719.60,06/02/2018
Commercial,Customer Support Group,Building Repairs & Maintenance,60096523,S W BRUCE & CO LTD,"1,555.60",08/02/2018
Commercial,Customer Support Group,Building Repairs & Maintenance,60097089,NORTH LONDON CATERING EQUIPMENT,154.50,05/02/2018
Commercial,Customer Support Group,Consumable Catering Supplies,60097112,NORTH LONDON CATERING EQUIPMENT,599.97,01/02/2018
Commercial,Customer Support Group,Building Repairs & Maintenance,60097179,NORTH LONDON CATERING EQUIPMENT,131.00,05/02/2018
Commercial,Customer Support Group,Building Repairs & Maintenance,60097198,NORTH LONDON CATERING EQUIPMENT,251.90,01/02/2018
Commercial,Customer Support Group,Building Repairs & Maintenance,60097224,NORTH LONDON CATERING EQUIPMENT,119.00,07/02/2018
Commercial,Customer Support Group,Building Repairs & Maintenance,60097231,NORTH LONDON CATERING EQUIPMENT,95.00,05/02/2018
Commercial,Customer Support Group,Building Repairs & Maintenance,60097247,NORTH LONDON CATERING EQUIPMENT,171.50,05/02/2018
Commercial,Customer Support Group,Equipment and Materials Purcha,60098024,SCREWFIX DIRECT LTD,44.14,16/02/2018
Commercial,Customer Support Group,Building Repairs & Maintenance,60097138,HERTEL (UK) LTD,189.00,01/02/2018
Commercial,Customer Support Group,Building Repairs & Maintenance,60097191,HERTEL (UK) LTD,34.91,01/02/2018
Commercial,Customer Support Group,Building Repairs & Maintenance,60098508,HERTEL (UK) LTD,34.91,22/02/2018
Commercial,Customer Support Group,CSG Services Contract Payment,60096651,CAPITA BUSINESS SERVICES LTD,"26,131.50",01/02/2018
Commercial,Customer Support Group,CSG Services Contract Payment,60096782,CAPITA BUSINESS SERVICES LTD,"4,927.50",07/02/2018
Commercial,Customer Support Group,CSG Services Contract Payment,60096915,CAPITA BUSINESS SERVICES LTD,"185,664.00",08/02/2018
Commercial,Customer Support Group,CSG Services Contract Payment,60097332,CAPITA BUSINESS SERVICES LTD,"11,125.90",14/02/2018
Commercial,Customer Support Group,CSG Services Contract Payment,60097693,CAPITA BUSINESS SERVICES LTD,"40,629.49",21/02/2018
Commercial,Customer Support Group,CSG Services Contract Payment,60098441,CAPITA BUSINESS SERVICES LTD,"39,353.67",28/02/2018
Commercial,Customer Support Group,CSG Services Contract Payment,60098444,CAPITA BUSINESS SERVICES LTD,"438,908.64",28/02/2018
Commercial,Customer Support Group,CSG Services Contract Payment,60099281,CAPITA BUSINESS SERVICES LTD,"279,249.99",28/02/2018
Commercial,Customer Support Group,Building Repairs & Maintenance,60096847,ENVIRONMENT AGENCY,"1,290.00",14/02/2018
Commercial,Customer Support Group,Electricity,60096470,KENT COUNTY COUNCIL (KCS),325.31,05/02/2018
Commercial,Customer Support Group,Electricity,60096740,KENT COUNTY COUNCIL (KCS),208.55,05/02/2018
Commercial,Customer Support Group,Electricity,60096752,KENT COUNTY COUNCIL (KCS),513.49,05/02/2018
Commercial,Customer Support Group,Electricity,60096761,KENT COUNTY COUNCIL (KCS),511.08,05/02/2018
Commercial,Customer Support Group,Electricity,60096763,KENT COUNTY COUNCIL (KCS),"1,594.98",05/02/2018
Commercial,Customer Support Group,Electricity,60096824,KENT COUNTY COUNCIL (KCS),65.40,06/02/2018
Commercial,Customer Support Group,Electricity,60096837,KENT COUNTY COUNCIL (KCS),319.84,07/02/2018
Commercial,Customer Support Group,Electricity,60096838,KENT COUNTY COUNCIL (KCS),46.02,06/02/2018
Commercial,Customer Support Group,Electricity,60097442,KENT COUNTY COUNCIL (KCS),394.93,06/02/2018
Commercial,Customer Support Group,Electricity,60097452,KENT COUNTY COUNCIL (KCS),313.46,06/02/2018
Commercial,Customer Support Group,Other Energy,60097991,KENT COUNTY COUNCIL (KCS),270.00,13/02/2018
Commercial,Customer Support Group,Electricity,60098376,KENT COUNTY COUNCIL (KCS),685.85,20/02/2018
Commercial,Customer Support Group,Gas,60098390,KENT COUNTY COUNCIL (KCS),619.26,20/02/2018
Commercial,Customer Support Group,Electricity,60099354,KENT COUNTY COUNCIL (KCS),206.77,28/02/2018
Commercial,Customer Support Group,Electricity,60099433,KENT COUNTY COUNCIL (KCS),228.99,28/02/2018
Commercial,Customer Support Group,Building Repairs & Maintenance,60087136,OAKRAY LIMITED,96.00,07/02/2018
Commercial,Customer Support Group,Building Repairs & Maintenance,60087170,OAKRAY LIMITED,962.04,07/02/2018
Commercial,Customer Support Group,Building Repairs & Maintenance,60087197,OAKRAY LIMITED,96.00,07/02/2018
Commercial,Customer Support Group,Building Repairs & Maintenance,60087207,OAKRAY LIMITED,170.50,05/02/2018
Commercial,Customer Support Group,Building Repairs & Maintenance,60087253,OAKRAY LIMITED,64.00,06/02/2018
Commercial,Customer Support Group,Building Repairs & Maintenance,60087261,OAKRAY LIMITED,531.20,07/02/2018
Commercial,Customer Support Group,Building Repairs & Maintenance,60087271,OAKRAY LIMITED,655.50,05/02/2018
Commercial,Customer Support Group,Building Repairs & Maintenance,60087364,OAKRAY LIMITED,144.00,07/02/2018
Commercial,Customer Support Group,Building Repairs & Maintenance,60089548,OAKRAY LIMITED,64.00,05/02/2018
Commercial,Customer Support Group,Building Repairs & Maintenance,60089551,OAKRAY LIMITED,48.00,05/02/2018
Commercial,Customer Support Group,Building Repairs & Maintenance,60089552,OAKRAY LIMITED,48.00,05/02/2018
Commercial,Customer Support Group,Building Repairs & Maintenance,60089553,OAKRAY LIMITED,64.00,05/02/2018
Commercial,Customer Support Group,Building Repairs & Maintenance,60089554,OAKRAY LIMITED,64.00,05/02/2018
Commercial,Customer Support Group,Building Repairs & Maintenance,60089559,OAKRAY LIMITED,80.00,05/02/2018
Commercial,Customer Support Group,Building Repairs & Maintenance,60089619,OAKRAY LIMITED,64.00,05/02/2018
Commercial,Customer Support Group,Building Repairs & Maintenance,60089654,OAKRAY LIMITED,96.00,05/02/2018
Commercial,Customer Support Group,Building Repairs & Maintenance,60098512,OAKRAY LIMITED,461.70,20/02/2018
Commercial,Customer Support Group,Building Repairs & Maintenance,60097985,ADAMS ENVIRONMENTAL LTD,500.00,21/02/2018
Commercial,Customer Support Group,Building Repairs & Maintenance,60097895,LEE SECURITY LONDON LIMITED,15.18,12/02/2018
Commercial,Customer Support Group,Building Repairs & Maintenance,60096659,SECOM PLC,320.06,08/02/2018
Commercial,Customer Support Group,Building Repairs & Maintenance,60097094,SECOM PLC,100.00,14/02/2018
Commercial,Customer Support Group,Building Repairs & Maintenance,60097071,HERTEL (UK) LTD,34.91,05/02/2018
Commercial,Customer Support Group,Building Repairs & Maintenance,60097073,HERTEL (UK) LTD,34.91,01/02/2018
Commercial,Customer Support Group,Building Repairs & Maintenance,60097074,HERTEL (UK) LTD,34.91,01/02/2018
Commercial,Customer Support Group,Building Repairs & Maintenance,60097080,HERTEL (UK) LTD,34.91,05/02/2018
Commercial,Customer Support Group,Building Repairs & Maintenance,60097098,HERTEL (UK) LTD,34.91,01/02/2018
Commercial,Customer Support Group,Building Repairs & Maintenance,60097101,HERTEL (UK) LTD,34.91,05/02/2018
Commercial,Customer Support Group,Building Repairs & Maintenance,60097103,HERTEL (UK) LTD,34.91,01/02/2018
Commercial,Customer Support Group,Building Repairs & Maintenance,60097105,HERTEL (UK) LTD,150.00,01/02/2018
Commercial,Customer Support Group,Building Repairs & Maintenance,60097119,HERTEL (UK) LTD,34.91,14/02/2018
Commercial,Customer Support Group,Building Repairs & Maintenance,60097123,HERTEL (UK) LTD,"1,321.00",01/02/2018
Commercial,Customer Support Group,Building Repairs & Maintenance,60097129,HERTEL (UK) LTD,34.91,05/02/2018
Commercial,Customer Support Group,Building Repairs & Maintenance,60097133,HERTEL (UK) LTD,34.91,01/02/2018
Commercial,Customer Support Group,Building Repairs & Maintenance,60097134,HERTEL (UK) LTD,34.91,01/02/2018
Commercial,Customer Support Group,Building Repairs & Maintenance,60097135,HERTEL (UK) LTD,34.91,05/02/2018
Commercial,Customer Support Group,Building Repairs & Maintenance,60097136,HERTEL (UK) LTD,435.00,01/02/2018
Commercial,Customer Support Group,Building Repairs & Maintenance,60097139,HERTEL (UK) LTD,34.91,01/02/2018
Commercial,Customer Support Group,Building Repairs & Maintenance,60097140,HERTEL (UK) LTD,34.91,01/02/2018
Commercial,Customer Support Group,Building Repairs & Maintenance,60097143,HERTEL (UK) LTD,75.00,05/02/2018
Commercial,Customer Support Group,Building Repairs & Maintenance,60097148,HERTEL (UK) LTD,"1,026.66",01/02/2018
Commercial,Customer Support Group,Building Repairs & Maintenance,60097152,HERTEL (UK) LTD,34.91,05/02/2018
Commercial,Customer Support Group,Building Repairs & Maintenance,60097153,HERTEL (UK) LTD,34.91,01/02/2018
Commercial,Customer Support Group,Building Repairs & Maintenance,60097154,HERTEL (UK) LTD,34.91,01/02/2018
Commercial,Customer Support Group,Building Repairs & Maintenance,60097155,HERTEL (UK) LTD,104.74,01/02/2018
Commercial,Customer Support Group,Building Repairs & Maintenance,60097156,HERTEL (UK) LTD,150.00,01/02/2018
Commercial,Customer Support Group,Building Repairs & Maintenance,60097157,HERTEL (UK) LTD,34.91,01/02/2018
Commercial,Customer Support Group,Building Repairs & Maintenance,60097159,HERTEL (UK) LTD,34.91,01/02/2018
Commercial,Customer Support Group,Building Repairs & Maintenance,60097160,HERTEL (UK) LTD,34.91,05/02/2018
Commercial,Customer Support Group,Building Repairs & Maintenance,60097165,HERTEL (UK) LTD,195.00,01/02/2018
Commercial,Customer Support Group,Building Repairs & Maintenance,60097168,HERTEL (UK) LTD,400.00,05/02/2018
Commercial,Customer Support Group,Building Repairs & Maintenance,60097170,HERTEL (UK) LTD,34.91,01/02/2018
Commercial,Customer Support Group,Building Repairs & Maintenance,60097173,HERTEL (UK) LTD,34.91,01/02/2018
Commercial,Customer Support Group,Building Repairs & Maintenance,60097176,HERTEL (UK) LTD,34.91,01/02/2018
Commercial,Customer Support Group,Building Repairs & Maintenance,60097183,HERTEL (UK) LTD,34.91,01/02/2018
Commercial,Customer Support Group,Building Repairs & Maintenance,60097188,HERTEL (UK) LTD,34.91,01/02/2018
Commercial,Customer Support Group,Building Repairs & Maintenance,60097189,HERTEL (UK) LTD,34.91,01/02/2018
Commercial,Customer Support Group,Building Repairs & Maintenance,60097193,HERTEL (UK) LTD,34.91,01/02/2018
Commercial,Customer Support Group,Building Repairs & Maintenance,60097194,HERTEL (UK) LTD,34.91,05/02/2018
Commercial,Customer Support Group,Building Repairs & Maintenance,60097196,HERTEL (UK) LTD,805.00,05/02/2018
Commercial,Customer Support Group,Building Repairs & Maintenance,60097200,HERTEL (UK) LTD,34.91,05/02/2018
Commercial,Customer Support Group,Building Repairs & Maintenance,60097201,HERTEL (UK) LTD,34.91,01/02/2018
Commercial,Customer Support Group,Building Repairs & Maintenance,60097202,HERTEL (UK) LTD,34.91,05/02/2018
Commercial,Customer Support Group,Building Repairs & Maintenance,60097203,HERTEL (UK) LTD,34.91,01/02/2018
Commercial,Customer Support Group,Building Repairs & Maintenance,60097207,HERTEL (UK) LTD,34.91,01/02/2018
Commercial,Customer Support Group,Building Repairs & Maintenance,60097208,HERTEL (UK) LTD,34.91,01/02/2018
Commercial,Customer Support Group,Building Repairs & Maintenance,60097209,HERTEL (UK) LTD,34.91,05/02/2018
Commercial,Customer Support Group,Building Repairs & Maintenance,60097211,HERTEL (UK) LTD,34.91,05/02/2018
Commercial,Customer Support Group,Building Repairs & Maintenance,60097212,HERTEL (UK) LTD,90.00,01/02/2018
Commercial,Customer Support Group,Building Repairs & Maintenance,60097213,HERTEL (UK) LTD,57.00,01/02/2018
Commercial,Customer Support Group,Building Repairs & Maintenance,60097214,HERTEL (UK) LTD,34.91,05/02/2018
Commercial,Customer Support Group,Building Repairs & Maintenance,60097217,HERTEL (UK) LTD,34.91,01/02/2018
Commercial,Customer Support Group,Building Repairs & Maintenance,60097219,HERTEL (UK) LTD,100.00,01/02/2018
Commercial,Customer Support Group,Building Repairs & Maintenance,60097221,HERTEL (UK) LTD,34.91,01/02/2018
Commercial,Customer Support Group,Building Repairs & Maintenance,60097225,HERTEL (UK) LTD,34.91,01/02/2018
Commercial,Customer Support Group,Building Repairs & Maintenance,60097229,HERTEL (UK) LTD,134.78,01/02/2018
Commercial,Customer Support Group,Building Repairs & Maintenance,60097232,HERTEL (UK) LTD,34.91,05/02/2018
Commercial,Customer Support Group,Building Repairs & Maintenance,60097234,HERTEL (UK) LTD,34.91,05/02/2018
Commercial,Customer Support Group,Building Repairs & Maintenance,60097238,HERTEL (UK) LTD,34.91,05/02/2018
Commercial,Customer Support Group,Building Repairs & Maintenance,60097240,HERTEL (UK) LTD,200.00,01/02/2018
Commercial,Customer Support Group,Building Repairs & Maintenance,60097241,HERTEL (UK) LTD,34.91,01/02/2018
Commercial,Customer Support Group,Building Repairs & Maintenance,60097242,HERTEL (UK) LTD,34.91,05/02/2018
Commercial,Customer Support Group,Building Repairs & Maintenance,60097243,HERTEL (UK) LTD,34.91,01/02/2018
Commercial,Customer Support Group,Building Repairs & Maintenance,60097253,HERTEL (UK) LTD,34.91,01/02/2018
Commercial,Customer Support Group,Building Repairs & Maintenance,60097254,HERTEL (UK) LTD,50.00,01/02/2018
Commercial,Customer Support Group,Building Repairs & Maintenance,60097257,HERTEL (UK) LTD,29.00,01/02/2018
Commercial,Customer Support Group,Building Repairs & Maintenance,60097258,HERTEL (UK) LTD,34.91,01/02/2018
Commercial,Customer Support Group,Building Repairs & Maintenance,60097261,HERTEL (UK) LTD,34.91,01/02/2018
Commercial,Customer Support Group,Building Repairs & Maintenance,60097262,HERTEL (UK) LTD,34.91,01/02/2018
Commercial,Customer Support Group,Building Repairs & Maintenance,60097263,HERTEL (UK) LTD,45.00,01/02/2018
Commercial,Customer Support Group,Building Repairs & Maintenance,60097266,HERTEL (UK) LTD,34.91,01/02/2018
Commercial,Customer Support Group,Building Repairs & Maintenance,60097270,HERTEL (UK) LTD,34.91,05/02/2018
Commercial,Customer Support Group,Building Repairs & Maintenance,60097271,HERTEL (UK) LTD,470.00,01/02/2018
Commercial,Customer Support Group,Building Repairs & Maintenance,60097277,HERTEL (UK) LTD,34.91,01/02/2018
Commercial,Customer Support Group,Building Repairs & Maintenance,60097279,HERTEL (UK) LTD,34.91,05/02/2018
Commercial,Customer Support Group,Building Repairs & Maintenance,60097283,HERTEL (UK) LTD,34.91,01/02/2018
Commercial,Customer Support Group,Building Repairs & Maintenance,60097288,HERTEL (UK) LTD,34.91,02/02/2018
Commercial,Customer Support Group,Building Repairs & Maintenance,60097696,HERTEL (UK) LTD,75.00,09/02/2018
Commercial,Customer Support Group,Building Repairs & Maintenance,60097745,HERTEL (UK) LTD,165.00,09/02/2018
Commercial,Customer Support Group,Building Repairs & Maintenance,60097873,HERTEL (UK) LTD,104.74,12/02/2018
Commercial,Customer Support Group,Building Repairs & Maintenance,60098143,HERTEL (UK) LTD,500.00,15/02/2018
Commercial,Customer Support Group,Building Repairs & Maintenance,60098482,HERTEL (UK) LTD,360.00,22/02/2018
Commercial,Customer Support Group,Building Repairs & Maintenance,60098484,HERTEL (UK) LTD,34.91,22/02/2018
Commercial,Customer Support Group,Building Repairs & Maintenance,60098493,HERTEL (UK) LTD,135.00,22/02/2018
Commercial,Customer Support Group,Building Repairs & Maintenance,60098498,HERTEL (UK) LTD,34.91,22/02/2018
Commercial,Customer Support Group,Building Repairs & Maintenance,60098505,HERTEL (UK) LTD,34.91,22/02/2018
Commercial,Customer Support Group,Building Repairs & Maintenance,60098506,HERTEL (UK) LTD,"1,606.08",20/02/2018
Commercial,Customer Support Group,Building Repairs & Maintenance,60098519,HERTEL (UK) LTD,34.91,22/02/2018
Commercial,Customer Support Group,Building Repairs & Maintenance,60098520,HERTEL (UK) LTD,34.91,22/02/2018
Commercial,Customer Support Group,Building Repairs & Maintenance,60098533,HERTEL (UK) LTD,34.91,22/02/2018
Commercial,Customer Support Group,Building Repairs & Maintenance,60098536,HERTEL (UK) LTD,670.00,20/02/2018
Commercial,Customer Support Group,Building Repairs & Maintenance,60098538,HERTEL (UK) LTD,250.00,20/02/2018
Commercial,Customer Support Group,Building Repairs & Maintenance,60098539,HERTEL (UK) LTD,34.91,22/02/2018
Commercial,Customer Support Group,Building Repairs & Maintenance,60098545,HERTEL (UK) LTD,45.00,20/02/2018
Commercial,Customer Support Group,Building Repairs & Maintenance,60098548,HERTEL (UK) LTD,29.00,20/02/2018
Commercial,Customer Support Group,Building Repairs & Maintenance,60098550,HERTEL (UK) LTD,164.70,22/02/2018
Commercial,Customer Support Group,Building Repairs & Maintenance,60098555,HERTEL (UK) LTD,34.91,22/02/2018
Commercial,Customer Support Group,Building Repairs & Maintenance,60098560,HERTEL (UK) LTD,34.91,22/02/2018
Commercial,Customer Support Group,Building Repairs & Maintenance,60098567,HERTEL (UK) LTD,90.00,22/02/2018
Commercial,Customer Support Group,Building Repairs & Maintenance,60098570,HERTEL (UK) LTD,34.91,22/02/2018
Commercial,Customer Support Group,Building Repairs & Maintenance,60098581,HERTEL (UK) LTD,"1,605.14",20/02/2018
Commercial,Customer Support Group,Building Repairs & Maintenance,60098589,HERTEL (UK) LTD,34.91,22/02/2018
Commercial,Customer Support Group,Building Repairs & Maintenance,60098592,HERTEL (UK) LTD,34.91,22/02/2018
Commercial,Customer Support Group,Building Repairs & Maintenance,60098594,HERTEL (UK) LTD,120.00,21/02/2018
Commercial,Customer Support Group,Building Repairs & Maintenance,60098598,HERTEL (UK) LTD,34.91,22/02/2018
Commercial,Customer Support Group,Building Repairs & Maintenance,60098599,HERTEL (UK) LTD,34.91,22/02/2018
Commercial,Customer Support Group,Building Repairs & Maintenance,60098604,HERTEL (UK) LTD,32.00,20/02/2018
Commercial,Customer Support Group,Building Repairs & Maintenance,60098607,HERTEL (UK) LTD,34.91,22/02/2018
Commercial,Customer Support Group,Building Repairs & Maintenance,60098608,HERTEL (UK) LTD,34.91,22/02/2018
Commercial,Customer Support Group,Building Repairs & Maintenance,60098610,HERTEL (UK) LTD,34.91,22/02/2018
Commercial,Customer Support Group,Building Repairs & Maintenance,60098615,HERTEL (UK) LTD,75.00,20/02/2018
Commercial,Customer Support Group,Building Repairs & Maintenance,60098616,HERTEL (UK) LTD,34.91,22/02/2018
Commercial,Customer Support Group,Building Repairs & Maintenance,60098617,HERTEL (UK) LTD,29.00,20/02/2018
Commercial,Customer Support Group,Building Repairs & Maintenance,60098620,HERTEL (UK) LTD,34.91,22/02/2018
Commercial,Customer Support Group,Building Repairs & Maintenance,60098621,HERTEL (UK) LTD,34.91,21/02/2018
Commercial,Customer Support Group,Building Repairs & Maintenance,60098624,HERTEL (UK) LTD,34.91,22/02/2018
Commercial,Customer Support Group,Building Repairs & Maintenance,60098625,HERTEL (UK) LTD,34.91,21/02/2018
Commercial,Customer Support Group,Building Repairs & Maintenance,60098626,HERTEL (UK) LTD,34.91,22/02/2018
Commercial,Customer Support Group,Building Repairs & Maintenance,60098629,HERTEL (UK) LTD,34.91,21/02/2018
Commercial,Customer Support Group,Building Repairs & Maintenance,60098631,HERTEL (UK) LTD,34.91,22/02/2018
Commercial,Customer Support Group,Building Repairs & Maintenance,60098634,HERTEL (UK) LTD,34.91,21/02/2018
Commercial,Customer Support Group,Building Repairs & Maintenance,60098637,HERTEL (UK) LTD,179.55,22/02/2018
Commercial,Customer Support Group,Building Repairs & Maintenance,60098638,HERTEL (UK) LTD,119.70,22/02/2018
Commercial,Customer Support Group,Building Repairs & Maintenance,60098647,HERTEL (UK) LTD,104.74,22/02/2018
Commercial,Customer Support Group,Building Repairs & Maintenance,60098649,HERTEL (UK) LTD,34.91,22/02/2018
Commercial,Customer Support Group,Building Repairs & Maintenance,60098652,HERTEL (UK) LTD,34.91,21/02/2018
Commercial,Customer Support Group,Building Repairs & Maintenance,60098655,HERTEL (UK) LTD,34.91,22/02/2018
Commercial,Customer Support Group,Building Repairs & Maintenance,60098656,HERTEL (UK) LTD,34.91,21/02/2018
Commercial,Customer Support Group,Building Repairs & Maintenance,60098658,HERTEL (UK) LTD,34.91,22/02/2018
Commercial,Customer Support Group,Building Repairs & Maintenance,60098659,HERTEL (UK) LTD,34.91,22/02/2018
Commercial,Customer Support Group,Building Repairs & Maintenance,60098661,HERTEL (UK) LTD,34.91,21/02/2018
Commercial,Customer Support Group,Building Repairs & Maintenance,60098668,HERTEL (UK) LTD,34.91,22/02/2018
Commercial,Customer Support Group,Building Repairs & Maintenance,60098669,HERTEL (UK) LTD,34.91,21/02/2018
Commercial,Customer Support Group,Building Repairs & Maintenance,60098671,HERTEL (UK) LTD,34.91,22/02/2018
Commercial,Customer Support Group,Building Repairs & Maintenance,60098672,HERTEL (UK) LTD,34.91,22/02/2018
Commercial,Customer Support Group,Building Repairs & Maintenance,60098673,HERTEL (UK) LTD,34.91,21/02/2018
Commercial,Customer Support Group,Building Repairs & Maintenance,60098677,HERTEL (UK) LTD,34.91,22/02/2018
Commercial,Customer Support Group,Building Repairs & Maintenance,60098678,HERTEL (UK) LTD,34.91,22/02/2018
Commercial,Customer Support Group,Building Repairs & Maintenance,60098681,HERTEL (UK) LTD,34.91,21/02/2018
Commercial,Customer Support Group,Building Repairs & Maintenance,60098683,HERTEL (UK) LTD,34.91,21/02/2018
Commercial,Customer Support Group,Building Repairs & Maintenance,60098686,HERTEL (UK) LTD,34.91,21/02/2018
Commercial,Customer Support Group,Building Repairs & Maintenance,60098687,HERTEL (UK) LTD,34.91,21/02/2018
Commercial,Customer Support Group,Building Repairs & Maintenance,60098697,HERTEL (UK) LTD,34.91,21/02/2018
Commercial,Customer Support Group,Building Repairs & Maintenance,60098698,HERTEL (UK) LTD,34.91,21/02/2018
Commercial,Customer Support Group,Building Repairs & Maintenance,60098699,HERTEL (UK) LTD,34.91,21/02/2018
Commercial,Customer Support Group,Building Repairs & Maintenance,60098706,HERTEL (UK) LTD,179.55,22/02/2018
Commercial,Customer Support Group,Building Repairs & Maintenance,60098707,HERTEL (UK) LTD,34.91,21/02/2018
Commercial,Customer Support Group,Building Repairs & Maintenance,60098711,HERTEL (UK) LTD,34.91,21/02/2018
Commercial,Customer Support Group,Building Repairs & Maintenance,60098712,HERTEL (UK) LTD,34.91,21/02/2018
Commercial,Customer Support Group,Building Repairs & Maintenance,60098714,HERTEL (UK) LTD,34.91,21/02/2018
Commercial,Customer Support Group,Building Repairs & Maintenance,60098715,HERTEL (UK) LTD,34.91,21/02/2018
Commercial,Customer Support Group,Building Repairs & Maintenance,60098717,HERTEL (UK) LTD,34.91,21/02/2018
Commercial,Customer Support Group,Building Repairs & Maintenance,60098727,HERTEL (UK) LTD,34.91,21/02/2018
Commercial,Customer Support Group,Building Repairs & Maintenance,60098740,HERTEL (UK) LTD,34.91,21/02/2018
Commercial,Customer Support Group,Building Repairs & Maintenance,60098741,HERTEL (UK) LTD,34.91,21/02/2018
Commercial,Customer Support Group,Building Repairs & Maintenance,60098743,HERTEL (UK) LTD,34.91,21/02/2018
Commercial,Customer Support Group,Building Repairs & Maintenance,60098748,HERTEL (UK) LTD,34.91,22/02/2018
Commercial,Customer Support Group,Building Repairs & Maintenance,60098749,HERTEL (UK) LTD,34.91,22/02/2018
Commercial,Customer Support Group,Building Repairs & Maintenance,60098750,HERTEL (UK) LTD,34.91,22/02/2018
Commercial,Customer Support Group,Building Repairs & Maintenance,60098751,HERTEL (UK) LTD,34.91,21/02/2018
Commercial,Customer Support Group,Building Repairs & Maintenance,60098753,HERTEL (UK) LTD,34.91,21/02/2018
Commercial,Customer Support Group,Building Repairs & Maintenance,60098761,HERTEL (UK) LTD,34.91,22/02/2018
Commercial,Customer Support Group,Building Repairs & Maintenance,60098977,HERTEL (UK) LTD,64.00,26/02/2018
Commercial,Customer Support Group,Building Repairs & Maintenance,60098980,HERTEL (UK) LTD,628.99,26/02/2018
Commercial,Customer Support Group,Building Repairs & Maintenance,60098981,HERTEL (UK) LTD,"1,605.14",26/02/2018
Commercial,Customer Support Group,Building Repairs & Maintenance,60098990,HERTEL (UK) LTD,209.48,26/02/2018
Commercial,Customer Support Group,Building Repairs & Maintenance,60098996,HERTEL (UK) LTD,254.59,26/02/2018
Commercial,Customer Support Group,Building Repairs & Maintenance,60099002,HERTEL (UK) LTD,359.50,26/02/2018
Commercial,Customer Support Group,Building Repairs & Maintenance,60099015,HERTEL (UK) LTD,179.55,26/02/2018
Commercial,Customer Support Group,Building Repairs & Maintenance,60099052,HERTEL (UK) LTD,625.00,26/02/2018
Commercial,Customer Support Group,Building Repairs & Maintenance,60097491,PUBLIC CLOCKS LTD,127.84,09/02/2018
Commercial,Customer Support Group,Building Repairs & Maintenance,60097016,TANN SYNCHRONOME LTD,"1,211.80",08/02/2018
Commercial,Customer Support Group,Building Repairs & Maintenance,60097834,TANN SYNCHRONOME LTD,250.00,14/02/2018
Commercial,Customer Support Group,Building Repairs & Maintenance,60097915,TANN SYNCHRONOME LTD,250.00,12/02/2018
Commercial,Customer Support Group,Building Repairs & Maintenance,60098639,TANN SYNCHRONOME LTD,777.67,27/02/2018
Commercial,Customer Support Group,Building Repairs & Maintenance,60098640,TANN SYNCHRONOME LTD,"2,132.92",28/02/2018
Commercial,Customer Support Group,Building Repairs & Maintenance,60098674,TANN SYNCHRONOME LTD,650.08,27/02/2018
Commercial,Customer Support Group,Building Repairs & Maintenance,60098713,TANN SYNCHRONOME LTD,590.98,21/02/2018
Commercial,Customer Support Group,Building Repairs & Maintenance,60098178,TECHNICAL SURFACES LTD,275.00,15/02/2018
Commercial,Customer Support Group,Building Repairs & Maintenance,60098685,TECHNICAL SURFACES LTD,465.00,28/02/2018
Commercial,Customer Support Group,Building Repairs & Maintenance,60096489,RGE SERVICES,84.65,06/02/2018
Commercial,Customer Support Group,Building Repairs & Maintenance,60096708,RGE SERVICES,64.13,06/02/2018
Commercial,Customer Support Group,Building Repairs & Maintenance,60097061,RGE SERVICES,130.98,13/02/2018
Commercial,Customer Support Group,Building Repairs & Maintenance,60097181,RGE SERVICES,"2,754.82",01/02/2018
Commercial,Customer Support Group,Building Repairs & Maintenance,60097190,RGE SERVICES,29.08,01/02/2018
Commercial,Customer Support Group,Building Repairs & Maintenance,60097791,RGE SERVICES,62.00,09/02/2018
Commercial,Customer Support Group,Building Repairs & Maintenance,60097797,RGE SERVICES,602.67,13/02/2018
Commercial,Customer Support Group,Building Repairs & Maintenance,60097818,RGE SERVICES,115.65,21/02/2018
Commercial,Customer Support Group,Building Repairs & Maintenance,60097941,RGE SERVICES,47.03,13/02/2018
Commercial,Customer Support Group,Building Repairs & Maintenance,60098232,RGE SERVICES,179.55,16/02/2018
Commercial,Customer Support Group,Building Repairs & Maintenance,60098328,RGE SERVICES,94.05,16/02/2018
Commercial,Customer Support Group,Building Repairs & Maintenance,60098561,RGE SERVICES,116.18,20/02/2018
Commercial,Customer Support Group,Building Repairs & Maintenance,60098940,RGE SERVICES,342.50,26/02/2018
Commercial,Customer Support Group,Building Repairs & Maintenance,60096958,BLUE 9 SECURITY LIMITED,15.57,23/02/2018
Commercial,Customer Support Group,Other Services,60097458,BLUE 9 SECURITY LIMITED,214.88,08/02/2018
Commercial,Customer Support Group,Other Services,60097475,BLUE 9 SECURITY LIMITED,53.72,08/02/2018
Commercial,Customer Support Group,Other Services,60097597,BLUE 9 SECURITY LIMITED,23.36,08/02/2018
Commercial,Customer Support Group,Building Repairs & Maintenance,60097478,EPC ASSURE LTD,298.00,13/02/2018
Commercial,Customer Support Group,Building Repairs & Maintenance,60097072,AJS LTD,94.08,01/02/2018
Commercial,Customer Support Group,Building Repairs & Maintenance,60097091,AJS LTD,133.28,01/02/2018
Commercial,Customer Support Group,Building Repairs & Maintenance,60097106,AJS LTD,7.84,01/02/2018
Commercial,Customer Support Group,Building Repairs & Maintenance,60097131,AJS LTD,94.08,01/02/2018
Commercial,Customer Support Group,Building Repairs & Maintenance,60097226,AJS LTD,70.56,01/02/2018
Commercial,Customer Support Group,Building Repairs & Maintenance,60097848,AJS LTD,23.52,12/02/2018
Commercial,Customer Support Group,Building Repairs & Maintenance,60097859,AJS LTD,94.08,12/02/2018
Commercial,Customer Support Group,Building Repairs & Maintenance,60097914,AJS LTD,70.56,12/02/2018
Commercial,Customer Support Group,Building Repairs & Maintenance,60095397,S W BRUCE & CO LTD,525.00,08/02/2018
Commercial,Customer Support Group,Building Repairs & Maintenance,60096121,S W BRUCE & CO LTD,66.56,08/02/2018
Commercial,Customer Support Group,Building Repairs & Maintenance,60096139,S W BRUCE & CO LTD,57.00,08/02/2018
Commercial,Customer Support Group,Building Repairs & Maintenance,60096192,S W BRUCE & CO LTD,117.15,08/02/2018
Commercial,Customer Support Group,Building Repairs & Maintenance,60096206,S W BRUCE & CO LTD,276.30,08/02/2018
Commercial,Customer Support Group,Building Repairs & Maintenance,60096235,S W BRUCE & CO LTD,106.81,08/02/2018
Commercial,Customer Support Group,Building Repairs & Maintenance,60096299,S W BRUCE & CO LTD,65.00,08/02/2018
Commercial,Customer Support Group,Building Repairs & Maintenance,60096344,S W BRUCE & CO LTD,150.65,14/02/2018
Commercial,Customer Support Group,Building Repairs & Maintenance,60097292,S W BRUCE & CO LTD,198.95,08/02/2018
Commercial,Customer Support Group,Building Repairs & Maintenance,60097297,S W BRUCE & CO LTD,65.00,08/02/2018
Commercial,Customer Support Group,Building Repairs & Maintenance,60097342,S W BRUCE & CO LTD,45.00,08/02/2018
Commercial,Customer Support Group,Building Repairs & Maintenance,60097350,S W BRUCE & CO LTD,68.00,08/02/2018
Commercial,Customer Support Group,Building Repairs & Maintenance,60097638,S W BRUCE & CO LTD,44.57,08/02/2018
Commercial,Customer Support Group,Building Repairs & Maintenance,60097708,S W BRUCE & CO LTD,72.00,09/02/2018
Commercial,Customer Support Group,Building Repairs & Maintenance,60097710,S W BRUCE & CO LTD,75.00,09/02/2018
Commercial,Customer Support Group,Building Repairs & Maintenance,60097716,S W BRUCE & CO LTD,124.00,09/02/2018
Commercial,Customer Support Group,Building Repairs & Maintenance,60097733,S W BRUCE & CO LTD,75.00,09/02/2018
Commercial,Customer Support Group,Building Repairs & Maintenance,60097747,S W BRUCE & CO LTD,62.10,09/02/2018
Commercial,Customer Support Group,Building Repairs & Maintenance,60097749,S W BRUCE & CO LTD,91.89,09/02/2018
Commercial,Customer Support Group,Building Repairs & Maintenance,60097880,S W BRUCE & CO LTD,114.00,12/02/2018
Commercial,Customer Support Group,Building Repairs & Maintenance,60097927,S W BRUCE & CO LTD,32.00,12/02/2018
Commercial,Customer Support Group,Building Repairs & Maintenance,60097963,S W BRUCE & CO LTD,25.00,13/02/2018
Commercial,Customer Support Group,Building Repairs & Maintenance,60097979,S W BRUCE & CO LTD,25.00,13/02/2018
Commercial,Customer Support Group,Building Repairs & Maintenance,60097997,S W BRUCE & CO LTD,55.00,13/02/2018
Commercial,Customer Support Group,Building Repairs & Maintenance,60097999,S W BRUCE & CO LTD,139.01,13/02/2018
Commercial,Customer Support Group,Building Repairs & Maintenance,60098219,S W BRUCE & CO LTD,57.00,16/02/2018
Commercial,Customer Support Group,Building Repairs & Maintenance,60098235,S W BRUCE & CO LTD,75.00,16/02/2018
Commercial,Customer Support Group,Building Repairs & Maintenance,60098300,S W BRUCE & CO LTD,213.10,16/02/2018
Commercial,Customer Support Group,Equipment and Materials Purcha,60098622,ISS MEDICLEAN,214.20,22/02/2018
Commercial,Customer Support Group,Equipment and Materials Purcha,60098679,ISS MEDICLEAN,64.95,21/02/2018
Commercial,Customer Support Group,Equipment and Materials Purcha,60098703,ISS MEDICLEAN,9.20,21/02/2018
Commercial,Customer Support Group,Equipment and Materials Purcha,60098705,ISS MEDICLEAN,23.55,21/02/2018
Commercial,Customer Support Group,Equipment and Materials Purcha,60098732,ISS MEDICLEAN,9.30,21/02/2018
Commercial,Customer Support Group,Equipment and Materials Purcha,60098752,ISS MEDICLEAN,84.00,21/02/2018
Commercial,Customer Support Group,Equipment and Materials Purcha,60098757,ISS MEDICLEAN,40.30,21/02/2018
Commercial,Customer Support Group,Building Repairs & Maintenance,60097717,THAMES LABORATORIES,310.00,28/02/2018
Commercial,Customer Support Group,Building Repairs & Maintenance,60097782,THAMES LABORATORIES,675.00,09/02/2018
Commercial,Customer Support Group,Building Repairs & Maintenance,60097794,THAMES LABORATORIES,675.00,09/02/2018
Commercial,Customer Support Group,Building Repairs & Maintenance,60097721,K G YOUNG LTD,"9,818.00",27/02/2018
Commercial,Customer Support Group,Electricity,60098066,SCOTTISH POWER GROUP,732.41,16/02/2018
Commercial,Customer Support Group,Electricity,60098081,SCOTTISH POWER GROUP,"1,181.85",16/02/2018
Commercial,Customer Support Group,Electricity,60098099,SCOTTISH POWER GROUP,"1,117.37",16/02/2018
Commercial,Customer Support Group,Electricity,60098151,SCOTTISH POWER GROUP,922.50,16/02/2018
Commercial,Customer Support Group,Electricity,60098161,SCOTTISH POWER GROUP,"1,064.71",16/02/2018
Commercial,Customer Support Group,Electricity,60098185,SCOTTISH POWER GROUP,882.65,16/02/2018
Commercial,Customer Support Group,Electricity,10013996,E-ON ENERGY,15.77,22/02/2018
Commercial,Customer Support Group,Electricity,10013997,E-ON ENERGY,29.41,22/02/2018
Commercial,Customer Support Group,Electricity,60096230,E-ON ENERGY,219.29,22/02/2018
Commercial,Customer Support Group,Electricity,60096799,E-ON ENERGY,23.60,22/02/2018
Commercial,Customer Support Group,Electricity,60096816,E-ON ENERGY,6.93,22/02/2018
Commercial,Customer Support Group,Electricity,60099091,E-ON ENERGY,8.12,26/02/2018
Commercial,Customer Support Group,Electricity,60099126,E-ON ENERGY,646.44,26/02/2018
Commercial,Customer Support Group,Electricity,60099135,E-ON ENERGY,854.03,26/02/2018
Commercial,Customer Support Group,Electricity,60099136,E-ON ENERGY,623.79,26/02/2018
Commercial,Customer Support Group,Electricity,60096971,BRITISH GAS BUSINESS,215.98,08/02/2018
Commercial,Customer Support Group,Electricity,60096974,BRITISH GAS BUSINESS,59.05,08/02/2018
Commercial,Customer Support Group,Electricity,60096976,BRITISH GAS BUSINESS,60.73,08/02/2018
Commercial,Customer Support Group,Electricity,60096996,BRITISH GAS BUSINESS,107.35,08/02/2018
Commercial,Customer Support Group,Water Services,60097373,AFFINITY WATER LIMITED,193.77,05/02/2018
Commercial,Customer Support Group,Water Services,60097869,AFFINITY WATER LIMITED,277.53,12/02/2018
Commercial,Customer Support Group,Water Services,60097986,AFFINITY WATER LIMITED,157.50,13/02/2018
Commercial,Customer Support Group,Water Services,60099462,AFFINITY WATER LIMITED,77.39,28/02/2018
Commercial,Customer Support Group,Water Services,60097109,CASTLE WATER LTD,239.38,01/02/2018
Commercial,Customer Support Group,Ttl IT & Comms,60097996,VODAFONE LTD (BILLS ONLY),458.32,13/02/2018
Commercial,Customer Support Group,Ttl IT & Comms,60097953,TELEFONICA UK LTD,"3,502.15",13/02/2018
Commercial,Customer Support Group,Postage,60095826,SETON LTD,109.90,01/02/2018
Commercial,Customer Support Group,Postage,60096487,ELMSTOK LIMITED,597.00,08/02/2018
Commercial,Customer Support Group,Postage,60097335,ELMSTOK LIMITED,696.00,15/02/2018
Commercial,Customer Support Group,Printing-Contract,60097446,ROYAL MAIL GROUP LIMITED,126.38,06/02/2018
Commercial,Customer Support Group,Postage,60097494,ROYAL MAIL GROUP LIMITED,107.35,06/02/2018
Commercial,Customer Support Group,Postage,60098053,WEMBLEY LAMINATIONS LTD:,627.50,15/02/2018
Commercial,Customer Support Group,Postage,60098394,FINANCIAL DATA MANAGEMENT LTD,60.00,21/02/2018
Commercial,Customer Support Group,Postage,60098398,FINANCIAL DATA MANAGEMENT LTD,80.00,20/02/2018
Commercial,Customer Support Group,Electricity,60096747,KENT COUNTY COUNCIL (KCS),"1,978.04",05/02/2018
Commercial,Customer Support Group,Electricity,60096772,KENT COUNTY COUNCIL (KCS),"1,763.40",05/02/2018
Commercial,Customer Support Group,Electricity,60097898,KENT COUNTY COUNCIL (KCS),"2,610.10",20/02/2018
Commercial,Customer Support Group,Cleaning and domestic material,60097534,HERTFORDSHIRE COUNTY COUNCIL,369.08,07/02/2018
Commercial,Customer Support Group,Building Repairs & Maintenance,60098492,HERTEL (UK) LTD,34.91,22/02/2018
Commercial,Customer Support Group,Building Repairs & Maintenance,60098628,HERTEL (UK) LTD,34.91,21/02/2018
Commercial,Customer Support Group,Vending Machines,60098928,SIEMENS FINANCIAL SERVICES LTD,"2,543.89",26/02/2018
Commercial,Customer Support Group,Other Services,60097463,BLUE 9 SECURITY LIMITED,"22,773.84",08/02/2018
Commercial,Customer Support Group,Other Services,60097508,BLUE 9 SECURITY LIMITED,"8,501.22",08/02/2018
Commercial,Customer Support Group,Rents,60098433,NETWORK RAIL ACCOUNTS RECEIVABLE,"20,375.00",19/02/2018
Commercial,Customer Support Group,Rents,60098448,NETWORK RAIL ACCOUNTS RECEIVABLE,"4,500.00",19/02/2018
Commercial,Customer Support Group,Grounds maintenance,60096852,RIBBEX UK LTD,764.75,08/02/2018
Commercial,Customer Support Group,Building Repairs & Maintenance,60095512,CHOICE FIRE & SECURITY SOLUTIONS LTD,"1,683.00",01/02/2018
Commercial,Customer Support Group,Furniture-Purchase-Repair,80015022,FRESHWATERTH,378.00,14/02/2018
Commercial,Customer Support Group,CSG Services Contract Payment,60097650,CAPITA BUSINESS SERVICES LTD,"18,961.23",21/02/2018
Commercial,Customer Support Group,Building Repairs & Maintenance,60097250,HERTEL (UK) LTD,625.00,01/02/2018
Commercial,Customer Support Group,Building Repairs & Maintenance,60097161,RGE SERVICES,871.82,01/02/2018
Commercial,Customer Support Group,Building Repairs & Maintenance,60097274,RGE SERVICES,"4,044.14",01/02/2018
Commercial,Customer Support Group,Other Services,60097844,BLUE 9 SECURITY LIMITED,"1,058.00",12/02/2018
Commercial,Customer Support Group,Other Services,60097899,BLUE 9 SECURITY LIMITED,"11,584.08",12/02/2018
Commercial,Housing Needs Resources,Professional Services,60097215,THE BARNETGROUP LIMITED,"197,730.07",08/02/2018
Commercial,Housing Needs Resources,Other Services,60097637,THE BARNETGROUP LIMITED,"12,642.54",08/02/2018
Commercial,Housing Needs Resources,Professional Services,60098202,THE BARNETGROUP LIMITED,"1,125,139.51",15/02/2018
Commercial,Housing Needs Resources,Private Contractors - Third Pa,60098501,THE BARNETGROUP LIMITED,"1,853,222.34",26/02/2018
Commercial,Housing Needs Resources,Other Services,60098569,THE BARNETGROUP LIMITED,"23,551.80",26/02/2018
Commercial,Housing Needs Resources,Other Services,60098606,THE BARNETGROUP LIMITED,"12,642.54",26/02/2018
Commercial,HRA,Consultants Fees,60097820,THE BARNETGROUP LIMITED,594.75,09/02/2018
Commercial,HRA,Consultants Fees,60098078,TROWERS & HAMLINS,725.00,16/02/2018
Commercial,HRA,Consultants Fees,60096604,PRIORITY ESTATES PROJECT LTD,"1,746.25",15/02/2018
Commercial,HRA,Consultants Fees,60095991,PRIORITY ESTATES PROJECT LTD,"2,794.00",01/02/2018
Commercial,HRA,Consultants Fees,60096937,PRIORITY ESTATES PROJECT LTD,"2,444.75",22/02/2018
Commercial,HRA,Private Contractors - Third Pa,20035683,FAMILY MOSAIC,394.02,21/02/2018
Commercial,HRA,Other Services,60098515,THE BARNETGROUP LIMITED,"1,947,205.14",26/02/2018
Commercial,HRA,Consultants Fees,60097067,THE BARNETGROUP LIMITED,"1,092.70",14/02/2018
Commercial,HRA,Private Contractors - Third Pa,80015257,TOLLERS SOLICITORS,"3,500.00",08/02/2018
Commercial,HRA,Private Contractors - Third Pa,80015258,CARERS UK,"3,500.00",08/02/2018
Commercial,HRA,Private Contractors - Third Pa,80015364,BOUNDS GREEN GROUP PRACTICE,"3,500.00",08/02/2018
Commercial,HRA,Private Contractors - Third Pa,80015478,THE CONSULTANCY,"3,500.00",14/02/2018
Commercial,HRA,Private Contractors - Third Pa,80015417,REDACTED - PERSONAL DATA,"3,500.00",12/02/2018
Commercial,HRA,Consultants Fees,60086211,THE BARNETGROUP LIMITED,"31,493.60",20/02/2018
Commercial,HRA,Consultants Fees,60097346,THE BARNETGROUP LIMITED,"475,004.99",02/02/2018
Commercial,HRA,Consultants Fees,60098263,ALLIES AND MORRRISON,"89,750.00",16/02/2018
Commercial,HRA,Consultants Fees,60098301,ALLIES AND MORRRISON,"8,000.00",16/02/2018
Commercial,HRA,Consultants Fees,60098304,ALLIES AND MORRRISON,"3,059.64",16/02/2018
Commercial,Parking & Infrastructure,Equipment and Materials Purcha,60096245,BARNET LOCK CENTRE LTD.,81.42,02/02/2018
Commercial,Parking & Infrastructure,Equipment and Materials Repair,60097064,RM COUNTRYSIDE SERVICES LTD,"6,100.00",07/02/2018
Commercial,Parking & Infrastructure,Equipment and Materials Purcha,60098618,RM COUNTRYSIDE SERVICES LTD,"1,213.00",21/02/2018
Commercial,Parking & Infrastructure,Equipment and Materials Purcha,60095748,GREENHAM TRADING LIMITED,598.00,07/02/2018
Commercial,Parking & Infrastructure,Equipment and Materials Purcha,60097855,RM COUNTRYSIDE SERVICES LTD,270.00,14/02/2018
Commercial,Parking & Infrastructure,Equipment and Materials Purcha,60096390,LAFARGE TARMAC TRADING LIMITED,108.26,06/02/2018
Commercial,Parking & Infrastructure,Equipment and Materials Purcha,60096473,LAFARGE TARMAC TRADING LIMITED,115.47,08/02/2018
Commercial,Parking & Infrastructure,Equipment and Materials Purcha,60096525,LAFARGE TARMAC TRADING LIMITED,257.75,08/02/2018
Commercial,Parking & Infrastructure,Equipment and Materials Purcha,60096731,LAFARGE TARMAC TRADING LIMITED,148.46,15/02/2018
Commercial,Parking & Infrastructure,Equipment and Materials Purcha,60096757,LAFARGE TARMAC TRADING LIMITED,105.16,13/02/2018
Commercial,Parking & Infrastructure,Equipment and Materials Purcha,60096812,LAFARGE TARMAC TRADING LIMITED,105.16,15/02/2018
Commercial,Parking & Infrastructure,Equipment and Materials Purcha,60097239,LAFARGE TARMAC TRADING LIMITED,107.22,22/02/2018
Commercial,Parking & Infrastructure,Equipment and Materials Purcha,60097423,LAFARGE TARMAC TRADING LIMITED,107.22,22/02/2018
Commercial,Parking & Infrastructure,Equipment and Materials Purcha,60097511,LAFARGE TARMAC TRADING LIMITED,228.89,27/02/2018
Commercial,Parking & Infrastructure,Equipment and Materials Purcha,60096524,CONSTRUCTION & CLADDING SERVICES LTD,600.00,14/02/2018
Commercial,Parking & Infrastructure,Fees and Charges,60098234,REDCORN LTD,570.00,16/02/2018
Commercial,Parking & Infrastructure,Fees and Charges,60098267,REDCORN LTD,190.00,19/02/2018
Commercial,Parking & Infrastructure,Fees and Charges,60098321,REDCORN LTD,934.00,16/02/2018
Commercial,Parking & Infrastructure,Other Services,60095849,LONDON COUNCILS,"24,664.00",06/02/2018
Commercial,Parking & Infrastructure,Other Services,60096513,LONDON COUNCILS,"34,087.86",14/02/2018
Commercial,Parking & Infrastructure,Stationery,40002710,OFFICE DEPOT UK LTD,15.89,05/02/2018
Commercial,Parking & Infrastructure,Other Services,60093766,PARKEON LIMITED,330.28,09/02/2018
Commercial,Parking & Infrastructure,Other Services,60096859,PARKEON LIMITED,"1,686.64",21/02/2018
Commercial,Parking & Infrastructure,Other Services,60096894,PARKEON LIMITED,810.00,21/02/2018
Commercial,Parking & Infrastructure,Electricity,60096351,BARNET LIGHTING SERVICES LTD,478.54,02/02/2018
Commercial,Parking & Infrastructure,Professional Services,60097371,NSL LTD,"23,981.24",05/02/2018
Commercial,Parking & Infrastructure,Professional Services,60097386,NSL LTD,"4,400.00",05/02/2018
Commercial,Parking & Infrastructure,Professional Services,60097393,NSL LTD,"14,480.00",05/02/2018
Commercial,Parking & Infrastructure,Other Services,60097396,NSL LTD,"1,908.30",05/02/2018
Commercial,Parking & Infrastructure,Other Services,60099197,NSL LTD,"2,220.60",27/02/2018
Commercial,Parking & Infrastructure,Software Licences & Support,60099279,NSL LTD,"37,186.74",27/02/2018
Commercial,Parking & Infrastructure,Software Licences & Support,60099285,NSL LTD,"8,197.83",27/02/2018
Commercial,Parking & Infrastructure,Miscellaneous Expenses,60099295,NSL LTD,"1,449.41",28/02/2018
Commercial,Parking & Infrastructure,Miscellaneous Expenses,60095190,OPENVIEW SECURITY SOLUTIONS LTD,"5,109.68",01/02/2018
Commercial,Parking & Infrastructure,Other Services,60097407,BARNET LIGHTING SERVICES LTD,"571,557.34",05/02/2018
Commercial,Public Health,Other Transfer Payments to Soc,60096788,CENTRAL LONDONCOMMUNITY HEALTHCARE,"356,000.00",23/02/2018
Commercial,Public Health,Professional Services,60096748,CENTRAL LONDONCOMMUNITY HEALTHCARE,"85,834.00",23/02/2018
Commercial,Public Health,Professional Services,60096790,CENTRAL LONDONCOMMUNITY HEALTHCARE,"9,583.00",23/02/2018
Commercial,Public Health,Professional Services,60096713,CENTRAL LONDONCOMMUNITY HEALTHCARE,"4,917.00",23/02/2018
Commercial,Regional Enterprise,Other Services,60097585,CONWAY AECOM LTD,"21,165.24",22/02/2018
Commercial,Regional Enterprise,Other Services,60097817,CONWAY AECOM LTD,"21,165.24",09/02/2018
Commercial,Regional Enterprise,Other Services,60095312,KENT COUNTY COUNCIL (KCS),17.72,28/02/2018
Commercial,Regional Enterprise,Other Services,60095353,KENT COUNTY COUNCIL (KCS),10.83,14/02/2018
Commercial,Regional Enterprise,Other Services,60097633,AFFINITY WATER LIMITED,31.76,15/02/2018
Commercial,Regional Enterprise,Other Services,60097645,AFFINITY WATER LIMITED,87.09,12/02/2018
Commercial,Regional Enterprise,Other Services,60097742,CASTLE WATER LTD,162.13,12/02/2018
Commercial,Regional Enterprise,Other Services,60097798,CASTLE WATER LTD,59.01,12/02/2018
Commercial,Regional Enterprise,Advertising,60092997,TMP (UK) LTD,170.00,09/02/2018
Commercial,Regional Enterprise,Advertising,60093026,TMP (UK) LTD,90.00,09/02/2018
Commercial,Regional Enterprise,Advertising,60094138,TMP (UK) LTD,170.00,09/02/2018
Commercial,Regional Enterprise,Advertising,60094147,TMP (UK) LTD,179.00,09/02/2018
Commercial,Regional Enterprise,Advertising,60094189,TMP (UK) LTD,170.00,09/02/2018
Commercial,Regional Enterprise,Advertising,60094199,TMP (UK) LTD,179.00,09/02/2018
Commercial,Regional Enterprise,Advertising,60094801,TMP (UK) LTD,90.00,09/02/2018
Commercial,Regional Enterprise,Advertising,60094855,TMP (UK) LTD,99.00,09/02/2018
Commercial,Regional Enterprise,Advertising,60094925,TMP (UK) LTD,99.00,09/02/2018
Commercial,Regional Enterprise,Advertising,60094935,TMP (UK) LTD,90.00,09/02/2018
Commercial,Regional Enterprise,Advertising,60094996,TMP (UK) LTD,179.00,09/02/2018
Commercial,Regional Enterprise,Advertising,60095230,TMP (UK) LTD,99.00,09/02/2018
Commercial,Regional Enterprise,Advertising,60096182,TMP (UK) LTD,260.00,07/02/2018
Commercial,Regional Enterprise,Advertising,60096227,TMP (UK) LTD,278.00,07/02/2018
Commercial,Regional Enterprise,Advertising,60096255,TMP (UK) LTD,170.00,09/02/2018
Commercial,Regional Enterprise,Advertising,60096540,TMP (UK) LTD,90.00,09/02/2018
Commercial,Regional Enterprise,Advertising,60096564,TMP (UK) LTD,179.00,19/02/2018
Commercial,Regional Enterprise,Advertising,60096597,TMP (UK) LTD,179.00,19/02/2018
Commercial,Regional Enterprise,Advertising,60096621,TMP (UK) LTD,170.00,19/02/2018
Commercial,Regional Enterprise,Advertising,60096919,TMP (UK) LTD,99.00,19/02/2018
Commercial,Regional Enterprise,Advertising,60096953,TMP (UK) LTD,90.00,19/02/2018
Commercial,Regional Enterprise,Advertising,60096956,TMP (UK) LTD,99.00,19/02/2018
Commercial,Regional Enterprise,Advertising,60096998,TMP (UK) LTD,170.00,07/02/2018
Commercial,Regional Enterprise,Other Services,60098412,RM COUNTRYSIDE SERVICES LTD,575.00,19/02/2018
Commercial,Regional Enterprise,Other Services,60098416,RM COUNTRYSIDE SERVICES LTD,650.00,19/02/2018
Commercial,Regional Enterprise,Capital Construction and Works,60098467,RM COUNTRYSIDE SERVICES LTD,675.00,19/02/2018
Commercial,Regional Enterprise,Other Services,60099115,RM COUNTRYSIDE SERVICES LTD,506.00,26/02/2018
Commercial,Regional Enterprise,Other Services,60082298,CONWAY AECOM LTD,"9,113.35",08/02/2018
Commercial,Regional Enterprise,Other Services,60097850,CONWAY AECOM LTD,625.00,12/02/2018
Commercial,Regional Enterprise,Other Services,60097881,CONWAY AECOM LTD,"1,188.75",12/02/2018
Commercial,Regional Enterprise,Other Services,60097894,CONWAY AECOM LTD,"1,188.75",12/02/2018
Commercial,Regional Enterprise,Other Services,60097913,CONWAY AECOM LTD,325.00,12/02/2018
Commercial,Regional Enterprise,Other Services,60097930,CONWAY AECOM LTD,"1,045.00",12/02/2018
Commercial,Regional Enterprise,Professional Services,60097368,WATES LIVING SPACE,159.38,22/02/2018
Commercial,Regional Enterprise,Professional Services,60097618,WATES LIVING SPACE,169.25,21/02/2018
Commercial,Regional Enterprise,Professional Services,60098245,WATES LIVING SPACE,"1,365.29",16/02/2018
Commercial,Regional Enterprise,Professional Services,60098299,WATES LIVING SPACE,179.39,16/02/2018
Commercial,Regional Enterprise,Professional Services,60098316,WATES LIVING SPACE,"1,444.71",20/02/2018
Commercial,Regional Enterprise,Equipment and Materials Purcha,60092950,TMP (UK) LTD,516.00,08/02/2018
Commercial,Regional Enterprise,Other Services,60098344,CONWAY AECOM LTD,513.10,19/02/2018
Commercial,Regional Enterprise,Professional Services,60097510,PUBLIC ANALYST SCIENTIFIC SERVS. LT,"1,026.00",13/02/2018
Commercial,Regional Enterprise,Capital Construction and Works,60097670,RM COUNTRYSIDE SERVICES LTD,691.00,08/02/2018
Commercial,Regional Enterprise,Equipment and Materials Purcha,60097699,RM COUNTRYSIDE SERVICES LTD,310.50,09/02/2018
Commercial,Regional Enterprise,Other Services,60097734,RM COUNTRYSIDE SERVICES LTD,540.00,09/02/2018
Commercial,Regional Enterprise,Capital Construction and Works,60097757,RM COUNTRYSIDE SERVICES LTD,220.00,09/02/2018
Commercial,Regional Enterprise,Other Services,60098471,RM COUNTRYSIDE SERVICES LTD,806.00,19/02/2018
Commercial,Regional Enterprise,Equipment and Materials Purcha,60098481,RM COUNTRYSIDE SERVICES LTD,341.00,19/02/2018
Commercial,Regional Enterprise,Other Services,60099121,RM COUNTRYSIDE SERVICES LTD,"1,566.00",26/02/2018
Commercial,Regional Enterprise,Other Services,10013998,CONWAY AECOM LTD,"2,054.61",23/02/2018
Commercial,Regional Enterprise,Other Services,60095435,CONWAY AECOM LTD,45.72,08/02/2018
Commercial,Regional Enterprise,Other Services,60095436,CONWAY AECOM LTD,253.15,08/02/2018
Commercial,Regional Enterprise,Other Services,60095451,CONWAY AECOM LTD,40.75,08/02/2018
Commercial,Regional Enterprise,Other Services,60095465,CONWAY AECOM LTD,29.29,08/02/2018
Commercial,Regional Enterprise,Other Services,60095473,CONWAY AECOM LTD,111.50,08/02/2018
Commercial,Regional Enterprise,Other Services,60095492,CONWAY AECOM LTD,47.87,08/02/2018
Commercial,Regional Enterprise,Other Services,60095496,CONWAY AECOM LTD,50.60,08/02/2018
Commercial,Regional Enterprise,Other Services,60095503,CONWAY AECOM LTD,96.35,08/02/2018
Commercial,Regional Enterprise,Other Services,60095504,CONWAY AECOM LTD,127.30,08/02/2018
Commercial,Regional Enterprise,Other Services,60095507,CONWAY AECOM LTD,117.79,08/02/2018
Commercial,Regional Enterprise,Other Services,60095522,CONWAY AECOM LTD,105.80,08/02/2018
Commercial,Regional Enterprise,Other Services,60095524,CONWAY AECOM LTD,113.65,08/02/2018
Commercial,Regional Enterprise,Other Services,60095525,CONWAY AECOM LTD,40.69,08/02/2018
Commercial,Regional Enterprise,Other Services,60095534,CONWAY AECOM LTD,94.67,08/02/2018
Commercial,Regional Enterprise,Other Services,60095545,CONWAY AECOM LTD,40.69,08/02/2018
Commercial,Regional Enterprise,Other Services,60095546,CONWAY AECOM LTD,68.17,08/02/2018
Commercial,Regional Enterprise,Other Services,60095549,CONWAY AECOM LTD,150.55,08/02/2018
Commercial,Regional Enterprise,Other Services,60095560,CONWAY AECOM LTD,88.63,08/02/2018
Commercial,Regional Enterprise,Other Services,60095574,CONWAY AECOM LTD,68.58,08/02/2018
Commercial,Regional Enterprise,Other Services,60096110,CONWAY AECOM LTD,59.61,08/02/2018
Commercial,Regional Enterprise,Other Services,60096116,CONWAY AECOM LTD,45.86,08/02/2018
Commercial,Regional Enterprise,Other Services,60096119,CONWAY AECOM LTD,58.41,08/02/2018
Commercial,Regional Enterprise,Other Services,60096130,CONWAY AECOM LTD,321.09,08/02/2018
Commercial,Regional Enterprise,Other Services,60096136,CONWAY AECOM LTD,86.24,08/02/2018
Commercial,Regional Enterprise,Other Services,60096140,CONWAY AECOM LTD,45.86,08/02/2018
Commercial,Regional Enterprise,Other Services,60096141,CONWAY AECOM LTD,45.86,08/02/2018
Commercial,Regional Enterprise,Other Services,60096143,CONWAY AECOM LTD,86.24,08/02/2018
Commercial,Regional Enterprise,Other Services,60096148,CONWAY AECOM LTD,236.83,08/02/2018
Commercial,Regional Enterprise,Other Services,60096149,CONWAY AECOM LTD,152.06,08/02/2018
Commercial,Regional Enterprise,Other Services,60096154,CONWAY AECOM LTD,86.24,08/02/2018
Commercial,Regional Enterprise,Other Services,60096158,CONWAY AECOM LTD,91.74,08/02/2018
Commercial,Regional Enterprise,Other Services,60096163,CONWAY AECOM LTD,64.43,08/02/2018
Commercial,Regional Enterprise,Other Services,60096164,CONWAY AECOM LTD,47.32,08/02/2018
Commercial,Regional Enterprise,Other Services,60096167,CONWAY AECOM LTD,121.17,08/02/2018
Commercial,Regional Enterprise,Other Services,60096169,CONWAY AECOM LTD,121.17,08/02/2018
Commercial,Regional Enterprise,Other Services,60096171,CONWAY AECOM LTD,59.61,08/02/2018
Commercial,Regional Enterprise,Other Services,60096193,CONWAY AECOM LTD,47.32,08/02/2018
Commercial,Regional Enterprise,Other Services,60096208,CONWAY AECOM LTD,64.43,08/02/2018
Commercial,Regional Enterprise,Other Services,60096212,CONWAY AECOM LTD,112.11,08/02/2018
Commercial,Regional Enterprise,Other Services,60096216,CONWAY AECOM LTD,47.32,08/02/2018
Commercial,Regional Enterprise,Other Services,60096217,CONWAY AECOM LTD,47.32,08/02/2018
Commercial,Regional Enterprise,Other Services,60096218,CONWAY AECOM LTD,123.89,08/02/2018
Commercial,Regional Enterprise,Other Services,60096228,CONWAY AECOM LTD,140.87,08/02/2018
Commercial,Regional Enterprise,Other Services,60096229,CONWAY AECOM LTD,58.41,08/02/2018
Commercial,Regional Enterprise,Other Services,60096232,CONWAY AECOM LTD,52.29,08/02/2018
Commercial,Regional Enterprise,Other Services,60096234,CONWAY AECOM LTD,183.48,08/02/2018
Commercial,Regional Enterprise,Other Services,60096256,CONWAY AECOM LTD,52.29,08/02/2018
Commercial,Regional Enterprise,Other Services,60096265,CONWAY AECOM LTD,229.35,08/02/2018
Commercial,Regional Enterprise,Other Services,60096270,CONWAY AECOM LTD,45.86,08/02/2018
Commercial,Regional Enterprise,Other Services,60096274,CONWAY AECOM LTD,25.34,08/02/2018
Commercial,Regional Enterprise,Other Services,60096275,CONWAY AECOM LTD,101.37,08/02/2018
Commercial,Regional Enterprise,Other Services,60096279,CONWAY AECOM LTD,49.05,08/02/2018
Commercial,Regional Enterprise,Other Services,60096286,CONWAY AECOM LTD,47.32,08/02/2018
Commercial,Regional Enterprise,Other Services,60096288,CONWAY AECOM LTD,45.86,08/02/2018
Commercial,Regional Enterprise,Other Services,60096292,CONWAY AECOM LTD,86.24,08/02/2018
Commercial,Regional Enterprise,Other Services,60096293,CONWAY AECOM LTD,58.41,08/02/2018
Commercial,Regional Enterprise,Other Services,60096298,CONWAY AECOM LTD,45.86,08/02/2018
Commercial,Regional Enterprise,Other Services,60096381,CONWAY AECOM LTD,101.37,08/02/2018
Commercial,Regional Enterprise,Other Services,60096383,CONWAY AECOM LTD,183.48,08/02/2018
Commercial,Regional Enterprise,Other Services,60096386,CONWAY AECOM LTD,137.61,08/02/2018
Commercial,Regional Enterprise,Other Services,60096387,CONWAY AECOM LTD,82.07,08/02/2018
Commercial,Regional Enterprise,Other Services,60096389,CONWAY AECOM LTD,58.41,08/02/2018
Commercial,Regional Enterprise,Other Services,60096394,CONWAY AECOM LTD,52.29,08/02/2018
Commercial,Regional Enterprise,Other Services,60096396,CONWAY AECOM LTD,91.74,08/02/2018
Commercial,Regional Enterprise,Other Services,60096401,CONWAY AECOM LTD,66.49,08/02/2018
Commercial,Regional Enterprise,Other Services,60096403,CONWAY AECOM LTD,183.48,08/02/2018
Commercial,Regional Enterprise,Other Services,60096406,CONWAY AECOM LTD,59.35,08/02/2018
Commercial,Regional Enterprise,Other Services,60096408,CONWAY AECOM LTD,47.32,08/02/2018
Commercial,Regional Enterprise,Other Services,60096414,CONWAY AECOM LTD,66.49,08/02/2018
Commercial,Regional Enterprise,Other Services,60096415,CONWAY AECOM LTD,66.49,08/02/2018
Commercial,Regional Enterprise,Other Services,60096420,CONWAY AECOM LTD,47.32,08/02/2018
Commercial,Regional Enterprise,Other Services,60096421,CONWAY AECOM LTD,123.89,08/02/2018
Commercial,Regional Enterprise,Other Services,60096422,CONWAY AECOM LTD,112.11,08/02/2018
Commercial,Regional Enterprise,Other Services,60096424,CONWAY AECOM LTD,137.61,08/02/2018
Commercial,Regional Enterprise,Other Services,60096426,CONWAY AECOM LTD,47.32,08/02/2018
Commercial,Regional Enterprise,Other Services,60096428,CONWAY AECOM LTD,47.32,08/02/2018
Commercial,Regional Enterprise,Other Services,60096431,CONWAY AECOM LTD,119.26,08/02/2018
Commercial,Regional Enterprise,Other Services,60096432,CONWAY AECOM LTD,66.49,08/02/2018
Commercial,Regional Enterprise,Other Services,60096433,CONWAY AECOM LTD,47.32,08/02/2018
Commercial,Regional Enterprise,Other Services,60096434,CONWAY AECOM LTD,50.67,08/02/2018
Commercial,Regional Enterprise,Other Services,60096435,CONWAY AECOM LTD,137.61,08/02/2018
Commercial,Regional Enterprise,Other Services,60096437,CONWAY AECOM LTD,47.32,08/02/2018
Commercial,Regional Enterprise,Other Services,60096438,CONWAY AECOM LTD,52.29,08/02/2018
Commercial,Regional Enterprise,Other Services,60096439,CONWAY AECOM LTD,95.30,08/02/2018
Commercial,Regional Enterprise,Other Services,60096445,CONWAY AECOM LTD,52.29,08/02/2018
Commercial,Regional Enterprise,Other Services,60096451,CONWAY AECOM LTD,137.61,08/02/2018
Commercial,Regional Enterprise,Other Services,60096452,CONWAY AECOM LTD,183.48,08/02/2018
Commercial,Regional Enterprise,Other Services,60096453,CONWAY AECOM LTD,47.32,08/02/2018
Commercial,Regional Enterprise,Other Services,60096456,CONWAY AECOM LTD, 82.07 ,08/02/2018
Commercial,Regional Enterprise,Other Services,60096457,CONWAY AECOM LTD, 137.61 ,08/02/2018
Commercial,Regional Enterprise,Other Services,60096458,CONWAY AECOM LTD, 12.67 ,08/02/2018
Commercial,Regional Enterprise,Other Services,60096460,CONWAY AECOM LTD, 101.37 ,08/02/2018
Commercial,Regional Enterprise,Other Services,60096465,CONWAY AECOM LTD, 229.35 ,08/02/2018
Commercial,Regional Enterprise,Other Services,60096466,CONWAY AECOM LTD, 59.61 ,08/02/2018
Commercial,Regional Enterprise,Other Services,60096469,CONWAY AECOM LTD, 82.07 ,08/02/2018
Commercial,Regional Enterprise,Other Services,60096472,CONWAY AECOM LTD, 91.74 ,08/02/2018
Commercial,Regional Enterprise,Other Services,60096474,CONWAY AECOM LTD, 521.42 ,08/02/2018
Commercial,Regional Enterprise,Other Services,60096532,CONWAY AECOM LTD, 64.55 ,08/02/2018
Commercial,Regional Enterprise,Other Services,60096539,CONWAY AECOM LTD, 91.74 ,08/02/2018
Commercial,Regional Enterprise,Other Services,60096541,CONWAY AECOM LTD, 95.30 ,08/02/2018
Commercial,Regional Enterprise,Other Services,60096542,CONWAY AECOM LTD, 161.54 ,08/02/2018
Commercial,Regional Enterprise,Other Services,60096543,CONWAY AECOM LTD,50.67,08/02/2018
Commercial,Regional Enterprise,Other Services,60096545,CONWAY AECOM LTD, 86.24 ,08/02/2018
Commercial,Regional Enterprise,Other Services,60096550,CONWAY AECOM LTD,91.74,08/02/2018
Commercial,Regional Enterprise,Other Services,60096551,CONWAY AECOM LTD,95.30,08/02/2018
Commercial,Regional Enterprise,Other Services,60096555,CONWAY AECOM LTD, 58.41 ,08/02/2018
Commercial,Regional Enterprise,Other Services,60096558,CONWAY AECOM LTD, 45.66 ,08/02/2018
Commercial,Regional Enterprise,Other Services,60096568,CONWAY AECOM LTD, 220.10 ,08/02/2018
Commercial,Regional Enterprise,Other Services,60096576,CONWAY AECOM LTD,64.15,08/02/2018
Commercial,Regional Enterprise,Other Services,60096586,CONWAY AECOM LTD, 45.86 ,08/02/2018
Commercial,Regional Enterprise,Other Services,60096589,CONWAY AECOM LTD, 59.61 ,08/02/2018
Commercial,Regional Enterprise,Other Services,60096590,CONWAY AECOM LTD, 136.90 ,08/02/2018
Commercial,Regional Enterprise,Other Services,60096591,CONWAY AECOM LTD, 161.54 ,08/02/2018
Commercial,Regional Enterprise,Other Services,60096593,CONWAY AECOM LTD,123.89,08/02/2018
Commercial,Regional Enterprise,Other Services,60096600,CONWAY AECOM LTD,178.50,08/02/2018
Commercial,Regional Enterprise,Other Services,60096602,CONWAY AECOM LTD, 95.30 ,08/02/2018
Commercial,Regional Enterprise,Other Services,60096603,CONWAY AECOM LTD, 121.17 ,08/02/2018
Commercial,Regional Enterprise,Other Services,60096608,CONWAY AECOM LTD, 45.86 ,08/02/2018
Commercial,Regional Enterprise,Other Services,60096613,CONWAY AECOM LTD, 45.86 ,08/02/2018
Commercial,Regional Enterprise,Other Services,60096615,CONWAY AECOM LTD,45.86,08/02/2018
Commercial,Regional Enterprise,Other Services,60096616,CONWAY AECOM LTD, 34.91 ,08/02/2018
Commercial,Regional Enterprise,Other Services,60096627,CONWAY AECOM LTD, 366.96 ,08/02/2018
Commercial,Regional Enterprise,Other Services,60096628,CONWAY AECOM LTD,45.86,08/02/2018
Commercial,Regional Enterprise,Other Services,60097366,CONWAY AECOM LTD, 161.54 ,08/02/2018
Commercial,Regional Enterprise,Other Services,60097372,CONWAY AECOM LTD, 178.50 ,08/02/2018
Commercial,Regional Enterprise,Other Services,60097378,CONWAY AECOM LTD, 45.86 ,08/02/2018
Commercial,Regional Enterprise,Other Services,60097380,CONWAY AECOM LTD,64.15,08/02/2018
Commercial,Regional Enterprise,Other Services,60097381,CONWAY AECOM LTD, 86.24 ,08/02/2018
Commercial,Regional Enterprise,Other Services,60097384,CONWAY AECOM LTD, 95.30 ,08/02/2018
Commercial,Regional Enterprise,Other Services,60097385,CONWAY AECOM LTD, 50.67 ,08/02/2018
Commercial,Regional Enterprise,Other Services,60097389,CONWAY AECOM LTD, 86.24 ,08/02/2018
Commercial,Regional Enterprise,Other Services,60097395,CONWAY AECOM LTD, 50.67 ,08/02/2018
Commercial,Regional Enterprise,Other Services,60097400,CONWAY AECOM LTD, 50.67 ,08/02/2018
Commercial,Regional Enterprise,Other Services,60097406,CONWAY AECOM LTD, 50.67 ,08/02/2018
Commercial,Regional Enterprise,Other Services,60097415,CONWAY AECOM LTD, 95.30 ,08/02/2018
Commercial,Regional Enterprise,Other Services,60097586,CONWAY AECOM LTD, 119.26 ,08/02/2018
Commercial,Regional Enterprise,Other Services,60097592,CONWAY AECOM LTD, 45.66 ,08/02/2018
Commercial,Regional Enterprise,Other Services,60097594,CONWAY AECOM LTD, 45.86 ,08/02/2018
Commercial,Regional Enterprise,Other Services,60097595,CONWAY AECOM LTD,45.86,08/02/2018
Commercial,Regional Enterprise,Other Services,60097600,CONWAY AECOM LTD, 86.24 ,08/02/2018
Commercial,Regional Enterprise,Other Services,60097601,CONWAY AECOM LTD,83.64,08/02/2018
Commercial,Regional Enterprise,Other Services,60097602,CONWAY AECOM LTD, 85.86 ,08/02/2018
Commercial,Regional Enterprise,Other Services,60097603,CONWAY AECOM LTD, 45.86 ,08/02/2018
Commercial,Regional Enterprise,Other Services,60097604,CONWAY AECOM LTD, 387.42 ,08/02/2018
Commercial,Regional Enterprise,Other Services,60097606,CONWAY AECOM LTD,120.64,08/02/2018
Commercial,Regional Enterprise,Other Services,60097607,CONWAY AECOM LTD, 47.32 ,08/02/2018
Commercial,Regional Enterprise,Other Services,60097608,CONWAY AECOM LTD, 273.27 ,08/02/2018
Commercial,Regional Enterprise,Other Services,60097609,CONWAY AECOM LTD, 128.89 ,08/02/2018
Commercial,Regional Enterprise,Other Services,60097612,CONWAY AECOM LTD, 47.32 ,08/02/2018
Commercial,Regional Enterprise,Other Services,60097613,CONWAY AECOM LTD, 82.07 ,08/02/2018
Commercial,Regional Enterprise,Other Services,60097614,CONWAY AECOM LTD,37.76,08/02/2018
Commercial,Regional Enterprise,Other Services,60097616,CONWAY AECOM LTD, 50.45 ,08/02/2018
Commercial,Regional Enterprise,Other Services,60097617,CONWAY AECOM LTD, 64.43 ,08/02/2018
Commercial,Regional Enterprise,Other Services,60097621,CONWAY AECOM LTD, 50.45 ,08/02/2018
Commercial,Regional Enterprise,Other Services,60097622,CONWAY AECOM LTD, 50.67 ,08/02/2018
Commercial,Regional Enterprise,Other Services,60097626,CONWAY AECOM LTD, 161.54 ,08/02/2018
Commercial,Regional Enterprise,Other Services,60097627,CONWAY AECOM LTD, 45.86 ,08/02/2018
Commercial,Regional Enterprise,Other Services,60097630,CONWAY AECOM LTD, 41.57 ,08/02/2018
Commercial,Regional Enterprise,Other Services,60097635,CONWAY AECOM LTD, 136.30 ,08/02/2018
Commercial,Regional Enterprise,Other Services,60097636,CONWAY AECOM LTD, 86.24 ,08/02/2018
Commercial,Regional Enterprise,Other Services,60097639,CONWAY AECOM LTD, 45.66 ,08/02/2018
Commercial,Regional Enterprise,Other Services,60097642,CONWAY AECOM LTD,59.43,08/02/2018
Commercial,Regional Enterprise,Other Services,60097644,CONWAY AECOM LTD, 715.57 ,08/02/2018
Commercial,Regional Enterprise,Other Services,60097646,CONWAY AECOM LTD, 849.38 ,08/02/2018
Commercial,Regional Enterprise,Other Services,60097647,CONWAY AECOM LTD, 101.37 ,08/02/2018
Commercial,Regional Enterprise,Other Services,60097653,CONWAY AECOM LTD, 591.81 ,08/02/2018
Commercial,Regional Enterprise,Other Services,60097657,CONWAY AECOM LTD, 120.40 ,08/02/2018
Commercial,Regional Enterprise,Other Services,60097672,CONWAY AECOM LTD, 199.18 ,08/02/2018
Commercial,Regional Enterprise,Other Services,60097673,CONWAY AECOM LTD, 385.72 ,08/02/2018
Commercial,Regional Enterprise,Other Services,60097674,CONWAY AECOM LTD, 86.24 ,08/02/2018
Commercial,Regional Enterprise,Other Services,60097675,CONWAY AECOM LTD, 86.24 ,08/02/2018
Commercial,Regional Enterprise,Other Services,60097681,CONWAY AECOM LTD, 45.66 ,08/02/2018
Commercial,Regional Enterprise,Other Services,60097684,CONWAY AECOM LTD, 437.63 ,08/02/2018
Commercial,Regional Enterprise,Other Services,60097687,CONWAY AECOM LTD, 111.62 ,08/02/2018
Commercial,Regional Enterprise,Other Services,60097690,CONWAY AECOM LTD,278.63,08/02/2018
Commercial,Regional Enterprise,Other Services,60097692,CONWAY AECOM LTD, 66.49 ,08/02/2018
Commercial,Regional Enterprise,Other Services,60097694,CONWAY AECOM LTD, 341.79 ,08/02/2018
Commercial,Regional Enterprise,Other Services,60097839,CONWAY AECOM LTD, 45.87 ,09/02/2018
Commercial,Regional Enterprise,Other Services,60097882,CONWAY AECOM LTD," 2,877.00 ",12/02/2018
Commercial,Regional Enterprise,Other Services,60098341,CONWAY AECOM LTD, 136.90 ,19/02/2018
Commercial,Regional Enterprise,Other Services,60098346,CONWAY AECOM LTD, 45.72 ,19/02/2018
Commercial,Regional Enterprise,Other Services,60098350,CONWAY AECOM LTD, 46.11 ,19/02/2018
Commercial,Regional Enterprise,Other Services,60098355,CONWAY AECOM LTD,371.28,19/02/2018
Commercial,Regional Enterprise,Other Services,60098356,CONWAY AECOM LTD, 195.72 ,19/02/2018
Commercial,Regional Enterprise,Other Services,60098363,CONWAY AECOM LTD,117.53,19/02/2018
Commercial,Regional Enterprise,Other Services,60098366,CONWAY AECOM LTD, 70.97 ,19/02/2018
Commercial,Regional Enterprise,Other Services,60098374,CONWAY AECOM LTD, 532.67 ,19/02/2018
Commercial,Regional Enterprise,Other Services,60098381,CONWAY AECOM LTD,573.35,19/02/2018
Commercial,Regional Enterprise,Other Services,60098389,CONWAY AECOM LTD, 271.35 ,19/02/2018
Commercial,Regional Enterprise,Other Services,60098391,CONWAY AECOM LTD, 140.87 ,19/02/2018
Commercial,Regional Enterprise,Other Services,60098392,CONWAY AECOM LTD, 70.97 ,19/02/2018
Commercial,Regional Enterprise,Other Services,60098399,CONWAY AECOM LTD, 162.54 ,19/02/2018
Commercial,Regional Enterprise,Other Services,60098408,CONWAY AECOM LTD,34.64,19/02/2018
Commercial,Regional Enterprise,Other Services,60098410,CONWAY AECOM LTD, 138.67 ,19/02/2018
Commercial,Regional Enterprise,Other Services,60098418,CONWAY AECOM LTD, 443.89 ,19/02/2018
Commercial,Regional Enterprise,Other Services,60098430,CONWAY AECOM LTD, 40.69 ,19/02/2018
Commercial,Regional Enterprise,Other Services,60098440,CONWAY AECOM LTD, 70.97 ,19/02/2018
Commercial,Regional Enterprise,Other Services,60098445,CONWAY AECOM LTD, 45.72 ,19/02/2018
Commercial,Regional Enterprise,Other Services,60098450,CONWAY AECOM LTD, 532.67 ,19/02/2018
Commercial,Regional Enterprise,Other Services,60098451,CONWAY AECOM LTD, 586.40 ,19/02/2018
Commercial,Regional Enterprise,Other Services,60098460,CONWAY AECOM LTD, 141.02 ,19/02/2018
Commercial,Regional Enterprise,Other Services,60098461,CONWAY AECOM LTD, 130.48 ,19/02/2018
Commercial,Regional Enterprise,Other Services,60098465,CONWAY AECOM LTD, 140.87 ,19/02/2018
Commercial,Regional Enterprise,Other Services,60098468,CONWAY AECOM LTD, 65.78 ,19/02/2018
Commercial,Regional Enterprise,Other Services,60098470,CONWAY AECOM LTD,182.80,19/02/2018
Commercial,Regional Enterprise,Other Services,60098475,CONWAY AECOM LTD, 665.84 ,19/02/2018
Commercial,Regional Enterprise,Other Services,60099107,CONWAY AECOM LTD,226.80,28/02/2018
Commercial,Regional Enterprise,Other Services,60099185,CONWAY AECOM LTD," 1,565.70 ",26/02/2018
Commercial,Regional Enterprise,Other Services,60088031,CONWAY AECOM LTD," 1,240.68 ",08/02/2018
Commercial,Regional Enterprise,Other Services,60088032,CONWAY AECOM LTD, 873.54 ,08/02/2018
Commercial,Regional Enterprise,Other Services,60088033,CONWAY AECOM LTD, 930.51 ,08/02/2018
Commercial,Regional Enterprise,Other Services,60088055,CONWAY AECOM LTD,949.50,08/02/2018
Commercial,Regional Enterprise,Other Services,60088063,CONWAY AECOM LTD, 303.84 ,08/02/2018
Commercial,Regional Enterprise,Other Services,60088066,CONWAY AECOM LTD," 1,019.13 ",08/02/2018
Commercial,Regional Enterprise,Other Services,60088073,CONWAY AECOM LTD, 949.50 ,08/02/2018
Commercial,Regional Enterprise,Other Services,60088075,CONWAY AECOM LTD,"1,019.13",08/02/2018
Commercial,Regional Enterprise,Other Services,60088080,CONWAY AECOM LTD," 1,519.20 ",08/02/2018
Commercial,Regional Enterprise,Other Services,60088082,CONWAY AECOM LTD,303.84,08/02/2018
Commercial,Regional Enterprise,Other Services,60088085,CONWAY AECOM LTD, 329.16 ,08/02/2018
Commercial,Regional Enterprise,Other Services,60088088,CONWAY AECOM LTD, 759.60 ,08/02/2018
Commercial,Regional Enterprise,Other Services,60088103,CONWAY AECOM LTD,"1,215.36",08/02/2018
Commercial,Regional Enterprise,Other Services,60088104,CONWAY AECOM LTD," 1,114.08 ",08/02/2018
Commercial,Regional Enterprise,Other Services,60088114,CONWAY AECOM LTD, 784.92 ,08/02/2018
Commercial,Regional Enterprise,Other Services,60099072,CONWAY AECOM LTD," 1,645.80 ",27/02/2018
Commercial,Regional Enterprise,Other Services,60099073,CONWAY AECOM LTD, 504.00 ,28/02/2018
Commercial,Regional Enterprise,Other Services,60099075,CONWAY AECOM LTD,"1,008.00",28/02/2018
Commercial,Regional Enterprise,Other Services,60099076,CONWAY AECOM LTD, 242.65 ,27/02/2018
Commercial,Regional Enterprise,Other Services,60099079,CONWAY AECOM LTD," 1,764.00 ",28/02/2018
Commercial,Regional Enterprise,Other Services,60099080,CONWAY AECOM LTD," 1,008.00 ",28/02/2018
Commercial,Regional Enterprise,Other Services,60099081,CONWAY AECOM LTD, 680.40 ,28/02/2018
Commercial,Regional Enterprise,Other Services,60099092,CONWAY AECOM LTD," 1,096.20 ",28/02/2018
Commercial,Regional Enterprise,Other Services,60099095,CONWAY AECOM LTD," 1,063.44 ",27/02/2018
Commercial,Regional Enterprise,Other Services,60099097,CONWAY AECOM LTD," 1,234.80 ",28/02/2018
Commercial,Regional Enterprise,Other Services,60099100,CONWAY AECOM LTD, 655.20 ,28/02/2018
Commercial,Regional Enterprise,Other Services,60099101,CONWAY AECOM LTD, 379.80 ,27/02/2018
Commercial,Regional Enterprise,Other Services,60099103,CONWAY AECOM LTD, 970.20 ,28/02/2018
Commercial,Regional Enterprise,Other Services,60099104,CONWAY AECOM LTD," 1,190.04 ",27/02/2018
Commercial,Regional Enterprise,Other Services,60099111,CONWAY AECOM LTD, 693.00 ,28/02/2018
Commercial,Regional Enterprise,Other Services,60099114,CONWAY AECOM LTD, 982.80 ,28/02/2018
Commercial,Regional Enterprise,Other Services,60099122,CONWAY AECOM LTD, 302.40 ,28/02/2018
Commercial,Regional Enterprise,Other Services,60099123,CONWAY AECOM LTD,567.00,28/02/2018
Commercial,Regional Enterprise,Other Services,60099125,CONWAY AECOM LTD, 856.80 ,28/02/2018
Commercial,Regional Enterprise,Other Services,60099128,CONWAY AECOM LTD, 683.64 ,27/02/2018
Commercial,Regional Enterprise,Other Services,60099137,CONWAY AECOM LTD, 724.50 ,28/02/2018
Commercial,Regional Enterprise,Other Services,60099138,CONWAY AECOM LTD, 283.50 ,28/02/2018
Commercial,Regional Enterprise,Other Services,60099139,CONWAY AECOM LTD," 1,058.40 ",28/02/2018
Commercial,Regional Enterprise,Other Services,60099141,CONWAY AECOM LTD," 1,204.81 ",27/02/2018
Commercial,Regional Enterprise,Other Services,60099149,CONWAY AECOM LTD," 2,001.30 ",28/02/2018
Commercial,Regional Enterprise,Other Services,60099153,CONWAY AECOM LTD, 882.00 ,28/02/2018
Commercial,Regional Enterprise,Other Services,60099156,CONWAY AECOM LTD," 2,016.00 ",28/02/2018
Commercial,Regional Enterprise,Other Services,60099159,CONWAY AECOM LTD," 1,260.00 ",28/02/2018
Commercial,Regional Enterprise,Other Services,60099162,CONWAY AECOM LTD," 1,012.80 ",26/02/2018
Commercial,Regional Enterprise,Other Services,60099167,CONWAY AECOM LTD, 531.72 ,27/02/2018
Commercial,Regional Enterprise,Other Services,60099169,CONWAY AECOM LTD," 2,016.00 ",28/02/2018
Commercial,Regional Enterprise,Other Services,60099170,CONWAY AECOM LTD, 607.68 ,27/02/2018
Commercial,Regional Enterprise,Other Services,60099172,CONWAY AECOM LTD, 680.40 ,28/02/2018
Commercial,Regional Enterprise,Other Services,60099174,CONWAY AECOM LTD, 850.50 ,28/02/2018
Commercial,Regional Enterprise,Other Services,60099175,CONWAY AECOM LTD, 604.80 ,28/02/2018
Commercial,Regional Enterprise,Other Services,60099183,CONWAY AECOM LTD," 1,228.50 ",28/02/2018
Commercial,Regional Enterprise,Other Services,60099184,CONWAY AECOM LTD, 756.00 ,28/02/2018
Commercial,Regional Enterprise,Other Services,60099186,CONWAY AECOM LTD, 781.20 ,28/02/2018
Commercial,Regional Enterprise,Building Repairs & Maintenance,60098541,AMWELL CONSTRUCTION LTD," 2,711.00 ",20/02/2018
Commercial,Regional Enterprise,Equipment and Materials Purcha,40002707,OFFICE DEPOT UK LTD, 177.60 ,05/02/2018
Commercial,Regional Enterprise,Grant Payments,80015148,DP BUILDERS DISABLED ADAPTATIONS," 9,072.00 ",02/02/2018
Commercial,Regional Enterprise,Grant Payments,80015301,H D PROPERTY SERVICES LTD, 567.00 ,12/02/2018
Commercial,Regional Enterprise,Grant Payments,80015332,H D PROPERTY SERVICES LTD," 3,747.45 ",12/02/2018
Commercial,Regional Enterprise,Grant Payments,80015614,H D PROPERTY SERVICES LTD, 630.00 ,19/02/2018
Commercial,Regional Enterprise,Grant Payments,80015132,MCP PROPERTY SERVICES LTD," 2,021.25 ",02/02/2018
Commercial,Regional Enterprise,Grant Payments,80015613,ECOLOGIC ENERGY, 312.38 ,20/02/2018
Commercial,Regional Enterprise,Grant Payments,80015779,ECOLOGIC ENERGY," 3,465.00 ",27/02/2018
Commercial,Regional Enterprise,Equipment and Materials Purcha,60097035,AMAS LTD, 150.00 ,02/02/2018
Commercial,Regional Enterprise,Grant Payments,80015397,GOVERNMENT EX,"10,300.00",09/02/2018
Commercial,Regional Enterprise,Grant Payments,80015756,STAMWEST LTD," 7,695.60 ",27/02/2018
Commercial,Regional Enterprise,Grant Payments,80015777,THE BALLOON ROOM," 3,307.15 ",27/02/2018
Commercial,Regional Enterprise,Grant Payments,80015459,DP BUILDERS DISABLED ADAPTATIONS, 126.00 ,16/02/2018
Commercial,Regional Enterprise,Fees and Charges,80015401,SOUTH HERTFORDSHIRE,350.00,14/02/2018
Commercial,Regional Enterprise,Consultants Fees,60089873,GROUNDWORK LONDON," 1,000.00 ",02/02/2018
Commercial,Regional Enterprise,Consultants Fees,60089874,GROUNDWORK LONDON," 2,000.00 ",02/02/2018
Commercial,Regional Enterprise,Professional Services,60089875,GROUNDWORK LONDON," 1,000.00 ",15/02/2018
Commercial,Regional Enterprise,Consultants Fees,60089898,GROUNDWORK LONDON,"1,000.00",02/02/2018
Commercial,Regional Enterprise,Consultants Fees,60089906,GROUNDWORK LONDON,"53,200.00",02/02/2018
Commercial,Regional Enterprise,Consultants Fees,60089938,GROUNDWORK LONDON," 1,000.00 ",02/02/2018
Commercial,Regional Enterprise,Consultants Fees,60099018,THE BARNETGROUP LIMITED," 1,415.65 ",26/02/2018
Commercial,Regional Enterprise,Consultants Fees,60097248,GOWLING WLG,-325.00 ,21/02/2018
Commercial,Regional Enterprise,Consultants Fees,60099117,GOWLING WLG," 1,836.00 ",28/02/2018
Commercial,Regional Enterprise,Consultants Fees,60099168,GOWLING WLG," 1,088.00 ",28/02/2018
Commercial,Regional Enterprise,Consultants Fees,60096736,HOLIDAY INN LONDON - BRENT CROSS,125.00,20/02/2018
Commercial,Regional Enterprise,RE Services Contract Payment,10014000,RE (REGIONAL ENTERPRISE) LIMITED," 455,343.90 ",28/02/2018
Commercial,Regional Enterprise,RE Services Contract Payment,60098427,RE (REGIONAL ENTERPRISE) LIMITED," 83,545.78 ",28/02/2018
Commercial,Regional Enterprise,RE Services Contract Payment,60098434,RE (REGIONAL ENTERPRISE) LIMITED," 596,702.08 ",28/02/2018
Commercial,Regional Enterprise,RE Services Contract Payment,60089519,RE (REGIONAL ENTERPRISE) LIMITED," 137,169.00 ",28/02/2018
Commercial,Regional Enterprise,RE Services Contract Payment,60097323,RE (REGIONAL ENTERPRISE) LIMITED," 167,500.00 ",19/02/2018
Commercial,Regional Enterprise,Grant Payments,80015300,STANNAH STAIRLIFTS LTD," 5,138.00 ",12/02/2018
Commercial,Regional Enterprise,Grant Payments,80015703,STANNAH STAIRLIFTS LTD," 1,144.57 ",26/02/2018
Commercial,Regional Enterprise,Grant Payments,80014954,TOTAL HYGIENE LIMITED, 180.00 ,15/02/2018
Commercial,Regional Enterprise,Grant Payments,80015675,DOLPHIN MOBILITY LTD.,"3,300.00",26/02/2018
Commercial,Regional Enterprise,Grant Payments,80015386,ARTHUR J. FERRYMAN ASSOCIATES,601.22,12/02/2018
Commercial,Regional Enterprise,Grant Payments,80015387,ARTHUR J. FERRYMAN ASSOCIATES," 4,524.60 ",12/02/2018
Commercial,Regional Enterprise,Grant Payments,80015402,ARTHUR J. FERRYMAN ASSOCIATES, 480.00 ,12/02/2018
Commercial,Regional Enterprise,Grant Payments,80015510,ARTHUR J. FERRYMAN ASSOCIATES," 2,063.04 ",19/02/2018
Commercial,Regional Enterprise,Grant Payments,80015615,ARTHUR J. FERRYMAN ASSOCIATES, 960.00 ,19/02/2018
Commercial,Regional Enterprise,Grant Payments,80015780,ARTHUR J. FERRYMAN ASSOCIATES," 2,570.76 ",27/02/2018
Commercial,Regional Enterprise,Grant Payments,80015242,AMWELL CONSTRUCTION LTD, 586.00 ,05/02/2018
Commercial,Regional Enterprise,Grant Payments,80015277,AMWELL CONSTRUCTION LTD,"5,086.00",07/02/2018
Commercial,Regional Enterprise,Grant Payments,80015282,SOUTH HERTFORDSHIRE, 710.00 ,07/02/2018
Commercial,Regional Enterprise,Grant Payments,80015286,SOUTH HERTFORDSHIRE," 5,524.00 ",07/02/2018
Commercial,Regional Enterprise,Grant Payments,80015424,SOUTH HERTFORDSHIRE," 5,200.00 ",12/02/2018
Commercial,Regional Enterprise,Grant Payments,80015426,SOUTH HERTFORDSHIRE,"5,388.00",12/02/2018
Commercial,Regional Enterprise,Grant Payments,80015448,SOUTH HERTFORDSHIRE," 6,137.00 ",13/02/2018
Commercial,Regional Enterprise,Grant Payments,80015468,SOUTH HERTFORDSHIRE," 5,226.00 ",20/02/2018
Commercial,Regional Enterprise,Grant Payments,80015612,SOUTH HERTFORDSHIRE," 7,980.00 ",20/02/2018
Commercial,Regional Enterprise,Grant Payments,80015617,SOUTH HERTFORDSHIRE," 8,000.00 ",26/02/2018
Commercial,Regional Enterprise,Grant Payments,80015695,SOUTH HERTFORDSHIRE," 5,091.00 ",26/02/2018
Commercial,Regional Enterprise,Grant Payments,80015403,DP BUILDERS DISABLED ADAPTATIONS," 2,010.00 ",15/02/2018
Commercial,Regional Enterprise,Grant Payments,80015406,DP BUILDERS DISABLED ADAPTATIONS," 5,305.00 ",15/02/2018
Commercial,Regional Enterprise,Grant Payments,80015509,DP BUILDERS DISABLED ADAPTATIONS," 5,988.00 ",22/02/2018
Commercial,Regional Enterprise,Grant Payments,80015578,DP BUILDERS DISABLED ADAPTATIONS," 5,106.00 ",22/02/2018
Commercial,Regional Enterprise,Grant Payments,80015650,DP BUILDERS DISABLED ADAPTATIONS," 8,440.00 ",28/02/2018
Commercial,Regional Enterprise,Grant Payments,80015381,H D PROPERTY SERVICES LTD," 5,831.00 ",12/02/2018
Commercial,Regional Enterprise,Grant Payments,80015385,H D PROPERTY SERVICES LTD, 165.00 ,12/02/2018
Commercial,Regional Enterprise,Grant Payments,80015676,H D PROPERTY SERVICES LTD,"3,115.00",26/02/2018
Commercial,Regional Enterprise,Grant Payments,80015705,H D PROPERTY SERVICES LTD," 5,648.30 ",26/02/2018
Commercial,Regional Enterprise,Grant Payments,80015607,ESURE," 19,127.40 ",20/02/2018
Commercial,Regional Enterprise,Grant Payments,80015687,WSW PROJECTS LTD, 916.00 ,26/02/2018
Commercial,Regional Enterprise,Grant Payments,80015321,G J PULHAM," 5,271.00 ",12/02/2018
Commercial,Regional Enterprise,Grant Payments,80015412,G J PULHAM,"6,261.00",12/02/2018
Commercial,Regional Enterprise,Grant Payments,80015435,G J PULHAM," 5,152.00 ",19/02/2018
Commercial,Regional Enterprise,Grant Payments,80015252,REDACTED - PERSONAL DATA, 843.99 ,05/02/2018
Commercial,Regional Enterprise,Grant Payments,80015280,REDACTED - PERSONAL DATA,"6,019.00",07/02/2018
Commercial,Regional Enterprise,Grant Payments,80015725,REDACTED - PERSONAL DATA," 3,342.36 ",26/02/2018
Commercial,Regional Enterprise,Professional Services,60094428,OPENVIEW SECURITY SOLUTIONS LTD," 13,903.98 ",28/02/2018
Commercial,Regional Enterprise,Professional Services,60097662,OPENVIEW SECURITY SOLUTIONS LTD, 337.55 ,08/02/2018
Commercial,Regional Enterprise,Other Services,60091747,SOUTHGATE COACHES LTD," 4,785.00 ",08/02/2018
Commercial,Regional Enterprise,Other Services,60092216,REDACTED - PERSONAL DATA,"1,250.00",08/02/2018
Commercial,Regional Enterprise,Other Services,60082174,CONWAY AECOM LTD," 16,023.44 ",08/02/2018
Commercial,Regional Enterprise,Other Services,60082217,CONWAY AECOM LTD," 1,442.25 ",08/02/2018
Commercial,Regional Enterprise,Other Services,60058102,CONWAY AECOM LTD," 4,019.48 ",08/02/2018
Commercial,Regional Enterprise,Other Services,60085261,CONWAY AECOM LTD," 2,182.31 ",08/02/2018
Commercial,Regional Enterprise,Other Services,60085292,CONWAY AECOM LTD," 2,441.71 ",08/02/2018
Commercial,Regional Enterprise,Other Services,60085338,CONWAY AECOM LTD," 1,771.08 ",08/02/2018
Commercial,Regional Enterprise,Other Services,10013967,CONWAY AECOM LTD," 103,720.83 ",08/02/2018
Commercial,Regional Enterprise,Other Services,60084621,CONWAY AECOM LTD," 63,945.10 ",08/02/2018
Commercial,Regional Enterprise,Other Services,60093938,STYLEBRANDS MARKETING LTD," 2,215.00 ",07/02/2018
Commercial,Regional Enterprise,Capital Construction and Works,60096459,CONWAY AECOM LTD," 4,294.00 ",08/02/2018
Commercial,Regional Enterprise,Other Services,60094443,LONDON ACADEMY,500.00,13/02/2018
Commercial,Regional Enterprise,Other Services,60095886,BEIS SOROH SCHNEIRER, 400.00 ,14/02/2018
Commercial,Regional Enterprise,Other Services,60094393,WREN ACADEMY," 1,400.00 ",14/02/2018
Commercial,Regional Enterprise,Other Services,60094423,EAST BARNET SCHOOL, 800.00 ,23/02/2018
Commercial,Regional Enterprise,Other Services,60094391,INDEPENDENT JEWISH DAY SCHOOL," 1,100.00 ",23/02/2018
Commercial,Regional Enterprise,Other Services,60095366,OAK LODGE SCHOOL ACADEMY,"1,100.00",12/02/2018
Commercial,Regional Enterprise,Other Services,60095352,REDACTED - PERSONAL DATA," 9,999.00 ",01/02/2018
Commercial,Regional Enterprise,Other Services,60099441,CHILD SEAT SAFETY LTD,237.00,28/02/2018
Commercial,Regional Enterprise,Advertising,60096917,TMP (UK) LTD, 876.00 ,07/02/2018
Commercial,Regional Enterprise,Other Services,60097648,BARNET LIGHTING SERVICES LTD," 26,172.68 ",08/02/2018
Commercial,Regional Enterprise,Advertising,60096991,TMP (UK) LTD, 305.00 ,07/02/2018
Commercial,Regional Enterprise,Other Services,60099155,CONWAY AECOM LTD," 3,808.84 ",26/02/2018
Commercial,Regional Enterprise,Equipment and Materials Purcha,60096250,THAMES WATER UTILITIES LIMITED, 277.00 ,16/02/2018
Commercial,Regional Enterprise,Advertising,60096939,TMP (UK) LTD,570.00,07/02/2018
Commercial,Regional Enterprise,Other Services,60096402,CONWAY AECOM LTD," 30,000.00 ",08/02/2018
Commercial,Regional Enterprise,Other Services,60098402,CONWAY AECOM LTD," 46,680.00 ",19/02/2018
Commercial,Regional Enterprise,Other Services,60099179,CONWAY AECOM LTD,"37,483.12",26/02/2018
Commercial,Regional Enterprise,Advertising,60097005,TMP (UK) LTD, 287.00 ,07/02/2018
Commercial,Regional Enterprise,Other Services,10013966,CONWAY AECOM LTD," 21,422.64 ",08/02/2018
Commercial,Regional Enterprise,Equipment and Materials Purcha,60098383,SUN HILL SURVEYS," 1,475.00 ",19/02/2018
Commercial,Regional Enterprise,Advertising,60096598,TMP (UK) LTD, 314.00 ,07/02/2018
Commercial,Regional Enterprise,Advertising,60096957,TMP (UK) LTD, 175.00 ,07/02/2018
Commercial,Regional Enterprise,Capital Construction and Works,60097679,AMU SURVEYS LTD," 1,400.00 ",15/02/2018
Commercial,Regional Enterprise,Other Services,60096417,TRAFFIC DATA CENTRE," 10,590.00 ",02/02/2018
Commercial,Regional Enterprise,Other Services,60094791,CONWAY AECOM LTD," 3,317.82 ",08/02/2018
Commercial,Regional Enterprise,Other Services,60096392,CONWAY AECOM LTD,"44,002.24",08/02/2018
Commercial,Regional Enterprise,Other Services,60099112,CONWAY AECOM LTD, 594.92 ,27/02/2018
Commercial,Regional Enterprise,Other Services,60096695,BROADFIELDS ACADEMY," 1,000.00 ",22/02/2018
Commercial,Regional Enterprise,Other Services,60096505,ANNEMOUNT NURSERY SCHOOL," 1,000.00 ",14/02/2018
Commercial,Regional Enterprise,Other Services,60096665,ARCHER ACADEMY," 1,000.00 ",22/02/2018
Commercial,Regional Enterprise,Other Services,60096897,SUMMERSIDE PRIMARY ACADEMY,960.00,19/02/2018
Commercial,Regional Enterprise,Other Services,60097003,TMP (UK) LTD, 296.00 ,07/02/2018
Commercial,Regional Enterprise,Other Services,60097830,MACLEOD SIMMONDS LTD,947.50,21/02/2018
Commercial,Regional Enterprise,Other Services,60097760,CONWAY AECOM LTD,"10,287.48",09/02/2018
Commercial,Regional Enterprise,Other Services,10013968,CONWAY AECOM LTD," 151,591.67 ",08/02/2018
Commercial,Regional Enterprise,Other Services,10013969,CONWAY AECOM LTD," 49,281.90 ",08/02/2018
Commercial,Regional Enterprise,Other Services,10013970,CONWAY AECOM LTD," 29,566.83 ",08/02/2018
Commercial,Regional Enterprise,Other Services,10013971,CONWAY AECOM LTD," 16,676.70 ",08/02/2018
Commercial,Regional Enterprise,Other Services,10013972,CONWAY AECOM LTD," 150,757.28 ",08/02/2018
Commercial,Regional Enterprise,Other Services,10013973,CONWAY AECOM LTD," 143,718.74 ",08/02/2018
Commercial,Regional Enterprise,Other Services,10013974,CONWAY AECOM LTD," 159,464.18 ",08/02/2018
Commercial,Regional Enterprise,Other Services,10013975,CONWAY AECOM LTD," 27,585.47 ",08/02/2018
Commercial,Regional Enterprise,Other Services,10013976,CONWAY AECOM LTD," 15,864.14 ",08/02/2018
Commercial,Regional Enterprise,Other Services,10013989,CONWAY AECOM LTD," 134,788.63 ",08/02/2018
Commercial,Regional Enterprise,Other Services,10013990,CONWAY AECOM LTD," 211,173.90 ",08/02/2018
Commercial,Regional Enterprise,Other Services,10013991,CONWAY AECOM LTD," 99,311.33 ",08/02/2018
Commercial,Regional Enterprise,Other Services,10013957,CONWAY AECOM LTD,"6,905.22",08/02/2018
Commercial,Regional Enterprise,Other Services,10013958,CONWAY AECOM LTD," 62,519.99 ",08/02/2018
Commercial,Regional Enterprise,Other Services,10013959,CONWAY AECOM LTD," 47,631.87 ",08/02/2018
Commercial,Regional Enterprise,Other Services,10013960,CONWAY AECOM LTD," 69,799.50 ",08/02/2018
Commercial,Regional Enterprise,Other Services,10013961,CONWAY AECOM LTD," 56,584.28 ",08/02/2018
Commercial,Regional Enterprise,Other Services,10013962,CONWAY AECOM LTD," 55,646.17 ",08/02/2018
Commercial,Regional Enterprise,Other Services,10013963,CONWAY AECOM LTD," 71,514.74 ",08/02/2018
Commercial,Regional Enterprise,Other Services,10013964,CONWAY AECOM LTD," 28,361.71 ",08/02/2018
Commercial,Regional Enterprise,Other Services,10013965,CONWAY AECOM LTD," 14,914.89 ",08/02/2018
Commercial,Regional Enterprise,Other Services,10013977,CONWAY AECOM LTD," 29,337.60 ",08/02/2018
Commercial,Regional Enterprise,Other Services,10013978,CONWAY AECOM LTD," 25,690.40 ",08/02/2018
Commercial,Regional Enterprise,Other Services,10013979,CONWAY AECOM LTD,"24,102.40",08/02/2018
Commercial,Regional Enterprise,Other Services,10013980,CONWAY AECOM LTD," 10,567.20 ",08/02/2018
Commercial,Regional Enterprise,Other Services,10013981,CONWAY AECOM LTD,"10,731.90",08/02/2018
Commercial,Regional Enterprise,Other Services,10013983,CONWAY AECOM LTD," 13,817.60 ",08/02/2018
Commercial,Regional Enterprise,Other Services,10013984,CONWAY AECOM LTD," 20,481.60 ",08/02/2018
Commercial,Regional Enterprise,Other Services,10013985,CONWAY AECOM LTD," 23,641.60 ",08/02/2018
Commercial,Regional Enterprise,Other Services,10013986,CONWAY AECOM LTD,"26,775.00",08/02/2018
Commercial,Regional Enterprise,Other Services,10013992,CONWAY AECOM LTD,"28,280.91",08/02/2018
Commercial,Regional Enterprise,Other Services,10013995,CONWAY AECOM LTD,"14,622.15",16/02/2018
Commercial,Regional Enterprise,Other Services,60097623,CONWAY AECOM LTD,"20,000.00",08/02/2018
Commercial,Regional Enterprise,Other Services,60097870,CONWAY AECOM LTD,"7,973.97",12/02/2018
Commercial,Regional Enterprise,Other Services,60097904,CONWAY AECOM LTD," 3,656.51 ",12/02/2018
Commercial,Regional Enterprise,Other Services,60098367,CONWAY AECOM LTD,"110,000.00",20/02/2018
Commercial,Regional Enterprise,Other Services,60098477,CONWAY AECOM LTD," 66,029.98 ",20/02/2018
Commercial,Regional Enterprise,Other Services,60097655,CONWAY AECOM LTD,"2,799.15",16/02/2018
Commercial,Regional Enterprise,Other Services,60096397,HIGHWAY SURVEYORS LTD,"46,224.00",19/02/2018
Commercial,Regional Enterprise,Capital Construction and Works,60099182,SUN HILL SURVEYS,"1,225.00",28/02/2018
Commercial,Regional Enterprise,Other Services,60099087,RM COUNTRYSIDE SERVICES LTD, 506.00 ,26/02/2018
Commercial,Regional Enterprise,Other Services,10013982,CONWAY AECOM LTD," 67,548.55 ",08/02/2018
Commercial,Regional Enterprise,Other Services,10013987,CONWAY AECOM LTD,"18,238.27",08/02/2018
Commercial,Regional Enterprise,Other Services,10013988,CONWAY AECOM LTD," 23,751.45 ",08/02/2018
Commercial,Regional Enterprise,Capital Construction and Works,60097759,CONWAY AECOM LTD,"32,976.00",09/02/2018
Commercial,Regional Enterprise,Consultants Fees,60098288,CROWN MORAN HOTEL," 1,460.00 ",19/02/2018
Commercial,Regional Enterprise,Consultants Fees,60096211,HOLIDAY INN LONDON - BRENT CROSS,204.17,16/02/2018
Commercial,Regional Enterprise,Consultants Fees,60097897,HOLIDAY INN LONDON - BRENT CROSS, 300.83 ,27/02/2018
Commercial,Regional Enterprise,Consultants Fees,60098221,HOLIDAY INN LONDON - BRENT CROSS,304.17,28/02/2018
Commercial,Regional Enterprise,Consultants Fees,60094938,NETWORK RAIL INFRASTRUCTURE LTD," 640,360.01 ",20/02/2018
Commercial,Regional Enterprise,Consultants Fees,60096827,NETWORK RAIL INFRASTRUCTURE LTD,"715,194.61",20/02/2018
Commercial,Regional Enterprise,Consultants Fees,60099386,GOWLING WLG," 1,019.36 ",28/02/2018
Commercial,Regional Enterprise,Consultants Fees,60099402,GOWLING WLG," 5,448.24 ",28/02/2018
Commercial,Regional Enterprise,Consultants Fees,60099435,GOWLING WLG, 864.43 ,28/02/2018
Commercial,Regional Enterprise,Consultants Fees,60099492,GOWLING WLG," 9,950.54 ",28/02/2018
Commercial,Regional Enterprise,Consultants Fees,60095838,NATIONWIDE DATA COLLECTION," 1,150.00 ",07/02/2018
Commercial,Regional Enterprise,Legal and Court Fees,80015333,CAMPBELL & CO,"4,125.20",08/02/2018
Commercial,Regional Enterprise,Grant Payments,60096662,ROYAL AIR FORCE MUSEUM," 500,000.00 ",15/02/2018
Commercial,Regional Enterprise,Other Services,60093067,UK POWER NETWORKS," 9,257.15 ",06/02/2018
Commissioning,Commissioning,Equipment and Materials Purcha,60097354,JOHN GRAHAM CONSTRUCTION LTD," 802,983.88 ",26/02/2018
Commissioning,Commissioning,Equipment and Materials Purcha,60098179,JOHN GRAHAM CONSTRUCTION LTD," 403,487.39 ",22/02/2018
Commissioning,Commissioning,Building Repairs & Maintenance,60091619,OAKRAY LIMITED, 362.49 ,13/02/2018
Commissioning,Commissioning,Building Repairs & Maintenance,60091661,OAKRAY LIMITED," 1,973.11 ",09/02/2018
Commissioning,Commissioning,Building Repairs & Maintenance,60097117,RGE SERVICES,"2,852.78",01/02/2018
Commissioning,Commissioning,Building Repairs & Maintenance,60098488,JOHN GRAHAM CONSTRUCTION LTD," 344,823.36 ",22/02/2018
Commissioning,Commissioning,Consultants Fees,60097771,WILLMOTT DIXON CONSTRUCTION LTD,"73,630.00",19/02/2018
Commissioning,Commissioning,Consultants Fees,60096660,E-CAR CLUB," 2,350.14 ",14/02/2018
Commissioning,Commissioning,Professional Services,60097150,LUCION ENVIRONMENTAL LTD,"1,954.00",01/02/2018
Commissioning,Commissioning,Advertising,60093010,TMP (UK) LTD," 1,119.00 ",08/02/2018
Commissioning,Commissioning,Advertising,60096911,TMP (UK) LTD, 876.00 ,07/02/2018
Commissioning,Commissioning,Advertising,60096986,TMP (UK) LTD, 305.00 ,07/02/2018
Commissioning,Commissioning,Other Services,80015325,REDACTED - PERSONAL DATA," 3,000.00 ",12/02/2018
Commissioning,Commissioning,Other Services,60097667,AMU SURVEYS LTD,"1,200.00",15/02/2018
Commissioning,Commissioning,Advertising,60096565,TMP (UK) LTD, 529.50 ,07/02/2018
Commissioning,Commissioning,Other Services,60094583,CONWAY AECOM LTD," 3,532.67 ",08/02/2018
Commissioning,Commissioning,Advertising,60099387,TMP (UK) LTD, 332.00 ,28/02/2018
Commissioning,Commissioning,Employee Expenses,10013993,COPTHALL SCHOOL (ACADEMY),"4,891.68",13/02/2018
Commissioning,Commissioning,Employee Expenses,10013994,COPTHALL SCHOOL (ACADEMY),"8,274.40",13/02/2018
Commissioning,Commissioning,Software Licences & Support,80015611,EXPERIAN LTD, 150.00 ,22/02/2018
Commissioning,Commissioning,Professional Services,60096087,QM LEGAL COSTS SOLUTIONS LTD, 882.45 ,08/02/2018
Commissioning,Commissioning,Grant Payments,80015334,THE HOPE OF CHILDS HILL,"2,500.00",12/02/2018
Commissioning,Commissioning,Training,60094261,LOCAL GOVERNMENT ASSOCIATION,"7,050.00",07/02/2018
Commissioning,Commissioning,Training,80015594,REDACTED - PERSONAL DATA, 570.00 ,16/02/2018
Commissioning,Commissioning,Professional Services,60097358,KPMG FEES ACCOUNT, 875.00 ,02/02/2018
Commissioning,Commissioning,Subscriptions,60098215,COPYRIGHT LICENSING AGENCY LTD," 7,027.86 ",16/02/2018
Commissioning,Commissioning,Software Licences & Support,60096676,DOTTED EYES LTD,"1,360.00",15/02/2018
Commissioning,Commissioning,Consultants Fees,60096371,LEIDOS INNOVATIONS UK LTD,"13,186.32",08/02/2018
Commissioning,Commissioning,Professional Services,60097006,THE BARNETGROUP LIMITED,"7,027.47",01/02/2018
Commissioning,Commissioning,Professional Services,60097847,THE BARNETGROUP LIMITED," 9,982.04 ",12/02/2018
Commissioning,Commissioning,Grant Payments,60093694,THE BARNETGROUP LIMITED," 4,055.79 ",26/02/2018
Commissioning,Commissioning,Other Transfer Payments to Soc,60097062,SOLACE WOMEN'S AID," 74,552.50 ",26/02/2018
Commissioning,Commissioning,Equipment and Materials Purcha,60097291,SOLACE WOMEN'S AID,"51,571.25",26/02/2018
Commissioning,Commissioning,Equipment and Materials Purcha,60097299,GOVNET COMMUNICATIONS,385.00,02/02/2018
Commissioning,Commissioning,Equipment and Materials Purcha,60097658,THE BARNETGROUP LIMITED," 20,000.00 ",08/02/2018
Commissioning,Commissioning,Equipment and Materials Purcha,60097668,THE BARNETGROUP LIMITED,"10,000.00",08/02/2018
Commissioning,Commissioning,Equipment and Materials Purcha,60097682,THE BARNETGROUP LIMITED," 20,000.00 ",08/02/2018
Commissioning,Commissioning,Equipment and Materials Purcha,60097685,THE BARNETGROUP LIMITED,"20,000.00",08/02/2018
Commissioning,Commissioning,Equipment and Materials Purcha,60097370,DIRECT PATH SOLUTIONS LTD,"3,000.00",05/02/2018
Commissioning,Commissioning,Private Contractors - Third Pa,60096908,GREENWICH LEISURE LTD,"32,505.53",06/02/2018
Commissioning,Commissioning,Settlement of WOM Costs,60098282,S W BRUCE & CO LTD,287.50,16/02/2018
Commissioning,Commissioning,Settlement of WOM Costs,60098337,S W BRUCE & CO LTD," 2,651.41 ",16/02/2018
Commissioning,Commissioning,Other Services,60096159,THE 4FRONT PROJECT LTD," 2,100.00 ",08/02/2018
Commissioning,Commissioning,Professional Services,60096776,MIDDLESEX UNIVERSITY,"1,260.00",14/02/2018
Commissioning,Commissioning,Other Services,60096860,LONDON REIGN SPORTS,"1,425.00",21/02/2018
Commissioning,Commissioning,Venue Hire,60098167,POWERLEAGUE MILLHILL, 440.00 ,19/02/2018
Commissioning,Commissioning,Other Services,60098064,REDACTED - PERSONAL DATA, 610.00 ,19/02/2018
Commissioning,Commissioning,Consultants Fees,60098340,ASSOCIATION OF DIRECTORS OF ADULT," 1,748.00 ",16/02/2018
Commissioning,Commissioning,Consultants Fees,60097933,OPUS INTERNATIONAL CONSULTANTS UK LTD," 4,938.75 ",12/02/2018
Commissioning,Commissioning,Consultants Fees,60099260,OPUS INTERNATIONAL CONSULTANTS UK LTD," 4,916.25 ",27/02/2018
Commissioning,Commissioning,Consultants Fees,60099308,OPUS INTERNATIONAL CONSULTANTS UK LTD,"2,902.50",27/02/2018
Commissioning,Commissioning,Consultants Fees,80015570,SIDE BY SIDE,499.00,19/02/2018
Commissioning,Commissioning,Equipment and Materials Purcha,60098269,MIDDLESEX UNIVERSITY," 4,429.80 ",16/02/2018
Commissioning,Commissioning,Publications,60099255,LETTERBOX DISTRIBUTION.COM, 249.04 ,27/02/2018
Commissioning,Commissioning,Publications,60099289,LETTERBOX DISTRIBUTION.COM, 300.00 ,27/02/2018
Commissioning,Commissioning,Publications,60099298,LETTERBOX DISTRIBUTION.COM,395.00,27/02/2018
Commissioning,Commissioning,Publications,80015267,BRIGHT HORIZO, 245.00 ,20/02/2018
Commissioning,Commissioning,Publications,80015268,THE PERSONALS," 1,500.00 ",20/02/2018
Commissioning,Commissioning,Advertising,80015069,REDACTED - PERSONAL DATA,100.00,20/02/2018
Commissioning,Commissioning,Software Licences & Support,60096622,NLA MEDIA ACCESS LTD," 1,026.00 ",15/02/2018
Commissioning,Commissioning,Publications,60099233,LETTERBOX DISTRIBUTION.COM, 840.00 ,27/02/2018
Commissioning,Commissioning,Printing-Contract,60099241,LETTERBOX DISTRIBUTION.COM,"10,237.50",27/02/2018
Commissioning,Commissioning,Consultants Fees,60098150,KPMG FEES ACCOUNT,"5,500.00",15/02/2018
Commissioning,Commissioning,Professional Services,60097199,GARDINER & THEOBALD LLP," 7,500.00 ",01/02/2018
Commissioning,Commissioning,Consultants Fees,60097290,GARDINER & THEOBALD LLP," 11,600.00 ",01/02/2018
Commissioning,Commissioning,Consultants Fees,60095900,GATENBY SANDERSON," 8,400.00 ",20/02/2018
Commissioning,Commissioning,Other Services,60093216,PELL FRISCHMAN CONSULTING ENGINEERS LTD, 515.10 ,08/02/2018
Commissioning,Commissioning,Other Services,60099130,INCLUSION BARNET, 459.60 ,26/02/2018
Commissioning,Commissioning,Other Services,60097939,BLUE 9 SECURITY LIMITED,"2,094.17",13/02/2018
Commissioning,Commissioning,Other Services,60097949,BLUE 9 SECURITY LIMITED,"2,475.63",13/02/2018
Commissioning,Commissioning,Other Services,60097951,BLUE 9 SECURITY LIMITED,"2,296.58",13/02/2018
Commissioning,Commissioning,Other Services,60097962,BLUE 9 SECURITY LIMITED," 2,382.21 ",13/02/2018
Commissioning,Commissioning,Other Services,60097967,BLUE 9 SECURITY LIMITED," 2,413.35 ",13/02/2018
Commissioning,Commissioning,Other Services,60097972,BLUE 9 SECURITY LIMITED," 5,060.25 ",13/02/2018
Commissioning,Commissioning,Other Services,60097982,BLUE 9 SECURITY LIMITED," 2,327.72 ",13/02/2018
Commissioning,Commissioning,Other Services,60098007,BLUE 9 SECURITY LIMITED," 2,304.36 ",13/02/2018
Commissioning,Commissioning,Other Services,60098019,BLUE 9 SECURITY LIMITED," 2,358.86 ",13/02/2018
Commissioning,Commissioning,Other Services,60098025,BLUE 9 SECURITY LIMITED," 2,351.07 ",13/02/2018
Commissioning,Commissioning,Professional Services,60096746,MIDDLESEX UNIVERSITY," 16,222.00 ",16/02/2018
Commissioning,Commissioning,Other Services,60097033,THE BARNETGROUP LIMITED,"17,571.32",01/02/2018
Commissioning,Commissioning,Other Services,60097852,THE BARNETGROUP LIMITED," 44,815.70 ",12/02/2018
Commissioning,Commissioning,Other Local Authorities - Thir,EBX0210595,NORTH LONDON WASTE," 872,077.00 ",02/02/2018
Corporate Accounting,Corporate Accounting,Other Establishments - Third P,30176038,PARKFIELD ACADEMY,246.00,01/02/2018
Corporate Accounting,Corporate Accounting,Other Establishments - Third P,30176007,PARKFIELD ACADEMY," 1,640.00 ",01/02/2018
Corporate Accounting,Corporate Accounting,Grant Payments,80015202,THE PERSONAL SUPPORT UNIT,"4,973.00",12/02/2018
Corporate Accounting,Corporate Accounting,Grant Payments,80015672,FINCHLEY VICTORIA BOWLING CLUB," 8,900.00 ",22/02/2018
Corporate Accounting,Corporate Accounting,Grant Payments,80015681,LIVING WAY MINISTRIES,"3,000.00",22/02/2018
Corporate Accounting,Corporate Accounting,Other Agencies - Third Party P,60098516,THE BARNETGROUP LIMITED," 91,666.67 ",26/02/2018
Corporate Accounting,Corporate Accounting,Other Agencies - Third Party P,60098619,THE BARNETGROUP LIMITED," 1,938,379.59 ",26/02/2018
Corporate Accounting,Corporate Accounting,Other Transfer Payments to Soc,80015577,WIRECARD (FS INSTANT 2040880892973),"12,032.33",20/02/2018
Corporate Accounting,Corporate Accounting,Other Transfer Payments to Soc,80015581,WIRECARD (FS ONGOING 2040881670310," 13,574.51 ",20/02/2018
Corporate Accounting,Corporate Accounting,Other Local Authorities - Thir,EBX0211681,GREATER LONDON AUTHORITY,"49,828.80",06/02/2018
Corporate Accounting,Corporate Accounting,Other Local Authorities - Thir,EBX0212306,GREATER LONDON AUTHORITY," 3,428,215.84 ",09/02/2018
Corporate Accounting,Corporate Accounting,Other Local Authorities - Thir,EBX0213266,GREATER LONDON AUTHORITY,"234,605.00",20/02/2018
Delivery Units,Adults and Communities,Voluntary Associations - Third,30176557,ELEANOR PALMER TRUST NO 2 A/C., 486.50 ,22/02/2018
Delivery Units,Adults and Communities,Other Services,30176568,WILLOW HOUSING & CARE LTD., 711.38 ,22/02/2018
Delivery Units,Adults and Communities,Voluntary Associations - Third,30176556,CHRISTIAN ACTION (ENFIELD), 365.80 ,22/02/2018
Delivery Units,Adults and Communities,Voluntary Associations - Third,30176554,ASRA GREATER LONDON HOUSING ASSOC, 379.30 ,22/02/2018
Delivery Units,Adults and Communities,Voluntary Associations - Third,30176564,ST PANCRAS & HUMANIST H.A.,661.55,22/02/2018
Delivery Units,Adults and Communities,Voluntary Associations - Third,30176560,JEWISH COMMUNITY HOUSING ASSOCIATIO, 568.17 ,22/02/2018
Delivery Units,Adults and Communities,Voluntary Associations - Third,30176565,LINEN & WOOLLEN DRAPERS COTTAGE,730.11,22/02/2018
Delivery Units,Adults and Communities,Voluntary Associations - Third,30176559,HABINTEG HOUSING ASSOCIATION, 446.37 ,22/02/2018
Delivery Units,Adults and Communities,Voluntary Associations - Third,30176563,ORCHARD HOUSING ASSOCIATION,196.62,23/02/2018
Delivery Units,Adults and Communities,Voluntary Associations - Third,30176567,SCOTSCARE,361.52,22/02/2018
Delivery Units,Adults and Communities,Other Agencies - Third Party P,90058206,JEWISH CARE,"2,319.44",23/02/2018
Delivery Units,Adults and Communities,Other Agencies - Third Party P,90058209,JEWISH CARE,"2,568.84",23/02/2018
Delivery Units,Adults and Communities,Other Agencies - Third Party P,90058210,JEWISH CARE," 2,568.84 ",23/02/2018
Delivery Units,Adults and Communities,Other Agencies - Third Party P,90058211,JEWISH CARE,"2,319.44",23/02/2018
Delivery Units,Adults and Communities,Other Agencies - Third Party P,90058212,JEWISH CARE,"2,319.44",23/02/2018
Delivery Units,Adults and Communities,Other Agencies - Third Party P,90058213,JEWISH CARE,"2,568.84",23/02/2018
Delivery Units,Adults and Communities,Other Agencies - Third Party P,90058214,JEWISH CARE," 2,319.44 ",23/02/2018
Delivery Units,Adults and Communities,Other Agencies - Third Party P,90058215,JEWISH CARE,"2,568.84",23/02/2018
Delivery Units,Adults and Communities,Other Agencies - Third Party P,90058216,JEWISH CARE," 2,568.84 ",23/02/2018
Delivery Units,Adults and Communities,Other Agencies - Third Party P,90058217,JEWISH CARE,"2,568.84",23/02/2018
Delivery Units,Adults and Communities,Other Agencies - Third Party P,90058218,JEWISH CARE," 2,319.44 ",23/02/2018
Delivery Units,Adults and Communities,Other Agencies - Third Party P,90058219,JEWISH CARE," 2,568.84 ",23/02/2018
Delivery Units,Adults and Communities,Other Agencies - Third Party P,90058220,JEWISH CARE,"2,568.84",23/02/2018
Delivery Units,Adults and Communities,Other Agencies - Third Party P,90058221,JEWISH CARE," 2,319.44 ",23/02/2018
Delivery Units,Adults and Communities,Other Agencies - Third Party P,90058222,JEWISH CARE,"2,319.44",23/02/2018
Delivery Units,Adults and Communities,Other Agencies - Third Party P,90058225,JEWISH CARE," 2,568.84 ",23/02/2018
Delivery Units,Adults and Communities,Other Agencies - Third Party P,90058226,JEWISH CARE," 2,568.84 ",23/02/2018
Delivery Units,Adults and Communities,Other Agencies - Third Party P,90058227,JEWISH CARE,"2,319.44",23/02/2018
Delivery Units,Adults and Communities,Other Agencies - Third Party P,90058228,JEWISH CARE,82.84,23/02/2018
Delivery Units,Adults and Communities,Other Agencies - Third Party P,90058229,JEWISH CARE," 2,319.44 ",23/02/2018
Delivery Units,Adults and Communities,Other Agencies - Third Party P,90058230,JEWISH CARE,"2,319.44",23/02/2018
Delivery Units,Adults and Communities,Other Agencies - Third Party P,90058231,JEWISH CARE," 2,319.44 ",23/02/2018
Delivery Units,Adults and Communities,Other Agencies - Third Party P,90058232,JEWISH CARE,"2,568.84",23/02/2018
Delivery Units,Adults and Communities,Other Agencies - Third Party P,90058261,JEWISH CARE,"2,319.44",23/02/2018
Delivery Units,Adults and Communities,Other Agencies - Third Party P,90058791,JEWISH CARE,662.70,27/02/2018
Delivery Units,Adults and Communities,Other Agencies - Third Party P,90057006,FERNBANK NURSING HOME.," 2,094.40 ",21/02/2018
Delivery Units,Adults and Communities,Other Agencies - Third Party P,90057009,FERNBANK NURSING HOME.," 2,165.52 ",21/02/2018
Delivery Units,Adults and Communities,Other Agencies - Third Party P,90057011,FERNBANK NURSING HOME.,"2,094.40",21/02/2018
Delivery Units,Adults and Communities,Other Agencies - Third Party P,90057012,FERNBANK NURSING HOME.," 2,179.80 ",21/02/2018
Delivery Units,Adults and Communities,Other Agencies - Third Party P,90057014,FERNBANK NURSING HOME.," 2,165.52 ",21/02/2018
Delivery Units,Adults and Communities,Other Agencies - Third Party P,90057309,FERNBANK NURSING HOME.," 2,165.52 ",22/02/2018
Delivery Units,Adults and Communities,Other Agencies - Third Party P,90055184,BUPA NURSING HOMES LTD - ARKLEY," 2,227.52 ",09/02/2018
Delivery Units,Adults and Communities,Other Agencies - Third Party P,90055185,BUPA NURSING HOMES LTD - ARKLEY," 2,227.24 ",09/02/2018
Delivery Units,Adults and Communities,Other Agencies - Third Party P,90055186,BUPA NURSING HOMES LTD - ARKLEY," 2,227.24 ",09/02/2018
Delivery Units,Adults and Communities,Other Agencies - Third Party P,90055188,BUPA NURSING HOMES LTD - ARKLEY," 2,227.40 ",09/02/2018
Delivery Units,Adults and Communities,Other Agencies - Third Party P,90055189,BUPA NURSING HOMES LTD - ARKLEY," 2,214.76 ",09/02/2018
Delivery Units,Adults and Communities,Other Agencies - Third Party P,90052031,WESTMINSTER HEALTH CARE LTD,"2,324.25",01/02/2018
Delivery Units,Adults and Communities,Other Agencies - Third Party P,90052032,WESTMINSTER HEALTH CARE LTD," 2,307.37 ",01/02/2018
Delivery Units,Adults and Communities,Other Agencies - Third Party P,90052033,WESTMINSTER HEALTH CARE LTD," 2,324.25 ",01/02/2018
Delivery Units,Adults and Communities,Other Agencies - Third Party P,90059479,WESTMINSTER HEALTH CARE LTD," 2,318.93 ",28/02/2018
Delivery Units,Adults and Communities,Other Agencies - Third Party P,90053365,HENRY NIHILL HOUSE,"2,165.68",02/02/2018
Delivery Units,Adults and Communities,Other Agencies - Third Party P,90053367,HENRY NIHILL HOUSE,"2,165.68",02/02/2018
Delivery Units,Adults and Communities,Other Agencies - Third Party P,90053368,HENRY NIHILL HOUSE,"2,165.68",02/02/2018
Delivery Units,Adults and Communities,Other Agencies - Third Party P,90053369,HENRY NIHILL HOUSE," 2,165.68 ",02/02/2018
Delivery Units,Adults and Communities,Other Agencies - Third Party P,90053370,HENRY NIHILL HOUSE,"2,165.68",02/02/2018
Delivery Units,Adults and Communities,Other Agencies - Third Party P,90053371,HENRY NIHILL HOUSE," 2,165.68 ",02/02/2018
Delivery Units,Adults and Communities,Other Agencies - Third Party P,90053372,HENRY NIHILL HOUSE," 2,165.68 ",02/02/2018
Delivery Units,Adults and Communities,Other Agencies - Third Party P,90053373,HENRY NIHILL HOUSE,"2,165.68",02/02/2018
Delivery Units,Adults and Communities,Other Agencies - Third Party P,90055369,HENRY NIHILL HOUSE,"2,165.68",09/02/2018
Delivery Units,Adults and Communities,Other Agencies - Third Party P,90055370,HENRY NIHILL HOUSE," 2,165.68 ",09/02/2018
Delivery Units,Adults and Communities,Other Agencies - Third Party P,90055371,HENRY NIHILL HOUSE,"2,165.68",09/02/2018
Delivery Units,Adults and Communities,Other Agencies - Third Party P,90055372,HENRY NIHILL HOUSE," 2,165.68 ",09/02/2018
Delivery Units,Adults and Communities,Other Agencies - Third Party P,90055374,HENRY NIHILL HOUSE," 2,165.68 ",09/02/2018
Delivery Units,Adults and Communities,Other Agencies - Third Party P,90055375,HENRY NIHILL HOUSE," 2,165.68 ",09/02/2018
Delivery Units,Adults and Communities,Other Agencies - Third Party P,90055377,HENRY NIHILL HOUSE,"2,165.68",08/02/2018
Delivery Units,Adults and Communities,Other Agencies - Third Party P,90055176,MEERA NURSING HOME LIMITED,"2,209.00",14/02/2018
Delivery Units,Adults and Communities,Other Agencies - Third Party P,90055177,MEERA NURSING HOME LIMITED," 2,209.00 ",14/02/2018
Delivery Units,Adults and Communities,Other Agencies - Third Party P,90055178,MEERA NURSING HOME LIMITED," 2,446.52 ",14/02/2018
Delivery Units,Adults and Communities,Other Agencies - Third Party P,90055179,MEERA NURSING HOME LIMITED," 2,209.00 ",14/02/2018
Delivery Units,Adults and Communities,Other Agencies - Third Party P,90055180,MEERA NURSING HOME LIMITED,"2,209.00",14/02/2018
Delivery Units,Adults and Communities,Other Agencies - Third Party P,90055181,MEERA NURSING HOME LIMITED," 2,446.52 ",14/02/2018
Delivery Units,Adults and Communities,Other Agencies - Third Party P,90057117,MEERA NURSING HOME LIMITED," 2,626.52 ",16/02/2018
Delivery Units,Adults and Communities,Other Agencies - Third Party P,90054139,NEWCENTURY CARE LTD,"(1,335.71)",08/02/2018
Delivery Units,Adults and Communities,Other Agencies - Third Party P,90054978,NEWCENTURY CARE LTD," 2,398.56 ",08/02/2018
Delivery Units,Adults and Communities,Other Agencies - Third Party P,90056993,NEWCENTURY CARE LTD," 3,400.00 ",16/02/2018
Delivery Units,Adults and Communities,Other Agencies - Third Party P,90056995,NEWCENTURY CARE LTD," 3,600.00 ",16/02/2018
Delivery Units,Adults and Communities,Other Agencies - Third Party P,90056996,NEWCENTURY CARE LTD," 6,952.32 ",16/02/2018
Delivery Units,Adults and Communities,Other Agencies - Third Party P,90056997,NEWCENTURY CARE LTD," 6,952.32 ",16/02/2018
Delivery Units,Adults and Communities,Other Agencies - Third Party P,90053551,BUPA CARE HOMES," 3,400.00 ",02/02/2018
Delivery Units,Adults and Communities,Other Agencies - Third Party P,90053552,BUPA CARE HOMES," 2,165.68 ",02/02/2018
Delivery Units,Adults and Communities,Other Agencies - Third Party P,90056406,BUPA CARE HOMES,"2,228.04",15/02/2018
Delivery Units,Adults and Communities,Other Agencies - Third Party P,90056407,BUPA CARE HOMES," 2,466.76 ",15/02/2018
Delivery Units,Adults and Communities,Other Agencies - Third Party P,90056395,BUPA CARE HOMES," 6,965.76 ",15/02/2018
Delivery Units,Adults and Communities,Other Agencies - Third Party P,90056396,BUPA CARE HOMES,"6,965.76",15/02/2018
Delivery Units,Adults and Communities,Other Agencies - Third Party P,90056397,BUPA CARE HOMES," 6,965.76 ",15/02/2018
Delivery Units,Adults and Communities,Other Agencies - Third Party P,90056398,BUPA CARE HOMES," 1,741.44 ",15/02/2018
Delivery Units,Adults and Communities,Other Agencies - Third Party P,90056399,BUPA CARE HOMES,348.45,15/02/2018
Delivery Units,Adults and Communities,Other Agencies - Third Party P,90056402,BUPA CARE HOMES," 1,942.86 ",15/02/2018
Delivery Units,Adults and Communities,Other Agencies - Third Party P,90056403,BUPA CARE HOMES," 2,464.06 ",15/02/2018
Delivery Units,Adults and Communities,Other Agencies - Third Party P,90056405,BUPA CARE HOMES,"3,741.92",15/02/2018
Delivery Units,Adults and Communities,Other Agencies - Third Party P,90056411,BUPA CARE HOMES,"2,729.11",15/02/2018
Delivery Units,Adults and Communities,Other Agencies - Third Party P,90057317,BUPA CARE HOMES," 2,464.06 ",22/02/2018
Delivery Units,Adults and Communities,Other Agencies - Third Party P,90057318,BUPA CARE HOMES,"3,741.92",22/02/2018
Delivery Units,Adults and Communities,Other Agencies - Third Party P,90057320,BUPA CARE HOMES," 2,729.11 ",22/02/2018
Delivery Units,Adults and Communities,Other Agencies - Third Party P,90058853,BUPA CARE HOMES," 6,965.76 ",27/02/2018
Delivery Units,Adults and Communities,Other Agencies - Third Party P,90055414,SANCTUARY CARE LTD," 2,324.76 ",08/02/2018
Delivery Units,Adults and Communities,Other Agencies - Third Party P,90055391,BUPA CARE HOMES," 3,085.52 ",14/02/2018
Delivery Units,Adults and Communities,Other Agencies - Third Party P,90055395,BUPA CARE HOMES," 2,466.05 ",14/02/2018
Delivery Units,Adults and Communities,Other Agencies - Third Party P,90055399,BUPA CARE HOMES," 2,466.05 ",14/02/2018
Delivery Units,Adults and Communities,Other Agencies - Third Party P,90054769,SAGE NURSING HOME," 5,314.29 ",08/02/2018
Delivery Units,Adults and Communities,Other Agencies - Third Party P,90054772,SAGE NURSING HOME," 1,624.26 ",08/02/2018
Delivery Units,Adults and Communities,Other Agencies - Third Party P,90054773,SAGE NURSING HOME," 2,397.72 ",08/02/2018
Delivery Units,Adults and Communities,Other Agencies - Third Party P,90054775,SAGE NURSING HOME,"2,788.32",08/02/2018
Delivery Units,Adults and Communities,Other Agencies - Third Party P,90054776,SAGE NURSING HOME," 3,741.92 ",08/02/2018
Delivery Units,Adults and Communities,Other Agencies - Third Party P,90054777,SAGE NURSING HOME," 3,321.43 ",08/02/2018
Delivery Units,Adults and Communities,Other Agencies - Third Party P,90054778,SAGE NURSING HOME," 2,517.60 ",08/02/2018
Delivery Units,Adults and Communities,Other Agencies - Third Party P,90057328,SAGE NURSING HOME,"3,621.21",22/02/2018
Delivery Units,Adults and Communities,Other Agencies - Third Party P,90057329,SAGE NURSING HOME,"3,214.29",22/02/2018
Delivery Units,Adults and Communities,Other Agencies - Third Party P,80014905,APPLE TREE COURT CARE HOME,"12,148.78",09/02/2018
Delivery Units,Adults and Communities,Other Agencies - Third Party P,90055354,APPLE TREE COURT CARE HOME,"2,570.70",19/02/2018
Delivery Units,Adults and Communities,Other Agencies - Third Party P,90055355,APPLE TREE COURT CARE HOME," 2,570.70 ",19/02/2018
Delivery Units,Adults and Communities,Other Agencies - Third Party P,90055363,APPLE TREE COURT CARE HOME," 4,871.43 ",19/02/2018
Delivery Units,Adults and Communities,Other Agencies - Third Party P,90055364,APPLE TREE COURT CARE HOME," 2,397.72 ",19/02/2018
Delivery Units,Adults and Communities,Other Agencies - Third Party P,90053627,CLARE HOUSE NURSING HOME,"2,228.72",02/02/2018
Delivery Units,Adults and Communities,Other Agencies - Third Party P,90056935,ABBEY RAVENSCROFT PARK NURSING HOME,"3,000.00",16/02/2018
Delivery Units,Adults and Communities,Other Agencies - Third Party P,90056936,ABBEY RAVENSCROFT PARK NURSING HOME,"2,940.00",16/02/2018
Delivery Units,Adults and Communities,Other Agencies - Third Party P,90056937,ABBEY RAVENSCROFT PARK NURSING HOME," 2,518.48 ",16/02/2018
Delivery Units,Adults and Communities,Other Agencies - Third Party P,90056938,ABBEY RAVENSCROFT PARK NURSING HOME," 2,518.48 ",16/02/2018
Delivery Units,Adults and Communities,Other Agencies - Third Party P,90056939,ABBEY RAVENSCROFT PARK NURSING HOME," 3,000.00 ",16/02/2018
Delivery Units,Adults and Communities,Other Agencies - Third Party P,90056940,ABBEY RAVENSCROFT PARK NURSING HOME," 2,518.48 ",16/02/2018
Delivery Units,Adults and Communities,Other Agencies - Third Party P,90056942,ABBEY RAVENSCROFT PARK NURSING HOME,"2,518.48",16/02/2018
Delivery Units,Adults and Communities,Other Agencies - Third Party P,90056944,ABBEY RAVENSCROFT PARK NURSING HOME," 2,518.48 ",16/02/2018
Delivery Units,Adults and Communities,Other Agencies - Third Party P,90056945,ABBEY RAVENSCROFT PARK NURSING HOME,"2,800.00",16/02/2018
Delivery Units,Adults and Communities,Other Agencies - Third Party P,90056948,ABBEY RAVENSCROFT PARK NURSING HOME,"2,518.48",16/02/2018
Delivery Units,Adults and Communities,Other Agencies - Third Party P,90056949,ABBEY RAVENSCROFT PARK NURSING HOME," 2,518.48 ",16/02/2018
Delivery Units,Adults and Communities,Other Agencies - Third Party P,90056950,ABBEY RAVENSCROFT PARK NURSING HOME," 3,433.96 ",16/02/2018
Delivery Units,Adults and Communities,Other Agencies - Third Party P,90056953,ABBEY RAVENSCROFT PARK NURSING HOME,"3,000.00",16/02/2018
Delivery Units,Adults and Communities,Other Agencies - Third Party P,90056954,ABBEY RAVENSCROFT PARK NURSING HOME," 3,000.00 ",16/02/2018
Delivery Units,Adults and Communities,Other Agencies - Third Party P,90056955,ABBEY RAVENSCROFT PARK NURSING HOME,"2,518.48",16/02/2018
Delivery Units,Adults and Communities,Other Agencies - Third Party P,90056978,ABBEY RAVENSCROFT PARK NURSING HOME," 3,000.00 ",16/02/2018
Delivery Units,Adults and Communities,Other Agencies - Third Party P,90055328,HUSKARDS NEW CARE LTD,"2,397.72",08/02/2018
Delivery Units,Adults and Communities,Other Agencies - Third Party P,90055329,HUSKARDS NEW CARE LTD," 2,165.68 ",08/02/2018
Delivery Units,Adults and Communities,Other Agencies - Third Party P,90058599,HUSKARDS NEW CARE LTD,373.29,23/02/2018
Delivery Units,Adults and Communities,Other Agencies - Third Party P,90055149,ASHTON LODGE CARE CENTRE," 2,568.84 ",08/02/2018
Delivery Units,Adults and Communities,Other Agencies - Third Party P,90055150,ASHTON LODGE CARE CENTRE," 3,000.00 ",08/02/2018
Delivery Units,Adults and Communities,Other Agencies - Third Party P,90055151,ASHTON LODGE CARE CENTRE," 2,779.80 ",08/02/2018
Delivery Units,Adults and Communities,Other Agencies - Third Party P,90055153,ASHTON LODGE CARE CENTRE," 2,568.84 ",08/02/2018
Delivery Units,Adults and Communities,Other Agencies - Third Party P,90055154,ASHTON LODGE CARE CENTRE," 2,568.84 ",08/02/2018
Delivery Units,Adults and Communities,Other Agencies - Third Party P,90055155,ASHTON LODGE CARE CENTRE," 2,652.00 ",08/02/2018
Delivery Units,Adults and Communities,Other Agencies - Third Party P,90055157,ASHTON LODGE CARE CENTRE," 2,830.52 ",08/02/2018
Delivery Units,Adults and Communities,Other Agencies - Third Party P,90055158,ASHTON LODGE CARE CENTRE," 2,319.44 ",08/02/2018
Delivery Units,Adults and Communities,Other Agencies - Third Party P,90055159,ASHTON LODGE CARE CENTRE,"3,179.80",08/02/2018
Delivery Units,Adults and Communities,Other Agencies - Third Party P,90055160,ASHTON LODGE CARE CENTRE,"3,520.49",08/02/2018
Delivery Units,Adults and Communities,Other Agencies - Third Party P,90055162,ASHTON LODGE CARE CENTRE,"2,979.00",08/02/2018
Delivery Units,Adults and Communities,Other Agencies - Third Party P,90055163,ASHTON LODGE CARE CENTRE,"2,779.80",08/02/2018
Delivery Units,Adults and Communities,Other Agencies - Third Party P,90055164,ASHTON LODGE CARE CENTRE," 2,776.00 ",08/02/2018
Delivery Units,Adults and Communities,Other Agencies - Third Party P,90055166,ASHTON LODGE CARE CENTRE,"5,905.34",08/02/2018
Delivery Units,Adults and Communities,Other Agencies - Third Party P,90055167,ASHTON LODGE CARE CENTRE,"2,568.84",08/02/2018
Delivery Units,Adults and Communities,Other Agencies - Third Party P,90055169,ASHTON LODGE CARE CENTRE,"2,779.80",08/02/2018
Delivery Units,Adults and Communities,Other Agencies - Third Party P,90055170,ASHTON LODGE CARE CENTRE,"3,400.00",08/02/2018
Delivery Units,Adults and Communities,Other Agencies - Third Party P,90055171,ASHTON LODGE CARE CENTRE,"2,979.80",08/02/2018
Delivery Units,Adults and Communities,Other Agencies - Third Party P,90055172,ASHTON LODGE CARE CENTRE,"2,949.80",08/02/2018
Delivery Units,Adults and Communities,Other Agencies - Third Party P,90055173,ASHTON LODGE CARE CENTRE,"3,779.80",08/02/2018
Delivery Units,Adults and Communities,Other Agencies - Third Party P,90055174,ASHTON LODGE CARE CENTRE,"3,200.00",08/02/2018
Delivery Units,Adults and Communities,Other Agencies - Third Party P,90055175,ASHTON LODGE CARE CENTRE,"2,779.80",08/02/2018
Delivery Units,Adults and Communities,Other Agencies - Third Party P,90056119,ASHTON LODGE CARE CENTRE," 24,025.43 ",13/02/2018
Delivery Units,Adults and Communities,Other Agencies - Third Party P,90059653,ASHTON LODGE CARE CENTRE,"17,572.32",28/02/2018
Delivery Units,Adults and Communities,Other Agencies - Third Party P,90055332,MURRAYFIELD CARE HOME,"2,211.80",08/02/2018
Delivery Units,Adults and Communities,Other Agencies - Third Party P,90055411,FOUR SEASONS HEALTH CARE (NO.4) LTD," 2,004.00 ",08/02/2018
Delivery Units,Adults and Communities,Other Agencies - Third Party P,90059649,FOUR SEASONS HEALTH CARE (NO.4) LTD,"2,004.00",28/02/2018
Delivery Units,Adults and Communities,Other Agencies - Third Party P,90057322,KARUNA MANOR," 4,207.14 ",20/02/2018
Delivery Units,Adults and Communities,Other Agencies - Third Party P,90053710,BROAD OAK MANOR NURSING HOME," 6,311.91 ",02/02/2018
Delivery Units,Adults and Communities,Other Agencies - Third Party P,90053711,BROAD OAK MANOR NURSING HOME,"2,292.12",02/02/2018
Delivery Units,Adults and Communities,Other Agencies - Third Party P,90053712,BROAD OAK MANOR NURSING HOME," 6,108.30 ",02/02/2018
Delivery Units,Adults and Communities,Other Agencies - Third Party P,90053713,BROAD OAK MANOR NURSING HOME," 1,018.05 ",02/02/2018
Delivery Units,Adults and Communities,Other Agencies - Third Party P,90059469,ADARA HEALTHCARE LTD,"6,000.00",28/02/2018
Delivery Units,Adults and Communities,Other Agencies - Third Party P,90059470,ADARA HEALTHCARE LTD," 1,285.71 ",28/02/2018
Delivery Units,Adults and Communities,Other Agencies - Third Party P,90057141,GCH (HERTFORDSHIRE) LTD T/A," 2,358.76 ",16/02/2018
Delivery Units,Adults and Communities,Other Agencies - Third Party P,90057144,GCH (HERTFORDSHIRE) LTD T/A," 2,358.76 ",16/02/2018
Delivery Units,Adults and Communities,Other Agencies - Third Party P,90058825,AARANDALE MANOR CARE HOME," 4,428.57 ",27/02/2018
Delivery Units,Adults and Communities,Other Agencies - Third Party P,90058826,AARANDALE MANOR CARE HOME," 4,428.57 ",27/02/2018
Delivery Units,Adults and Communities,Other Agencies - Third Party P,90058827,AARANDALE MANOR CARE HOME," 2,570.56 ",27/02/2018
Delivery Units,Adults and Communities,Other Agencies - Third Party P,90058828,AARANDALE MANOR CARE HOME,"2,570.56",27/02/2018
Delivery Units,Adults and Communities,Other Agencies - Third Party P,90055403,FRISTON HOUSE,"2,979.80",08/02/2018
Delivery Units,Adults and Communities,Other Agencies - Third Party P,90055182,LADY OF THE VALE NURSING HOME," 2,400.00 ",08/02/2018
Delivery Units,Adults and Communities,Other Agencies - Third Party P,90059702,BONDCARE LONDON (THE FOUNTAINS)," 2,138.00 ",28/02/2018
Delivery Units,Adults and Communities,Other Agencies - Third Party P,90053628,BUPA CARE HOMES LTD (SUTTON LODGE),"2,420.00",02/02/2018
Delivery Units,Adults and Communities,Other Agencies - Third Party P,90053546,THE LEONARD CHESHIRE FOUNDATION," 6,532.14 ",26/02/2018
Delivery Units,Adults and Communities,Other Agencies - Third Party P,90056310,ST ANNS HOME-LITTLE SISTERS OF THE POOR," 2,165.68 ",13/02/2018
Delivery Units,Adults and Communities,Other Agencies - Third Party P,90059643,ASPEN VILLAGES LTD,"2,397.72",28/02/2018
Delivery Units,Adults and Communities,Other Agencies - Third Party P,90059646,ASPEN VILLAGES LTD," 1,285.71 ",28/02/2018
Delivery Units,Adults and Communities,Other Agencies - Third Party P,90059648,ASPEN VILLAGES LTD,"-1,885.71 ",28/02/2018
Delivery Units,Adults and Communities,Other Agencies - Third Party P,90059665,ASPEN VILLAGES LTD," 2,655.55 ",28/02/2018
Delivery Units,Adults and Communities,Other Agencies - Third Party P,90059666,ASPEN VILLAGES LTD," 2,657.14 ",28/02/2018
Delivery Units,Adults and Communities,Other Agencies - Third Party P,90059674,ASPEN VILLAGES LTD," 2,400.00 ",28/02/2018
Delivery Units,Adults and Communities,Other Agencies - Third Party P,90055327,AUTUMN GARDENS," 10,000.00 ",08/02/2018
Delivery Units,Adults and Communities,Other Agencies - Third Party P,90058883,AUTUMN GARDENS," 4,800.00 ",27/02/2018
Delivery Units,Adults and Communities,Other Agencies - Third Party P,90054957,CARLTON COURT (TLC GROUP),"4,000.00",08/02/2018
Delivery Units,Adults and Communities,Other Agencies - Third Party P,90054961,CARLTON COURT (TLC GROUP)," 2,398.56 ",08/02/2018
Delivery Units,Adults and Communities,Other Agencies - Third Party P,90054963,CARLTON COURT (TLC GROUP)," 4,000.00 ",08/02/2018
Delivery Units,Adults and Communities,Other Agencies - Third Party P,90054965,CARLTON COURT (TLC GROUP),"3,375.00",08/02/2018
Delivery Units,Adults and Communities,Other Agencies - Third Party P,90054967,CARLTON COURT (TLC GROUP)," 3,379.80 ",08/02/2018
Delivery Units,Adults and Communities,Other Agencies - Third Party P,90054969,CARLTON COURT (TLC GROUP)," 2,211.80 ",08/02/2018
Delivery Units,Adults and Communities,Other Agencies - Third Party P,90054970,CARLTON COURT (TLC GROUP)," 3,379.80 ",08/02/2018
Delivery Units,Adults and Communities,Other Agencies - Third Party P,90054971,CARLTON COURT (TLC GROUP)," 4,800.00 ",08/02/2018
Delivery Units,Adults and Communities,Other Agencies - Third Party P,90058604,CARLTON COURT (TLC GROUP)," 26,896.58 ",23/02/2018
Delivery Units,Adults and Communities,Other Agencies - Third Party P,90053634,ELEANOR PALMER TRUST NO 2 A/C., 857.14 ,02/02/2018
Delivery Units,Adults and Communities,Other Agencies - Third Party P,90053741,TORRINGTON HOMES," 2,211.80 ",08/02/2018
Delivery Units,Adults and Communities,Other Agencies - Third Party P,90053742,TORRINGTON HOMES," 2,211.80 ",08/02/2018
Delivery Units,Adults and Communities,Other Agencies - Third Party P,90053744,TORRINGTON HOMES," 2,211.80 ",08/02/2018
Delivery Units,Adults and Communities,Other Agencies - Third Party P,90053745,TORRINGTON HOMES," 2,211.80 ",08/02/2018
Delivery Units,Adults and Communities,Other Agencies - Third Party P,90053529,ELMHURST RESIDENTIAL HOME,"9,716.12",02/02/2018
Delivery Units,Adults and Communities,Other Agencies - Third Party P,90053532,ELMHURST RESIDENTIAL HOME,"11,421.43",02/02/2018
Delivery Units,Adults and Communities,Other Agencies - Third Party P,90053534,ELMHURST RESIDENTIAL HOME," 11,421.43 ",02/02/2018
Delivery Units,Adults and Communities,Other Agencies - Third Party P,90053535,ELMHURST RESIDENTIAL HOME,"11,421.43",02/02/2018
Delivery Units,Adults and Communities,Other Agencies - Third Party P,90053538,ELMHURST RESIDENTIAL HOME," 9,716.12 ",02/02/2018
Delivery Units,Adults and Communities,Other Agencies - Third Party P,90053539,ELMHURST RESIDENTIAL HOME," 10,542.86 ",02/02/2018
Delivery Units,Adults and Communities,Other Agencies - Third Party P,90053540,ELMHURST RESIDENTIAL HOME,"9,716.12",02/02/2018
Delivery Units,Adults and Communities,Other Agencies - Third Party P,90053541,ELMHURST RESIDENTIAL HOME," 9,716.12 ",02/02/2018
Delivery Units,Adults and Communities,Other Agencies - Third Party P,90053542,ELMHURST RESIDENTIAL HOME," 11,421.43 ",02/02/2018
Delivery Units,Adults and Communities,Other Agencies - Third Party P,90053543,ELMHURST RESIDENTIAL HOME," 19,000.00 ",02/02/2018
Delivery Units,Adults and Communities,Other Agencies - Third Party P,90053544,ELMHURST RESIDENTIAL HOME," 9,200.00 ",02/02/2018
Delivery Units,Adults and Communities,Other Agencies - Third Party P,90058195,JEWISH CARE," 2,415.28 ",23/02/2018
Delivery Units,Adults and Communities,Other Agencies - Third Party P,90058198,JEWISH CARE," 2,415.28 ",23/02/2018
Delivery Units,Adults and Communities,Other Agencies - Third Party P,90058199,JEWISH CARE," 2,415.28 ",23/02/2018
Delivery Units,Adults and Communities,Other Agencies - Third Party P,90058201,JEWISH CARE," 2,415.28 ",23/02/2018
Delivery Units,Adults and Communities,Other Agencies - Third Party P,90058202,JEWISH CARE,"2,415.28",23/02/2018
Delivery Units,Adults and Communities,Other Agencies - Third Party P,90058204,JEWISH CARE," 2,415.28 ",23/02/2018
Delivery Units,Adults and Communities,Other Agencies - Third Party P,90058205,JEWISH CARE," 2,415.28 ",23/02/2018
Delivery Units,Adults and Communities,Other Agencies - Third Party P,90058208,JEWISH CARE," 2,568.84 ",23/02/2018
Delivery Units,Adults and Communities,Other Agencies - Third Party P,90058233,JEWISH CARE,"2,415.28",23/02/2018
Delivery Units,Adults and Communities,Other Agencies - Third Party P,90058234,JEWISH CARE," 2,415.28 ",23/02/2018
Delivery Units,Adults and Communities,Other Agencies - Third Party P,90058235,JEWISH CARE," 2,415.28 ",23/02/2018
Delivery Units,Adults and Communities,Other Agencies - Third Party P,90058236,JEWISH CARE," 2,415.28 ",23/02/2018
Delivery Units,Adults and Communities,Other Agencies - Third Party P,90058237,JEWISH CARE,"2,415.28",23/02/2018
Delivery Units,Adults and Communities,Other Agencies - Third Party P,90058240,JEWISH CARE,"2,415.28",23/02/2018
Delivery Units,Adults and Communities,Other Agencies - Third Party P,90058241,JEWISH CARE,"2,218.68",23/02/2018
Delivery Units,Adults and Communities,Other Agencies - Third Party P,90058242,JEWISH CARE," 2,415.28 ",23/02/2018
Delivery Units,Adults and Communities,Other Agencies - Third Party P,90058243,JEWISH CARE,"2,415.28",23/02/2018
Delivery Units,Adults and Communities,Other Agencies - Third Party P,90058244,JEWISH CARE," 2,415.28 ",23/02/2018
Delivery Units,Adults and Communities,Other Agencies - Third Party P,90058246,JEWISH CARE,"2,415.28",23/02/2018
Delivery Units,Adults and Communities,Other Agencies - Third Party P,90058247,JEWISH CARE," 2,415.28 ",23/02/2018
Delivery Units,Adults and Communities,Other Agencies - Third Party P,90058248,JEWISH CARE,"2,218.68",23/02/2018
Delivery Units,Adults and Communities,Other Agencies - Third Party P,90058249,JEWISH CARE," 2,415.28 ",23/02/2018
Delivery Units,Adults and Communities,Other Agencies - Third Party P,90058250,JEWISH CARE,"2,415.28",23/02/2018
Delivery Units,Adults and Communities,Other Agencies - Third Party P,90058251,JEWISH CARE,"2,218.68",23/02/2018
Delivery Units,Adults and Communities,Other Agencies - Third Party P,90058252,JEWISH CARE,"2,415.28",23/02/2018
Delivery Units,Adults and Communities,Other Agencies - Third Party P,90058254,JEWISH CARE,"2,415.28",23/02/2018
Delivery Units,Adults and Communities,Other Agencies - Third Party P,90058255,JEWISH CARE,"2,415.28",23/02/2018
Delivery Units,Adults and Communities,Other Agencies - Third Party P,90058256,JEWISH CARE," 2,415.28 ",23/02/2018
Delivery Units,Adults and Communities,Other Agencies - Third Party P,90058257,JEWISH CARE,"2,218.68",23/02/2018
Delivery Units,Adults and Communities,Other Agencies - Third Party P,90058259,JEWISH CARE," 2,415.28 ",23/02/2018
Delivery Units,Adults and Communities,Other Agencies - Third Party P,90058260,JEWISH CARE," 2,415.28 ",23/02/2018
Delivery Units,Adults and Communities,Other Agencies - Third Party P,90058798,JEWISH CARE," 2,218.68 ",27/02/2018
Delivery Units,Adults and Communities,Other Agencies - Third Party P,90058800,JEWISH CARE," 2,415.28 ",27/02/2018
Delivery Units,Adults and Communities,Other Agencies - Third Party P,90058801,JEWISH CARE," 2,415.28 ",27/02/2018
Delivery Units,Adults and Communities,Other Agencies - Third Party P,90058802,JEWISH CARE," 2,218.68 ",27/02/2018
Delivery Units,Adults and Communities,Other Agencies - Third Party P,90058803,JEWISH CARE,"2,218.68",27/02/2018
Delivery Units,Adults and Communities,Other Agencies - Third Party P,90058804,JEWISH CARE," 2,218.68 ",27/02/2018
Delivery Units,Adults and Communities,Other Agencies - Third Party P,90058805,JEWISH CARE," 2,218.68 ",27/02/2018
Delivery Units,Adults and Communities,Other Agencies - Third Party P,90058806,JEWISH CARE," 2,218.68 ",27/02/2018
Delivery Units,Adults and Communities,Other Agencies - Third Party P,90058807,JEWISH CARE," 2,218.68 ",27/02/2018
Delivery Units,Adults and Communities,Other Agencies - Third Party P,90058808,JEWISH CARE," 2,415.28 ",27/02/2018
Delivery Units,Adults and Communities,Other Agencies - Third Party P,90058809,JEWISH CARE," 2,415.28 ",27/02/2018
Delivery Units,Adults and Communities,Other Agencies - Third Party P,90058811,JEWISH CARE," 2,218.68 ",27/02/2018
Delivery Units,Adults and Communities,Other Agencies - Third Party P,90058813,JEWISH CARE," 2,218.68 ",27/02/2018
Delivery Units,Adults and Communities,Other Agencies - Third Party P,90058814,JEWISH CARE," 2,218.68 ",27/02/2018
Delivery Units,Adults and Communities,Other Agencies - Third Party P,90058815,JEWISH CARE," 2,218.68 ",27/02/2018
Delivery Units,Adults and Communities,Other Agencies - Third Party P,90058816,JEWISH CARE," 2,415.28 ",27/02/2018
Delivery Units,Adults and Communities,Other Agencies - Third Party P,90058817,JEWISH CARE," 2,415.28 ",27/02/2018
Delivery Units,Adults and Communities,Other Agencies - Third Party P,90058818,JEWISH CARE," 2,415.28 ",27/02/2018
Delivery Units,Adults and Communities,Other Agencies - Third Party P,90058819,JEWISH CARE,"2,218.68",27/02/2018
Delivery Units,Adults and Communities,Other Agencies - Third Party P,90058820,JEWISH CARE," 2,415.28 ",27/02/2018
Delivery Units,Adults and Communities,Other Agencies - Third Party P,90058855,JEWISH CARE,"2,415.28",27/02/2018
Delivery Units,Adults and Communities,Other Agencies - Third Party P,90058856,JEWISH CARE,"2,415.28",27/02/2018
Delivery Units,Adults and Communities,Other Agencies - Third Party P,90058857,JEWISH CARE," 4,508.00 ",27/02/2018
Delivery Units,Adults and Communities,Other Agencies - Third Party P,90058858,JEWISH CARE," 2,218.68 ",27/02/2018
Delivery Units,Adults and Communities,Other Agencies - Third Party P,90058859,JEWISH CARE," 2,218.68 ",27/02/2018
Delivery Units,Adults and Communities,Other Agencies - Third Party P,90058860,JEWISH CARE," 2,218.68 ",27/02/2018
Delivery Units,Adults and Communities,Other Agencies - Third Party P,90058861,JEWISH CARE,"2,415.28",27/02/2018
Delivery Units,Adults and Communities,Other Agencies - Third Party P,90058862,JEWISH CARE,"2,415.28",27/02/2018
Delivery Units,Adults and Communities,Other Agencies - Third Party P,90058864,JEWISH CARE," 2,415.28 ",27/02/2018
Delivery Units,Adults and Communities,Other Agencies - Third Party P,90058866,JEWISH CARE," 2,102.00 ",27/02/2018
Delivery Units,Adults and Communities,Other Agencies - Third Party P,90058871,JEWISH CARE," 2,415.28 ",27/02/2018
Delivery Units,Adults and Communities,Other Agencies - Third Party P,90058872,JEWISH CARE," 2,415.28 ",27/02/2018
Delivery Units,Adults and Communities,Other Agencies - Third Party P,90058873,JEWISH CARE," 2,415.28 ",27/02/2018
Delivery Units,Adults and Communities,Other Agencies - Third Party P,90058874,JEWISH CARE," 2,218.68 ",27/02/2018
Delivery Units,Adults and Communities,Other Agencies - Third Party P,90058875,JEWISH CARE," 2,218.68 ",27/02/2018
Delivery Units,Adults and Communities,Other Agencies - Third Party P,90058877,JEWISH CARE,-713.15 ,27/02/2018
Delivery Units,Adults and Communities,Other Agencies - Third Party P,90058878,JEWISH CARE,"-1,552.68 ",27/02/2018
Delivery Units,Adults and Communities,Other Agencies - Third Party P,90058682,CLOVELLY HOUSE RESID. HOME LTD," 2,600.00 ",23/02/2018
Delivery Units,Adults and Communities,Other Agencies - Third Party P,90058685,CLOVELLY HOUSE RESID. HOME LTD," 2,600.00 ",23/02/2018
Delivery Units,Adults and Communities,Other Agencies - Third Party P,90058686,CLOVELLY HOUSE RESID. HOME LTD,"2,780.00",23/02/2018
Delivery Units,Adults and Communities,Other Agencies - Third Party P,90058687,CLOVELLY HOUSE RESID. HOME LTD," 2,780.00 ",23/02/2018
Delivery Units,Adults and Communities,Other Agencies - Third Party P,90058688,CLOVELLY HOUSE RESID. HOME LTD," 2,780.00 ",23/02/2018
Delivery Units,Adults and Communities,Other Agencies - Third Party P,90058691,CLOVELLY HOUSE RESID. HOME LTD,"2,600.00",23/02/2018
Delivery Units,Adults and Communities,Other Agencies - Third Party P,90058692,CLOVELLY HOUSE RESID. HOME LTD,"2,211.80",23/02/2018
Delivery Units,Adults and Communities,Other Agencies - Third Party P,90058693,CLOVELLY HOUSE RESID. HOME LTD," 2,211.80 ",23/02/2018
Delivery Units,Adults and Communities,Other Agencies - Third Party P,90055187,BUPA NURSING HOMES LTD - ARKLEY," 2,089.68 ",09/02/2018
Delivery Units,Adults and Communities,Other Agencies - Third Party P,90059682,NAZARETH HOUSE," 2,080.00 ",28/02/2018
Delivery Units,Adults and Communities,Other Agencies - Third Party P,90059683,NAZARETH HOUSE," 2,260.00 ",28/02/2018
Delivery Units,Adults and Communities,Other Agencies - Third Party P,90059684,NAZARETH HOUSE,"2,031.76",28/02/2018
Delivery Units,Adults and Communities,Other Agencies - Third Party P,90059685,NAZARETH HOUSE," 2,031.76 ",28/02/2018
Delivery Units,Adults and Communities,Other Agencies - Third Party P,90059686,NAZARETH HOUSE," 2,031.76 ",28/02/2018
Delivery Units,Adults and Communities,Other Agencies - Third Party P,90059687,NAZARETH HOUSE,"2,031.76",28/02/2018
Delivery Units,Adults and Communities,Other Agencies - Third Party P,90059688,NAZARETH HOUSE," 2,211.80 ",28/02/2018
Delivery Units,Adults and Communities,Other Agencies - Third Party P,90059689,NAZARETH HOUSE,"2,031.76",28/02/2018
Delivery Units,Adults and Communities,Other Agencies - Third Party P,90059691,NAZARETH HOUSE," 2,650.40 ",28/02/2018
Delivery Units,Adults and Communities,Other Agencies - Third Party P,90059692,NAZARETH HOUSE," 2,211.80 ",28/02/2018
Delivery Units,Adults and Communities,Other Agencies - Third Party P,90059693,NAZARETH HOUSE," 2,031.76 ",28/02/2018
Delivery Units,Adults and Communities,Other Agencies - Third Party P,90059694,NAZARETH HOUSE,"2,211.80",28/02/2018
Delivery Units,Adults and Communities,Other Agencies - Third Party P,90059695,NAZARETH HOUSE," 2,031.76 ",28/02/2018
Delivery Units,Adults and Communities,Other Agencies - Third Party P,90059696,NAZARETH HOUSE," 2,211.80 ",28/02/2018
Delivery Units,Adults and Communities,Other Agencies - Third Party P,90059697,NAZARETH HOUSE,"2,031.76",28/02/2018
Delivery Units,Adults and Communities,Other Agencies - Third Party P,90059698,NAZARETH HOUSE," 2,031.76 ",28/02/2018
Delivery Units,Adults and Communities,Other Agencies - Third Party P,90059699,NAZARETH HOUSE," 2,031.76 ",28/02/2018
Delivery Units,Adults and Communities,Other Agencies - Third Party P,90052034,WESTMINSTER HEALTH CARE LTD," 2,655.54 ",01/02/2018
Delivery Units,Adults and Communities,Other Agencies - Third Party P,90059740,METHODIST HOMES FOR THE AGED,"2,631.76",28/02/2018
